Workbook

Sheet Interject_LastPulledValues (hidden)
A1: Interject_LastPulledValues_BalanceRange | K1: Interject_LastPulledValues_DescriptionRange | P1: Interject_LastPulledValues_LastChangeGUID
A2: KeyValue | B2: FullAccount | C2: Period | D2: Year | E2: Source | F2: Company | G2: Currency | H2: Version | I2: Balance | K2: KeyValue | L2: SegmentValue | M2: SegmentNumber | N2: Description | P2: Interject_LastPulledValues_PreviousLastChangeGUID

Sheet Depr Summary
A1: Peninsula Sanitation
A2: Depreciation & Average Investment Summary
A3: 2023-04-30
A5: Pre-Acquisition Assets 11/1/2021 | J5: Assets PIS 11/1/2021 and Beyond | S5: Budgeted Capital 05/1/2023 and Beyond | AB5: Combined Summary - This Section to Proforma
F6: Beginning | G6: Ending | H6: Average | O6: Beginning | P6: Ending | Q6: Average | X6: Beginning | Y6: Ending | Z6: Average | AG6: Beginning | AH6: Ending | AI6: Average
B7: Cost | C7: Salvage | D7: Depr | E7: Test Year | F7: Accum Depr | G7: Accum Depr | H7: Investment | K7: Cost | L7: Salvage | M7: Depr | N7: Test Year | O7: Accum Depr | P7: Accum Depr | Q7: Investment | T7: Cost | U7: Salvage | V7: Depr | W7: Test Year | X7: Accum Depr | Y7: Accum Depr | Z7: Investment | AC7: Cost | AD7: Salvage | AE7: Depr | AF7: Test Year | AG7: Accum Depr | AH7: Accum Depr | AI7: Investment
D8: Cost | E8: Depr | F8: 2022-05-01 | G8: =+F8+364 -> 2023-04-30 | H8: =G8 -> 2023-04-30 | M8: Cost | N8: Depr | O8: =F8 -> 2022-05-01 | P8: =G8 -> 2023-04-30 | Q8: =H8 -> 2023-04-30 | V8: Cost | W8: Depr | X8: =O8 -> 2022-05-01 | Y8: =P8 -> 2023-04-30 | Z8: =Q8 -> 2023-04-30 | AE8: Cost | AF8: Depr | AG8: =O8 -> 2022-05-01 | AH8: =P8 -> 2023-04-30 | AI8: =Q8 -> 2023-04-30
A9: Trucks | J9: Trucks | S9: Trucks | AB9: Trucks
A11: Garbage Trucks | B11: =+SUMIF('Pre Acquisition Assets'!$C:$C,$A11,'Pre Acquisition Assets'!M:M) -> 1878229 | C11: 0 | D11: =+B11-C11 -> 1878229 | E11: =+SUMIF('Pre Acquisition Assets'!$C:$C,$A11,'Pre Acquisition Assets'!Q:Q) -> 129680 | F11: =+SUMIF('Pre Acquisition Assets'!$C:$C,$A11,'Pre Acquisition Assets'!V:V) -> 1352702.619 | G11: =+SUMIF('Pre Acquisition Assets'!$C:$C,$A11,'Pre Acquisition Assets'!Z:Z) -> 1498697.952 | H11: =+SUMIF('Pre Acquisition Assets'!C:C,A11,'Pre Acquisition Assets'!AA:AA) -> 379531.0476 | J11: Garbage Trucks | K11: =+SUMIF('FAR Dep Summary'!$A$24:$A$33,$J11,'FAR Dep Summary'!$B$24:$B$33) -> 1525 | L11: 0 | M11: =+K11-L11 -> 1525 | N11: =+SUMIF('FAR Dep Summary'!$A$24:$A$33,$J11,'FAR Dep Summary'!$C$24:$C$33) -> 508.3333333 | O11: =+SUMIF('FAR Dep Summary'!$A$24:$A$33,$J11,'FAR Dep Summary'!$D$24:$D$33) -> 0 | P11: =+SUMIF('FAR Dep Summary'!$A$24:$A$33,$J11,'FAR Dep Summary'!$E$24:$E$33) -> 508.3333333 | Q11: =+SUMIF('FAR Dep Summary'!$A$24:$A$33,$J11,'FAR Dep Summary'!$F$24:$F$33) -> 1016.666667 | S11: Garbage Trucks | T11: =+SUMIF('Bud Capital Input'!$L$57:$L$71,$S11,'Bud Capital Input'!M$57)*M71 -> 0 | U11: 0 | V11: =+T11-U11 -> 0 | W11: 0 | X11: 0 | Y11: 0 | Z11: 0 | AB11: =+J11 -> Garbage Trucks | AC11: =+B11+K11+T11 -> 1879754 | AD11: =+C11+L11 -> 0 | AE11: =+D11+M11+V11 -> 1879754 | AF11: =+E11+N11+W11 -> 130188.3333 | AG11: =+F11+O11+X11 -> 1352702.619 | AH11: =+G11+P11+Y11 -> 1499206.286 | AI11: =+H11+Q11+Z11 -> 380547.7143
A13: Roll-off Truck | B13: =+SUMIF('Pre Acquisition Assets'!$C:$C,$A13,'Pre Acquisition Assets'!M:M) -> 852532 | C13: 0 | D13: =+B13-C13 -> 852532 | E13: =+SUMIF('Pre Acquisition Assets'!$C:$C,$A13,'Pre Acquisition Assets'!Q:Q) -> 71493.14286 | F13: =+SUMIF('Pre Acquisition Assets'!$C:$C,$A13,'Pre Acquisition Assets'!V:V) -> 625903.7929 | G13: =+SUMIF('Pre Acquisition Assets'!$C:$C,$A13,'Pre Acquisition Assets'!Z:Z) -> 697670.2857 | H13: =+SUMIF('Pre Acquisition Assets'!C:C,A13,'Pre Acquisition Assets'!AA:AA) -> 154861.7143 | J13: Roll-off Truck | K13: =+SUMIF('FAR Dep Summary'!$A$24:$A$33,$J13,'FAR Dep Summary'!$B$24:$B$33) -> 74064.44 | L13: 0 | M13: =+K13-L13 -> 74064.44 | N13: =+SUMIF('FAR Dep Summary'!$A$24:$A$33,$J13,'FAR Dep Summary'!$C$24:$C$33) -> 10580.63429 | O13: =+SUMIF('FAR Dep Summary'!$A$24:$A$33,$J13,'FAR Dep Summary'!$D$24:$D$33) -> 0 | P13: =+SUMIF('FAR Dep Summary'!$A$24:$A$33,$J13,'FAR Dep Summary'!$E$24:$E$33) -> 10580.63429 | Q13: =+SUMIF('FAR Dep Summary'!$A$24:$A$33,$J13,'FAR Dep Summary'!$F$24:$F$33) -> 63483.80571 | S13: Roll-off Truck | T13: =+'Bud Capital Input'!M58 -> 105157 | U13: 0 | V13: =+T13-U13 -> 105157 | W13: =+'Bud Capital Input'!Q58 -> 15022.42857 | X13: 0 | Y13: =+'Bud Capital Input'!Q58 -> 15022.42857 | Z13: =+V13-Y13 -> 90134.57143 | AB13: =+J13 -> Roll-off Truck | AC13: =+B13+K13+T13 -> 1031753.44 | AD13: =+C13+L13 -> 0 | AE13: =+D13+M13+V13 -> 1031753.44 | AF13: =+E13+N13+W13 -> 97096.20571 | AG13: =+F13+O13+X13 -> 625903.7929 | AH13: =+G13+P13+Y13 -> 723273.3486 | AI13: =+H13+Q13+Z13 -> 308480.0914
A15: Container Delivery | B15: =+SUMIF('Pre Acquisition Assets'!$C:$C,$A15,'Pre Acquisition Assets'!M:M) -> 0 | C15: 0 | D15: =+B15-C15 -> 0 | E15: =+SUMIF('Pre Acquisition Assets'!$C:$C,$A15,'Pre Acquisition Assets'!Q:Q) -> 0 | F15: =+SUMIF('Pre Acquisition Assets'!$C:$C,$A15,'Pre Acquisition Assets'!V:V) -> 0 | G15: =+SUMIF('Pre Acquisition Assets'!$C:$C,$A15,'Pre Acquisition Assets'!Z:Z) -> 0 | H15: =+SUMIF('Pre Acquisition Assets'!C:C,A15,'Pre Acquisition Assets'!AA:AA) -> 0 | J15: Container Delivery | K15: =+SUMIF('FAR Dep Summary'!$A$24:$A$33,$J15,'FAR Dep Summary'!$B$24:$B$33) -> 0 | L15: 0 | M15: =+K15-L15 -> 0 | N15: =+SUMIF('FAR Dep Summary'!$A$24:$A$33,$J15,'FAR Dep Summary'!$C$24:$C$33) -> 0 | O15: =+SUMIF('FAR Dep Summary'!$A$24:$A$33,$J15,'FAR Dep Summary'!$D$24:$D$33) -> 0 | P15: =+SUMIF('FAR Dep Summary'!$A$24:$A$33,$J15,'FAR Dep Summary'!$E$24:$E$33) -> 0 | Q15: =+SUMIF('FAR Dep Summary'!$A$24:$A$33,$J15,'FAR Dep Summary'!$F$24:$F$33) -> 0 | S15: Container Delivery | T15: =+SUMIF('Bud Capital Input'!$L$57:$L$71,$S15,'Bud Capital Input'!M$57)*M75 -> 0 | U15: 0 | V15: =+T15-U15 -> 0 | W15: 0 | X15: 0 | Y15: 0 | Z15: 0 | AB15: =+J15 -> Container Delivery | AC15: =+B15+K15+T15 -> 0 | AD15: =+C15+L15 -> 0 | AE15: =+D15+M15+V15 -> 0 | AF15: =+E15+N15+W15 -> 0 | AG15: =+F15+O15+X15 -> 0 | AH15: =+G15+P15+Y15 -> 0 | AI15: =+H15+Q15+Z15 -> 0
A17: Total Trucks | B17: =SUM(B11:B16) -> 2730761 | C17: 0 | D17: 2730761 | E17: 201173.1429 | F17: 1978606.412 | G17: 2196368.238 | H17: 534392.7619 | J17: Total Trucks | K17: =SUM(K11:K16) -> 75589.44 | L17: 0 | M17: 75589.44 | N17: 11088.96762 | O17: 0 | P17: 11088.96762 | Q17: 64500.47238 | S17: Total Trucks | T17: =SUM(T11:T16) -> 105157 | U17: 0 | V17: 105157 | W17: 15022.42857 | X17: 0 | Y17: 15022.42857 | Z17: 90134.57143 | AB17: Total Trucks | AC17: =SUM(AC11:AC16) -> 2911507.44 | AD17: 0 | AE17: 2911507.44 | AF17: 227284.539 | AG17: 1978606.412 | AH17: 2222479.634 | AI17: 689027.8057
B18: =+'Pre Acquisition Assets'!O55-'Depr Summary'!B17 -> 22198
A19: Containers | J19: Containers | S19: Containers | AB19: Containers
A20: Garbage Carts | B20: =+SUMIF('Pre Acquisition Assets'!$C:$C,$A20,'Pre Acquisition Assets'!M:M) -> 559875 | C20: 0 | D20: =+B20-C20 -> 559875 | E20: =+SUMIF('Pre Acquisition Assets'!$C:$C,$A20,'Pre Acquisition Assets'!Q:Q) -> 31958.6 | F20: =+SUMIF('Pre Acquisition Assets'!$C:$C,$A20,'Pre Acquisition Assets'!V:V) -> 365084.9667 | G20: =+SUMIF('Pre Acquisition Assets'!$C:$C,$A20,'Pre Acquisition Assets'!Z:Z) -> 398107.4 | H20: =+SUMIF('Pre Acquisition Assets'!C:C,A20,'Pre Acquisition Assets'!AA:AA) -> 161767.6 | J20: Garbage Carts | K20: =+SUMIF('FAR Dep Summary'!$A$24:$A$33,$J20,'FAR Dep Summary'!$B$24:$B$33) -> 42895.74 | L20: 0 | M20: =+K20-L20 -> 42895.74 | N20: =+SUMIF('FAR Dep Summary'!$A$24:$A$33,$J20,'FAR Dep Summary'!$C$24:$C$33) -> 6127.962857 | O20: =+SUMIF('FAR Dep Summary'!$A$24:$A$33,$J20,'FAR Dep Summary'!$D$24:$D$33) -> 1531.990714 | P20: =+SUMIF('FAR Dep Summary'!$A$24:$A$33,$J20,'FAR Dep Summary'!$E$24:$E$33) -> 7659.953571 | Q20: =+SUMIF('FAR Dep Summary'!$A$24:$A$33,$J20,'FAR Dep Summary'!$F$24:$F$33) -> 35235.78643 | S20: Garbage Carts | T20: =+'Bud Capital Input'!O60 -> 52100 | U20: 0 | V20: =+T20-U20 -> 52100 | W20: =+'Bud Capital Input'!Q60 -> 7442.857143 | X20: 0 | Y20: =+W20+X20 -> 7442.857143 | Z20: =+'Bud Capital Input'!S60 -> 44657.14286 | AB20: =+J20 -> Garbage Carts | AC20: =+B20+K20+T20 -> 654870.74 | AD20: =+C20+L20 -> 0 | AE20: =+D20+M20+V20 -> 654870.74 | AF20: =+E20+N20+W20 -> 45529.42 | AG20: =+F20+O20+X20 -> 366616.9574 | AH20: =+G20+P20+Y20 -> 413210.2107 | AI20: =+H20+Q20+Z20 -> 241660.5293
A22: Automated Toter Garbage | B22: =+SUMIF('Pre Acquisition Assets'!$C:$C,$A22,'Pre Acquisition Assets'!M:M) -> 0 | C22: 0 | D22: =+B22-C22 -> 0 | E22: =+SUMIF('Pre Acquisition Assets'!$C:$C,$A22,'Pre Acquisition Assets'!Q:Q) -> 0 | F22: =+SUMIF('Pre Acquisition Assets'!$C:$C,$A22,'Pre Acquisition Assets'!V:V) -> 0 | G22: =+SUMIF('Pre Acquisition Assets'!$C:$C,$A22,'Pre Acquisition Assets'!Z:Z) -> 0 | H22: =+SUMIF('Pre Acquisition Assets'!C:C,A22,'Pre Acquisition Assets'!AA:AA) -> 0 | J22: Automated Toter Garbage | K22: =+SUMIF('FAR Dep Summary'!$A$24:$A$33,$J22,'FAR Dep Summary'!$B$24:$B$33) -> 0 | L22: 0 | M22: =+K22-L22 -> 0 | N22: =+SUMIF('FAR Dep Summary'!$A$24:$A$33,$J22,'FAR Dep Summary'!$C$24:$C$33) -> 0 | O22: =+SUMIF('FAR Dep Summary'!$A$24:$A$33,$J22,'FAR Dep Summary'!$D$24:$D$33) -> 0 | P22: =+SUMIF('FAR Dep Summary'!$A$24:$A$33,$J22,'FAR Dep Summary'!$E$24:$E$33) -> 0 | Q22: =+SUMIF('FAR Dep Summary'!$A$24:$A$33,$J22,'FAR Dep Summary'!$F$24:$F$33) -> 0 | S22: Automated Toter Garbage | T22: =+SUMIF('Bud Capital Input'!$L$57:$L$71,$S22,'Bud Capital Input'!M$57)*M82 -> 0 | U22: 0 | V22: =+T22-U22 -> 0 | W22: 0 | X22: 0 | Y22: 0 | Z22: 0 | AB22: =+J22 -> Automated Toter Garbage | AC22: =+B22+K22+T22 -> 0 | AD22: =+C22+L22 -> 0 | AE22: =+D22+M22+V22 -> 0 | AF22: =+E22+N22+W22 -> 0 | AG22: =+F22+O22+X22 -> 0 | AH22: =+G22+P22+Y22 -> 0 | AI22: =+H22+Q22+Z22 -> 0
A24: Automated Toter Garbage - Comm | B24: =+SUMIF('Pre Acquisition Assets'!$C:$C,$A24,'Pre Acquisition Assets'!M:M) -> 0 | C24: 0 | D24: =+B24-C24 -> 0 | E24: =+SUMIF('Pre Acquisition Assets'!$C:$C,$A24,'Pre Acquisition Assets'!Q:Q) -> 0 | F24: =+SUMIF('Pre Acquisition Assets'!$C:$C,$A24,'Pre Acquisition Assets'!V:V) -> 0 | G24: =+SUMIF('Pre Acquisition Assets'!$C:$C,$A24,'Pre Acquisition Assets'!Z:Z) -> 0 | H24: =+SUMIF('Pre Acquisition Assets'!C:C,A24,'Pre Acquisition Assets'!AA:AA) -> 0 | J24: Garbage Carts - Comm | K24: =+SUMIF('FAR Dep Summary'!$A$24:$A$33,$J24,'FAR Dep Summary'!$B$24:$B$33) -> 0 | L24: 0 | M24: =+K24-L24 -> 0 | N24: =+SUMIF('FAR Dep Summary'!$A$24:$A$33,$J24,'FAR Dep Summary'!$C$24:$C$33) -> 0 | O24: =+SUMIF('FAR Dep Summary'!$A$24:$A$33,$J24,'FAR Dep Summary'!$D$24:$D$33) -> 0 | P24: =+SUMIF('FAR Dep Summary'!$A$24:$A$33,$J24,'FAR Dep Summary'!$E$24:$E$33) -> 0 | Q24: =+SUMIF('FAR Dep Summary'!$A$24:$A$33,$J24,'FAR Dep Summary'!$F$24:$F$33) -> 0 | S24: Garbage Carts - Comm | T24: =+SUMIF('Bud Capital Input'!$L$57:$L$71,$S24,'Bud Capital Input'!M$57)*M84 -> 0 | U24: 0 | V24: =+T24-U24 -> 0 | W24: 0 | X24: 0 | Y24: 0 | Z24: 0 | AB24: =+J24 -> Garbage Carts - Comm | AC24: =+B24+K24+T24 -> 0 | AD24: =+C24+L24 -> 0 | AE24: =+D24+M24+V24 -> 0 | AF24: =+E24+N24+W24 -> 0 | AG24: =+F24+O24+X24 -> 0 | AH24: =+G24+P24+Y24 -> 0 | AI24: =+H24+Q24+Z24 -> 0
A26: Drop Boxes | B26: =+SUMIF('Pre Acquisition Assets'!$C:$C,$A26,'Pre Acquisition Assets'!M:M) -> 156174 | C26: 0 | D26: =+B26-C26 -> 156174 | E26: =+SUMIF('Pre Acquisition Assets'!$C:$C,$A26,'Pre Acquisition Assets'!Q:Q) -> 3210 | F26: =+SUMIF('Pre Acquisition Assets'!$C:$C,$A26,'Pre Acquisition Assets'!V:V) -> 145206.5 | G26: =+SUMIF('Pre Acquisition Assets'!$C:$C,$A26,'Pre Acquisition Assets'!Z:Z) -> 148416.5 | H26: =+SUMIF('Pre Acquisition Assets'!C:C,A26,'Pre Acquisition Assets'!AA:AA) -> 7757.5 | J26: Drop Boxes | K26: =+SUMIF('FAR Dep Summary'!$A$24:$A$33,$J26,'FAR Dep Summary'!$B$24:$B$33) -> 40198.08 | L26: 0 | M26: =+K26-L26 -> 40198.08 | N26: =+SUMIF('FAR Dep Summary'!$A$24:$A$33,$J26,'FAR Dep Summary'!$C$24:$C$33) -> 2812.401667 | O26: =+SUMIF('FAR Dep Summary'!$A$24:$A$33,$J26,'FAR Dep Summary'!$D$24:$D$33) -> 6449.26 | P26: =+SUMIF('FAR Dep Summary'!$A$24:$A$33,$J26,'FAR Dep Summary'!$E$24:$E$33) -> 9261.661667 | Q26: =+SUMIF('FAR Dep Summary'!$A$24:$A$33,$J26,'FAR Dep Summary'!$F$24:$F$33) -> 30936.41833 | S26: Drop Boxes | T26: =+'Bud Capital Input'!O59 -> 32900 | U26: 0 | V26: =+T26-U26 -> 32900 | W26: =+'Bud Capital Input'!Q59 -> 2741.666667 | X26: 0 | Y26: =+W26+X26 -> 2741.666667 | Z26: =+'Bud Capital Input'!S59 -> 30158.33333 | AB26: =+J26 -> Drop Boxes | AC26: =+B26+K26+T26 -> 229272.08 | AD26: =+C26+L26 -> 0 | AE26: =+D26+M26+V26 -> 229272.08 | AF26: =+E26+N26+W26 -> 8764.068333 | AG26: =+F26+O26+X26 -> 151655.76 | AH26: =+G26+P26+Y26 -> 160419.8283 | AI26: =+H26+Q26+Z26 -> 68852.25167
I27: + | R27: =
A29: Total Cont, Carts,Totes | B29: =SUM(B20:B28) -> 716049 | C29: 0 | D29: 716049 | E29: 35168.6 | F29: 510291.4667 | G29: 546523.9 | H29: 169525.1 | J29: Total Cont, Carts,Totes | K29: =SUM(K20:K28) -> 83093.82 | L29: 0 | M29: 83093.82 | N29: 8940.364524 | O29: 7981.250714 | P29: 16921.61524 | Q29: 66172.20476 | S29: Total Cont, Carts,Totes | T29: =SUM(T20:T28) -> 85000 | U29: 0 | V29: 85000 | W29: 10184.52381 | X29: 0 | Y29: 10184.52381 | Z29: 74815.47619 | AB29: Total Cont, Carts,Totes | AC29: =SUM(AC20:AC28) -> 884142.82 | AD29: 0 | AE29: 884142.82 | AF29: 54293.48833 | AG29: 518272.7174 | AH29: 573630.039 | AI29: 310512.781
A31: Service Equipment | B31: =+SUMIF('Pre Acquisition Assets'!$C:$C,$A31,'Pre Acquisition Assets'!M:M) -> 0 | C31: 0 | D31: =+B31-C31 -> 0 | E31: =+SUMIF('Pre Acquisition Assets'!$C:$C,$A31,'Pre Acquisition Assets'!Q:Q) -> 0 | F31: =+SUMIF('Pre Acquisition Assets'!$C:$C,$A31,'Pre Acquisition Assets'!V:V) -> 0 | G31: =+SUMIF('Pre Acquisition Assets'!$C:$C,$A31,'Pre Acquisition Assets'!Z:Z) -> 0 | H31: =+SUMIF('Pre Acquisition Assets'!C:C,A31,'Pre Acquisition Assets'!AA:AA) -> 0 | J31: Service Equipment | K31: =IFERROR(VLOOKUP($J31,'FAR Dep Summary'!$A$25:$F$32,2,FALSE),0) -> 0 | L31: 0 | M31: =+K31-L31 -> 0 | N31: =+SUMIF('FAR Dep Summary'!$A$24:$A$33,$J31,'FAR Dep Summary'!$C$24:$C$33) -> 0 | O31: =+SUMIF('FAR Dep Summary'!$A$24:$A$33,$J31,'FAR Dep Summary'!$D$24:$D$33) -> 0 | P31: =+SUMIF('FAR Dep Summary'!$A$24:$A$33,$J31,'FAR Dep Summary'!$E$24:$E$33) -> 0 | Q31: =+SUMIF('FAR Dep Summary'!$A$24:$A$33,$J31,'FAR Dep Summary'!$F$24:$F$33) -> 0 | S31: Service Equipment | T31: =IFERROR(VLOOKUP($J31,'FAR Dep Summary'!$A$25:$F$32,2,FALSE),0) -> 0 | U31: 0 | V31: =+T31-U31 -> 0 | W31: =+SUMIF('FAR Dep Summary'!$A$24:$A$33,$J31,'FAR Dep Summary'!$C$24:$C$33) -> 0 | X31: =+SUMIF('FAR Dep Summary'!$A$24:$A$33,$J31,'FAR Dep Summary'!$D$24:$D$33) -> 0 | Y31: =+SUMIF('FAR Dep Summary'!$A$24:$A$33,$J31,'FAR Dep Summary'!$E$24:$E$33) -> 0 | Z31: =+SUMIF('FAR Dep Summary'!$A$24:$A$33,$J31,'FAR Dep Summary'!$F$24:$F$33) -> 0 | AB31: =+J31 -> Service Equipment | AC31: =+B31+K31+T31 -> 0 | AD31: =+C31+L31 -> 0 | AE31: =+D31+M31+V31 -> 0 | AF31: =+E31+N31+W31 -> 0 | AG31: =+F31+O31+X31 -> 0 | AH31: =+G31+P31+Y31 -> 0 | AI31: =+H31+Q31+Z31 -> 0
A33: Service Truck | B33: =+SUMIF('Pre Acquisition Assets'!$C:$C,$A33,'Pre Acquisition Assets'!M:M) -> 22198 | C33: 0 | D33: =+B33-C33 -> 22198 | E33: =+SUMIF('Pre Acquisition Assets'!$C:$C,$A33,'Pre Acquisition Assets'!Q:Q) -> 0 | F33: =+SUMIF('Pre Acquisition Assets'!$C:$C,$A33,'Pre Acquisition Assets'!V:V) -> 21343.41667 | G33: =+SUMIF('Pre Acquisition Assets'!$C:$C,$A33,'Pre Acquisition Assets'!Z:Z) -> 22198 | H33: =+SUMIF('Pre Acquisition Assets'!C:C,A33,'Pre Acquisition Assets'!AA:AA) -> 0 | J33: Service Truck | K33: =+SUMIF('FAR Dep Summary'!$A$24:$A$33,$J33,'FAR Dep Summary'!$B$24:$B$33) -> 47517.68 | L33: 0 | M33: =+K33-L33 -> 47517.68 | N33: =+SUMIF('FAR Dep Summary'!$A$24:$A$33,$J33,'FAR Dep Summary'!$C$24:$C$33) -> 9503.536 | O33: =+SUMIF('FAR Dep Summary'!$A$24:$A$33,$J33,'FAR Dep Summary'!$D$24:$D$33) -> 4693.056667 | P33: =+SUMIF('FAR Dep Summary'!$A$24:$A$33,$J33,'FAR Dep Summary'!$E$24:$E$33) -> 14196.59267 | Q33: =+SUMIF('FAR Dep Summary'!$A$24:$A$33,$J33,'FAR Dep Summary'!$F$24:$F$33) -> 33321.08733 | S33: Service Truck | T33: =+SUMIF('Bud Capital Input'!$L$57:$L$71,$S33,'Bud Capital Input'!M$57)*M93 -> 0 | U33: 0 | V33: =+T33-U33 -> 0 | W33: 0 | X33: 0 | Y33: 0 | Z33: 0 | AB33: =+J33 -> Service Truck | AC33: =+B33+K33+T33 -> 69715.68 | AD33: =+C33+L33 -> 0 | AE33: =+D33+M33+V33 -> 69715.68 | AF33: =+E33+N33+W33 -> 9503.536 | AG33: =+F33+O33+X33 -> 26036.47333 | AH33: =+G33+P33+Y33 -> 36394.59267 | AI33: =+H33+Q33+Z33 -> 33321.08733
A35: Shop Equipment | B35: =+SUMIF('Pre Acquisition Assets'!$C:$C,$A35,'Pre Acquisition Assets'!M:M) -> 27219 | C35: 0 | D35: =+B35-C35 -> 27219 | E35: =+SUMIF('Pre Acquisition Assets'!$C:$C,$A35,'Pre Acquisition Assets'!Q:Q) -> 0 | F35: =+SUMIF('Pre Acquisition Assets'!$C:$C,$A35,'Pre Acquisition Assets'!V:V) -> 27219 | G35: =+SUMIF('Pre Acquisition Assets'!$C:$C,$A35,'Pre Acquisition Assets'!Z:Z) -> 27219 | H35: =+SUMIF('Pre Acquisition Assets'!C:C,A35,'Pre Acquisition Assets'!AA:AA) -> 0 | J35: Shop Equipment | K35: =+SUMIF('FAR Dep Summary'!$A$24:$A$33,$J35,'FAR Dep Summary'!$B$24:$B$33) -> 111922.44 | L35: 0 | M35: =+K35-L35 -> 111922.44 | N35: =+SUMIF('FAR Dep Summary'!$A$24:$A$33,$J35,'FAR Dep Summary'!$C$24:$C$33) -> 17146.59767 | O35: =+SUMIF('FAR Dep Summary'!$A$24:$A$33,$J35,'FAR Dep Summary'!$D$24:$D$33) -> 2875.65 | P35: =+SUMIF('FAR Dep Summary'!$A$24:$A$33,$J35,'FAR Dep Summary'!$E$24:$E$33) -> 20022.24767 | Q35: =+SUMIF('FAR Dep Summary'!$A$24:$A$33,$J35,'FAR Dep Summary'!$F$24:$F$33) -> 91900.19233 | S35: Shop Equipment | T35: =+SUMIF('Bud Capital Input'!$L$57:$L$71,$S35,'Bud Capital Input'!M$57)*M95 -> 0 | U35: 0 | V35: =+T35-U35 -> 0 | W35: 0 | X35: 0 | Y35: 0 | Z35: 0 | AB35: =+J35 -> Shop Equipment | AC35: =+B35+K35+T35 -> 139141.44 | AD35: =+C35+L35 -> 0 | AE35: =+D35+M35+V35 -> 139141.44 | AF35: =+E35+N35+W35 -> 17146.59767 | AG35: =+F35+O35+X35 -> 30094.65 | AH35: =+G35+P35+Y35 -> 47241.24767 | AI35: =+H35+Q35+Z35 -> 91900.19233
A37: Office Equipment | B37: =+SUMIF('Pre Acquisition Assets'!$C:$C,$A37,'Pre Acquisition Assets'!M:M) -> 45545 | C37: 0 | D37: =+B37-C37 -> 45545 | E37: =+SUMIF('Pre Acquisition Assets'!$C:$C,$A37,'Pre Acquisition Assets'!Q:Q) -> 0 | F37: =+SUMIF('Pre Acquisition Assets'!$C:$C,$A37,'Pre Acquisition Assets'!V:V) -> 45545 | G37: =+SUMIF('Pre Acquisition Assets'!$C:$C,$A37,'Pre Acquisition Assets'!Z:Z) -> 45545 | H37: =+SUMIF('Pre Acquisition Assets'!C:C,A37,'Pre Acquisition Assets'!AA:AA) -> 0 | J37: Office Equipment | K37: =+SUMIF('FAR Dep Summary'!$A$24:$A$33,$J37,'FAR Dep Summary'!$B$24:$B$33) -> 7105.73 | L37: 0 | M37: =+K37-L37 -> 7105.73 | N37: =+SUMIF('FAR Dep Summary'!$A$24:$A$33,$J37,'FAR Dep Summary'!$C$24:$C$33) -> 2035.101333 | O37: =+SUMIF('FAR Dep Summary'!$A$24:$A$33,$J37,'FAR Dep Summary'!$D$24:$D$33) -> 449.2160556 | P37: =+SUMIF('FAR Dep Summary'!$A$24:$A$33,$J37,'FAR Dep Summary'!$E$24:$E$33) -> 2484.317389 | Q37: =+SUMIF('FAR Dep Summary'!$A$24:$A$33,$J37,'FAR Dep Summary'!$F$24:$F$33) -> 4621.412611 | S37: Office Equipment | T37: =+SUMIF('Bud Capital Input'!$L$57:$L$71,$S37,'Bud Capital Input'!M$57)*M97 -> 0 | U37: 0 | V37: =+T37-U37 -> 0 | W37: 0 | X37: 0 | Y37: 0 | Z37: 0 | AB37: =+J37 -> Office Equipment | AC37: =+B37+K37+T37 -> 52650.73 | AD37: =+C37+L37 -> 0 | AE37: =+D37+M37+V37 -> 52650.73 | AF37: =+E37+N37+W37 -> 2035.101333 | AG37: =+F37+O37+X37 -> 45994.21606 | AH37: =+G37+P37+Y37 -> 48029.31739 | AI37: =+H37+Q37+Z37 -> 4621.412611
A39: Leasehold Improvements | B39: =+SUMIF('Pre Acquisition Assets'!$C:$C,$A39,'Pre Acquisition Assets'!M:M) -> 16871 | C39: 0 | D39: =+B39-C39 -> 16871 | E39: =+SUMIF('Pre Acquisition Assets'!$C:$C,$A39,'Pre Acquisition Assets'!Q:Q) -> 0 | F39: =+SUMIF('Pre Acquisition Assets'!$C:$C,$A39,'Pre Acquisition Assets'!V:V) -> 16871 | G39: =+SUMIF('Pre Acquisition Assets'!$C:$C,$A39,'Pre Acquisition Assets'!Z:Z) -> 16871 | H39: =+SUMIF('Pre Acquisition Assets'!C:C,A39,'Pre Acquisition Assets'!AA:AA) -> 0 | J39: Leasehold Improvements | K39: =+SUMIF('FAR Dep Summary'!$A$24:$A$33,$J39,'FAR Dep Summary'!$B$24:$B$33) -> 0 | L39: 0 | M39: =+K39-L39 -> 0 | N39: =+SUMIF('FAR Dep Summary'!$A$24:$A$33,$J39,'FAR Dep Summary'!$C$24:$C$33) -> 0 | O39: =+SUMIF('FAR Dep Summary'!$A$24:$A$33,$J39,'FAR Dep Summary'!$D$24:$D$33) -> 0 | P39: =+SUMIF('FAR Dep Summary'!$A$24:$A$33,$J39,'FAR Dep Summary'!$E$24:$E$33) -> 0 | Q39: =+SUMIF('FAR Dep Summary'!$A$24:$A$33,$J39,'FAR Dep Summary'!$F$24:$F$33) -> 0 | S39: Leasehold Improvements | T39: =+SUMIF('Bud Capital Input'!$L$57:$L$71,$S39,'Bud Capital Input'!M$57)*M99 -> 0 | U39: 0 | V39: =+T39-U39 -> 0 | W39: 0 | X39: 0 | Y39: 0 | Z39: 0 | AB39: =+J39 -> Leasehold Improvements | AC39: =+B39+K39+T39 -> 16871 | AD39: =+C39+L39 -> 0 | AE39: =+D39+M39+V39 -> 16871 | AF39: =+E39+N39+W39 -> 0 | AG39: =+F39+O39+X39 -> 16871 | AH39: =+G39+P39+Y39 -> 16871 | AI39: =+H39+Q39+Z39 -> 0
A41: Land - Hauling | B41: =+SUMIF('Pre Acquisition Assets'!$C:$C,$A41,'Pre Acquisition Assets'!M:M) -> 0 | C41: 0 | D41: =+B41-C41 -> 0 | E41: =+SUMIF('Pre Acquisition Assets'!$C:$C,$A41,'Pre Acquisition Assets'!Q:Q) -> 0 | F41: =+SUMIF('Pre Acquisition Assets'!$C:$C,$A41,'Pre Acquisition Assets'!V:V) -> 0 | G41: =+SUMIF('Pre Acquisition Assets'!$C:$C,$A41,'Pre Acquisition Assets'!Z:Z) -> 0 | H41: =+SUMIF('Pre Acquisition Assets'!C:C,A41,'Pre Acquisition Assets'!AA:AA) -> 0 | J41: Land - Hauling | K41: =+SUMIF('FAR Dep Summary'!$A$24:$A$33,$J41,'FAR Dep Summary'!$B$24:$B$33) -> 0 | L41: 0 | M41: =+K41-L41 -> 0 | N41: =+SUMIF('FAR Dep Summary'!$A$24:$A$33,$J41,'FAR Dep Summary'!$C$24:$C$33) -> 0 | O41: =+SUMIF('FAR Dep Summary'!$A$24:$A$33,$J41,'FAR Dep Summary'!$D$24:$D$33) -> 0 | P41: =+SUMIF('FAR Dep Summary'!$A$24:$A$33,$J41,'FAR Dep Summary'!$E$24:$E$33) -> 0 | Q41: =+SUMIF('FAR Dep Summary'!$A$24:$A$33,$J41,'FAR Dep Summary'!$F$24:$F$33) -> 0 | S41: Land - Hauling | T41: =+SUMIF('Bud Capital Input'!$L$57:$L$71,$S41,'Bud Capital Input'!M$57)*M101 -> 0 | U41: 0 | V41: =+T41-U41 -> 0 | W41: 0 | X41: 0 | Y41: 0 | Z41: 0 | AB41: =+J41 -> Land - Hauling | AC41: =+B41+K41+T41 -> 0 | AD41: =+C41+L41 -> 0 | AE41: =+D41+M41+V41 -> 0 | AF41: =+E41+N41+W41 -> 0 | AG41: =+F41+O41+X41 -> 0 | AH41: =+G41+P41+Y41 -> 0 | AI41: =+H41+Q41+Z41 -> 0
A43: Structure - Hauling Only | B43: =+SUMIF('Pre Acquisition Assets'!$C:$C,$A43,'Pre Acquisition Assets'!M:M) -> 566660 | C43: 0 | D43: =+B43-C43 -> 566660 | E43: =+SUMIF('Pre Acquisition Assets'!$C:$C,$A43,'Pre Acquisition Assets'!Q:Q) -> 18888.66667 | F43: =+SUMIF('Pre Acquisition Assets'!$C:$C,$A43,'Pre Acquisition Assets'!V:V) -> 367687.4833 | G43: =+SUMIF('Pre Acquisition Assets'!$C:$C,$A43,'Pre Acquisition Assets'!Z:Z) -> 386576.15 | H43: =+SUMIF('Pre Acquisition Assets'!C:C,A43,'Pre Acquisition Assets'!AA:AA) -> 180083.85 | J43: Structure - Hauling Only | K43: =+SUMIF('FAR Dep Summary'!$A$24:$A$33,$J43,'FAR Dep Summary'!$B$24:$B$33) -> 0 | L43: 0 | M43: =+K43-L43 -> 0 | N43: =+SUMIF('FAR Dep Summary'!$A$24:$A$33,$J43,'FAR Dep Summary'!$C$24:$C$33) -> 0 | O43: =+SUMIF('FAR Dep Summary'!$A$24:$A$33,$J43,'FAR Dep Summary'!$D$24:$D$33) -> 0 | P43: =+SUMIF('FAR Dep Summary'!$A$24:$A$33,$J43,'FAR Dep Summary'!$E$24:$E$33) -> 0 | Q43: =+SUMIF('FAR Dep Summary'!$A$24:$A$33,$J43,'FAR Dep Summary'!$F$24:$F$33) -> 0 | S43: Structure - Hauling Only | T43: =+SUMIF('Bud Capital Input'!$L$57:$L$71,$S43,'Bud Capital Input'!M$57)*M103 -> 0 | U43: 0 | V43: =+T43-U43 -> 0 | W43: 0 | X43: 0 | Y43: 0 | Z43: 0 | AB43: =+J43 -> Structure - Hauling Only | AC43: =+B43+K43+T43 -> 566660 | AD43: =+C43+L43 -> 0 | AE43: =+D43+M43+V43 -> 566660 | AF43: =+E43+N43+W43 -> 18888.66667 | AG43: =+F43+O43+X43 -> 367687.4833 | AH43: =+G43+P43+Y43 -> 386576.15 | AI43: =+H43+Q43+Z43 -> 180083.85
A45: Transfer Station | J45: Transfer Station | K45: =+SUMIF('FAR Dep Summary'!$A$24:$A$33,$J45,'FAR Dep Summary'!$B$24:$B$33) -> 0 | L45: 0 | M45: =+K45-L45 -> 0 | N45: =+SUMIF('FAR Dep Summary'!$A$24:$A$33,$J45,'FAR Dep Summary'!$C$24:$C$33) -> 0 | O45: =+SUMIF('FAR Dep Summary'!$A$24:$A$33,$J45,'FAR Dep Summary'!$D$24:$D$33) -> 0 | P45: =+SUMIF('FAR Dep Summary'!$A$24:$A$33,$J45,'FAR Dep Summary'!$E$24:$E$33) -> 0 | Q45: =+SUMIF('FAR Dep Summary'!$A$24:$A$33,$J45,'FAR Dep Summary'!$F$24:$F$33) -> 0 | S45: Transfer Station | T45: =+SUMIF('Bud Capital Input'!$L$57:$L$71,$S45,'Bud Capital Input'!M$57)*M105 -> 0 | U45: 0 | V45: =+T45-U45 -> 0 | W45: 0 | X45: 0 | Y45: 0 | Z45: 0 | AB45: =+J45 -> Transfer Station | AC45: =+B45+K45+T45 -> 0 | AD45: =+C45+L45 -> 0 | AE45: =+D45+M45+V45 -> 0 | AF45: =+E45+N45+W45 -> 0 | AG45: =+F45+O45+X45 -> 0 | AH45: =+G45+P45+Y45 -> 0 | AI45: =+H45+Q45+Z45 -> 0
A48: Total Other | B48: =SUM(B31:B47) -> 678493 | C48: =SUM(C31:C47) -> 0 | D48: 678493 | E48: 18888.66667 | F48: 478665.9 | G48: 498409.15 | H48: 180083.85 | J48: Total Other | K48: =SUM(K31:K47) -> 166545.85 | L48: =SUM(L31:L47) -> 0 | M48: 166545.85 | N48: 28685.235 | O48: 8017.922722 | P48: 36703.15772 | Q48: 129842.6923 | S48: Total Other | T48: =SUM(T31:T47) -> 0 | U48: =SUM(U31:U47) -> 0 | V48: 0 | W48: 0 | X48: 0 | Y48: 0 | Z48: 0 | AB48: Total Other | AC48: =SUM(AC31:AC47) -> 845038.85 | AD48: =SUM(AD31:AD47) -> 0 | AE48: 845038.85 | AF48: 47573.90167 | AG48: 486683.8227 | AH48: 535112.3077 | AI48: 309926.5423
A50: Total | B50: =B17+B29+B48 -> 4125303 | C50: 0 | D50: 4125303 | E50: 255230.4095 | F50: 2967563.779 | G50: 3241301.288 | H50: 884001.7119 | J50: Total | K50: =K17+K29+K48 -> 325229.11 | L50: 0 | M50: 325229.11 | N50: 48714.56714 | O50: 15999.17344 | P50: 64713.74058 | Q50: 260515.3694 | S50: Total | T50: =T17+T29+T48 -> 190157 | U50: 0 | V50: 190157 | W50: 25206.95238 | X50: 0 | Y50: 25206.95238 | Z50: 164950.0476 | AB50: Total | AC50: =AC17+AC29+AC48 -> 4640689.11 | AD50: 0 | AE50: 4640689.11 | AF50: 329151.929 | AG50: 2983562.952 | AH50: 3331221.981 | AI50: 1309467.129
A52: Check | B52: =+'Pre Acquisition Assets'!M143-B50 -> 0 | D52: =+'Pre Acquisition Assets'!O143-D50 -> 0 | E52: =+'Pre Acquisition Assets'!Q143-E50 -> 0 | F52: =+'Pre Acquisition Assets'!V143-F50 -> 0 | G52: =+'Pre Acquisition Assets'!Z143-G50 -> 0 | H52: =+'Pre Acquisition Assets'!AA143-H50 -> 0 | J52: Check | K52: =+'FAR Dep Summary'!B32-'Depr Summary'!K50 -> 0 | N52: =+'FAR Dep Summary'!C32-'Depr Summary'!N50 -> 0 | O52: =+'FAR Dep Summary'!D32-'Depr Summary'!O50 -> 0 | P52: =+'FAR Dep Summary'!E32-'Depr Summary'!P50 -> 0 | Q52: =+'FAR Dep Summary'!F32-'Depr Summary'!Q50 -> 0 | S52: Check | T52: =+'Bud Capital Input'!O62-T50 -> 0 | W52: =+'Bud Capital Input'!Q62-W50 -> 0 | Z52: =+'Bud Capital Input'!S62-Z50 -> 0 | AB52: Check | AC52: =AC50-B50-K50-T50 -> -6.4028427e-10 | AD52: =AD50-C50-L50-U50 -> 0 | AE52: -6.4028427e-10 | AF52: 0 | AG52: 1.382431947e-10 | AH52: 2.764863893e-10 | AI52: =AI50-H50-Q50-Z50 -> 0

Sheet FAR Dep Summary
A4: Live Pivot
A5: Pre Acquisistion Add? | B5: No
A7: Row Labels | B7: Sum of Cost | C7: Sum of Test Year Dep | D7: Sum of BOY Accum | E7: Sum of EOY Accum | F7: Sum of EOY Average Investment
A8: Drop Boxes | B8: 40198.08 | C8: 2812.401667 | D8: 6449.26 | E8: 9261.661667 | F8: 30936.41833
A9: Garbage Trucks | B9: 1525 | C9: 508.3333333 | D9: 0 | E9: 508.3333333 | F9: 1016.666667
A10: Office Equipment | B10: 7105.73 | C10: 2035.101333 | D10: 449.2160556 | E10: 2484.317389 | F10: 4621.412611
A11: Service Truck | B11: 47517.68 | C11: 9503.536 | D11: 4693.056667 | E11: 14196.59267 | F11: 33321.08733
A12: Shop Equipment | B12: 111922.44 | C12: 17146.59767 | D12: 2875.65 | E12: 20022.24767 | F12: 91900.19233
A13: Roll-off Truck | B13: 74064.44 | C13: 10580.63429 | D13: 0 | E13: 10580.63429 | F13: 63483.80571
A14: Garbage Carts | B14: 42895.74 | C14: 6127.962857 | D14: 1531.990714 | E14: 7659.953571 | F14: 35235.78643
A15: Grand Total | B15: 325229.11 | C15: 48714.56714 | D15: 15999.17344 | E15: 64713.74058 | F15: 260515.3694
A22: Pasted Values
A24: Row Labels | B24: Sum of Cost | C24: Sum of Test Year Dep | D24: Sum of BOY Accum | E24: Sum of EOY Accum | F24: Sum of EOY Average Investment
A25: Drop Boxes | B25: 40198.08 | C25: 2812.401667 | D25: 6449.26 | E25: 9261.661667 | F25: 30936.41833
A26: Garbage Trucks | B26: 1525 | C26: 508.3333333 | D26: 0 | E26: 508.3333333 | F26: 1016.666667
A27: Office Equipment | B27: 7105.73 | C27: 2035.101333 | D27: 449.2160556 | E27: 2484.317389 | F27: 4621.412611
A28: Service Truck | B28: 47517.68 | C28: 9503.536 | D28: 4693.056667 | E28: 14196.59267 | F28: 33321.08733
A29: Shop Equipment | B29: 111922.44 | C29: 17146.59767 | D29: 2875.65 | E29: 20022.24767 | F29: 91900.19233
A30: Roll-off Truck | B30: 74064.44 | C30: 10580.63429 | D30: 0 | E30: 10580.63429 | F30: 63483.80571
A31: Garbage Carts | B31: 42895.74 | C31: 6127.962857 | D31: 1531.990714 | E31: 7659.953571 | F31: 35235.78643
A32: Grand Total | B32: 325229.11 | C32: 48714.56714 | D32: 15999.17344 | E32: 64713.74058 | F32: 260515.3694
B33: =+B32-B15 -> 0 | C33: =+C32-C15 -> 0 | D33: 0 | E33: 0 | F33: 0

Sheet FAR 04.30.2023
B1: Location | C1: AssetID | D1: ParentChild | E1: Description | F1: SystemNo | H1: MFGSerialNum | I1: LicensePlate | J1: ModelYear | K1: VendorMfg | L1: BodyManuf | M1: InsuranceCategory | N1: InServiceDate | O1: AcquisitionDate | P1: PONumber | Q1: EstimatedLife | R1: AssetGL | S1: AcqValue | T1: AccumulatedGL | U1: CurrentLifeToDate | W1: CurrentYearToDate | X1: ExpenseGL | Y1: CurrentPeriodDepr | Z1: AcqType | AA1: FormerCompany | AB1: InvoiceNum | AC1: CompAsstNo | AD1: Book | AE1: ActivityCd | AF1: DeprMethod | AG1: BegLsDeprDate | AH1: LongName | AI1: Sequence | AJ1: BegLifeToDate
V2: =S2-U2 -> 0
B3: =_xll.ReportRange("FARReport",A14:AJ148,A1:AJ1,A2:AJ2,_xll.Param($C$9,$C$10,C12,$M$9,$M$10,$M$11,$S$9,M12,$Y$10,$Y$9,S10,S11,CELL("address",$E$6)),TRUE,FALSE) -> OK!: ReportRange Formula OK [jAction{}] | L3: Default Month : | M3: =MONTH(NOW()) -> 6 | S3: =_xll.ReportDrill([3]ProjDepr!D3,,_xll.PairGroup(_xll.Pair('FAR 04.30.2023'!C9,[3]ProjDepr!D19),_xll.Pair("C:B",[3]ProjDepr!D20),_xll.Pair("C:C",[3]ProjDepr!D21),_xll.Pair("C:V",[3]ProjDepr!D22)),"Projected Depr") -> OK!: ReportDrill 'Projected Depr' Formula OK [jAction{}] | Y3: =_xll.jFreezePanes(A14,A5) -> > jFreezePanes is ready. | AB3: =_xll.jFocus(C9) -> > jFocus is ready.
L4: Default Year : | M4: =IF(M3=12,YEAR(NOW()),YEAR(NOW())) -> 2023 | S4: reportdrill(Invoice!C2,,pairgroup(pair("C:C",Invoice!E8),pair("",Invoice!E7,"N")),"Drill To Invoices by FAS# (Exc CIP)") | U4: =_xll.ReportDrill([3]Invoice!$C$2,,_xll.PairGroup(_xll.Pair("C:P",[3]Invoice!$E$7),_xll.Pair("",[3]Invoice!$E$8,"N"),_xll.Pair("",[3]Invoice!$E$9,"n")),"Drill To All Invoices by PO#") -> OK!: ReportDrill 'Drill To All Invoices by PO#' Formula OK [jAction{}] | X4: =_xll.ReportDrill([3]Invoice!$C$2,,_xll.PairGroup(_xll.Pair("C:P",[3]Invoice!$E$7),_xll.Pair("",[3]Invoice!$E$8,"N"),_xll.Pair("C:Z",[3]Invoice!$E$9,"n")),"Drill to Invoice by PO# and Invoice #") -> OK!: ReportDrill 'Drill to Invoice by PO# and Invoice #' Formula OK [jAction{}]
B5: Fixed Asset Register | H5: Asset Count: | I5: =COUNT(C14:C148) -> 134 | AK5: 5 | AL5: Test Period Beg. Month
B6: Data Last Updated in this Pull: | E6: May 8 2023 8:39AM | AK6: 4 | AL6: Test Period End Month
AK7: 2022 | AL7: First Year
AK8: 2023 | AL8: Second year
B9: Period: | C9: 2023-04 | F9: Ctrl + Shift + J | L9: VIN: | O9: (Contains the string) | R9: Parent/Child: | T9: (Leave blank for all) | X9: Service Date To: | AK9: =+AK8+(AK6/12) -> 2023.333333 | AL9: Test Period End Mo/Yr
B10: District: | C10: 2178 | E10: (F9 Aware) | L10: Description: | O10: (Contains the string) | R10: Asset Acct: | X10: Service Date From: | AK10: =+AK7+(AK5/12) -> 2022.416667 | AL10: Test Period Beg. Mo/Yr
L11: PO Number: | O11: (Contains the string) | R11: Exp Acct:
B12: Asset #: | L12: Ins Category: | O12: (Not setup yet) | R12: Depreciated %: | T12: (Not setup yet)
B13: District | C13: Asset # | D13: Parent/ Child | E13: Descr | F13: Container Count | G13: NA | H13: MFG Serial# | I13: License Plate | J13: Model Year | K13: Vendor/Mfg | L13: Body Mfg | M13: Ins Category | N13: In Service Date | O13: Acq Date | P13: CER # | Q13: Useful Life | R13: Asset Account | S13: Cost | T13: Accum Account | U13: Accum Life to Date | V13: NBV | W13: Accum YTD | X13: Expense Account | Y13: Current Depr | Z13: Acq Type | AA13: Former Company | AB13: Invoice # | AC13: Company Asset # | AD13: Book | AE13: Activity Cd | AF13: Depr Meth | AG13: Beg Date | AH13: Dbase | AI13: Seq | AJ13: Beg Depr | AK13: Truck # | AL13: Equipment Type for Lookup | AM13: Month | AN13: YearPIS | AO13: Year Fully Dep | AP13: Year/Mo Fully Dep | AQ13: Monthly Dep | AR13: Annual Dep | AS13: Test Year Dep | AT13: BOY Accum | AU13: EOY Accum | AV13: EOY Average Investment | AW13: Pre Acquisistion Add?
B14: 2178 | C14: 304030 | D14: P | E14: 2022 Galbreath T5 Pup Trailer | H14: 1W9SR2533PC269294 | J14: 0 | M14: Trailer | N14: 2023-04-01 | O14: 2023-04-01 | P14: 2178-23-0004-1 | Q14: 700 | R14: 14040 | S14: 74064.44 | T14: 14046 | U14: 881.72 | V14: =S14-U14 -> 73182.72 | W14: 881.72 | X14: 51260 | Y14: 881.72 | Z14: P | AD14: Internal | AE14: A | AF14: SL | AH14: WCNX | AI14: 0 | AJ14: 0 | AK14: DBT3 | AL14: Roll-off Truck | AM14: =MONTH($N14) -> 4 | AN14: =YEAR($N14) -> 2023 | AO14: =$AN14+($Q14/100) -> 2030 | AP14: =$AO14+($AM14/12) -> 2030.333333 | AQ14: =IFERROR($S14/($Q14/100)/12,0) -> 881.7195238 | AR14: =$AQ14*12 -> 10580.63429 | AS14: =+IF(AP14<=$AK$9,0,AR14) -> 10580.63429 | AT14: =+IF(AP14<=$AK$10,S14,IF((AN14+(AM14/12))>=$AK$10,0,((S14-((AP14-$AK$10)*12)*AQ14)))) -> 0 | AU14: =IF($AS14=0,S14,($AS14+$AT14)) -> 10580.63429 | AV14: =$S14-$AU14 -> 63483.80571 | AW14: No
B15: 2178 | C15: 299026 | D15: P | E15: HP ProBook 450 G9 Notebook - SN: 5CD2428C6F | F15: 1 | J15: 0 | K15: CDW DIR #2178 | N15: 2023-01-20 | O15: 2023-01-20 | P15: 2178-23-0005-1 | Q15: 300 | R15: 14110 | S15: 1312.04 | T15: 14116 | U15: 109.34 | V15: 1202.7 | W15: 109.34 | X15: 70260 | Y15: 36.45 | Z15: P | AB15: NA | AD15: Internal | AE15: A | AF15: SL | AH15: WCNX | AI15: 0 | AJ15: 0 | AL15: Office Equipment | AM15: =MONTH($N15) -> 1 | AN15: =YEAR($N15) -> 2023 | AO15: =$AN15+($Q15/100) -> 2026 | AP15: =$AO15+($AM15/12) -> 2026.083333 | AQ15: =IFERROR($S15/($Q15/100)/12,0) -> 36.44555556 | AR15: =$AQ15*12 -> 437.3466667 | AS15: =+IF(AP15<=$AK$9,0,AR15) -> 437.3466667 | AT15: =+IF(AP15<=$AK$10,S15,IF((AN15+(AM15/12))>=$AK$10,0,((S15-((AP15-$AK$10)*12)*AQ15)))) -> 0 | AU15: =IF($AS15=0,S15,($AS15+$AT15)) -> 437.3466667 | AV15: =$S15-$AU15 -> 874.6933333 | AW15: No
B16: 2178 | C16: 296023 | D16: 293636 | E16: Stationary Air Compressor/Generator Item #4NB87 | H16: 3C7WR5AJ5NG222964 | J16: 2022 | K16: TONKIN HILLSBORO | L16: RAM 2500 | M16: Non-Rolling Stock | N16: 2022-11-10 | O16: 2022-11-10 | P16: 2178-22-0009-1 | Q16: 300 | R16: 14040 | S16: 4110.86 | T16: 14046 | U16: 685.14 | V16: 3425.72 | W16: 456.76 | X16: 51260 | Y16: 114.19 | Z16: P | AB16: 1466359441 | AD16: Internal | AE16: A | AF16: SL | AH16: WCNX | AI16: 0 | AJ16: 0 | AK16: ST1 | AL16: Shop Equipment | AM16: 11 | AN16: 2022 | AO16: 2025 | AP16: 2025.916667 | AQ16: 114.1905556 | AR16: 1370.286667 | AS16: 1370.286667 | AT16: 0 | AU16: 1370.286667 | AV16: 2740.573333 | AW16: No
B17: 2178 | C17: 295133 | D17: P | E17: GeoTab Units | F17: 16 | J17: 0 | K17: ASSURED TELEMATICS INC | N17: 2022-12-15 | O17: 2022-12-15 | P17: 2178-22-0008-1 | Q17: 300 | R17: 14110 | S17: 1525 | T17: 14116 | U17: 211.8 | V17: 1313.2 | W17: 169.44 | X17: 70260 | Y17: 42.36 | Z17: P | AB17: 98552 | AD17: Internal | AE17: A | AF17: SL | AH17: WCNX | AI17: 0 | AJ17: 0 | AK17: MULTI | AL17: Garbage Trucks | AM17: 12 | AN17: 2022 | AO17: 2025 | AP17: 2026 | AQ17: 42.36111111 | AR17: 508.3333333 | AS17: 508.3333333 | AT17: 0 | AU17: 508.3333333 | AV17: 1016.666667 | AW17: No
B18: 2178 | C18: 293636 | D18: P | E18: 2022 Ram 2500 Service Truck | H18: 3C7WR5AJ5NG222964 | J18: 2022 | K18: TONKIN HILLSBORO | L18: RAM 2500 | M18: Service Truck | N18: 2022-11-10 | O18: 2022-11-10 | P18: 2178-22-0009-1 | Q18: 1000 | R18: 14040 | S18: 73817.35 | T18: 14046 | U18: 3690.87 | V18: 70126.48 | W18: 2460.58 | X18: 51260 | Y18: 615.14 | Z18: P | AB18: 17701 | AD18: Internal | AE18: A | AF18: SL | AH18: WCNX | AI18: 0 | AJ18: 0 | AK18: ST1 | AL18: Shop Equipment | AM18: 11 | AN18: 2022 | AO18: 2032 | AP18: 2032.916667 | AQ18: 615.1445833 | AR18: 7381.735 | AS18: 7381.735 | AT18: 0 | AU18: 7381.735 | AV18: 66435.615 | AW18: No
B19: 2178 | C19: 287690 | D19: P | E19: C2GW-August Goodwill | J19: 0 | N19: 2022-08-01 | O19: 2022-08-01 | Q19: 0 | R19: 15110 | S19: -18253.39 | T19: 15120 | U19: 0 | V19: -18253.39 | W19: 0 | X19: 70269 | Y19: 0 | Z19: A | AA19: Peninsula Sanitation | AD19: Internal | AE19: A | AF19: NO | AH19: WCNX | AI19: 0 | AJ19: 0 | AK19: 0 | AL19: Intangibles | AW19: Yes
B20: 2178 | C20: 287375 | D20: 284802 | E20: Tax on 30YD RO Boxes | F20: 2 | J20: 0 | K20: CAPITAL INDUSTRIES INC | M20: Non-Container Audit | N20: 2022-06-30 | O20: 2022-06-30 | P20: 2178-22-0006-1 | Q20: 1200 | R20: 14050 | S20: 1412.64 | T20: 14056 | U20: 98.1 | V20: 1314.54 | W20: 39.24 | X20: 54260 | Y20: 9.81 | Z20: P | AB20: 173823A | AD20: Internal | AE20: A | AF20: SL | AH20: WCNX | AI20: 0 | AJ20: 0 | AK20: 0 | AL20: Drop Boxes | AM20: =MONTH($N20) -> 6 | AN20: =YEAR($N20) -> 2022 | AO20: =$AN20+($Q20/100) -> 2034 | AP20: =$AO20+($AM20/12) -> 2034.5 | AQ20: =IFERROR($S20/($Q20/100)/12,0) -> 9.81 | AR20: =$AQ20*12 -> 117.72 | AS20: =+IF(AP20<=$AK$9,0,AR20) -> 117.72 | AT20: =+IF(AP20<=$AK$10,S20,IF((AN20+(AM20/12))>=$AK$10,0,((S20-((AP20-$AK$10)*12)*AQ20)))) -> 0 | AU20: =IF($AS20=0,S20,($AS20+$AT20)) -> 117.72 | AV20: =$S20-$AU20 -> 1294.92 | AW20: No
B21: 2178 | C21: 287374 | D21: 284792 | E21: Tax on 20YD RO Boxes | F21: 2 | J21: 0 | K21: CAPITAL INDUSTRIES INC | M21: Non-Container Audit | N21: 2022-06-30 | O21: 2022-06-30 | P21: 2178-22-0006-1 | Q21: 1200 | R21: 14050 | S21: 1116.18 | T21: 14056 | U21: 77.52 | V21: 1038.66 | W21: 31.01 | X21: 54260 | Y21: 7.75 | Z21: P | AB21: 173822A | AD21: Internal | AE21: A | AF21: SL | AH21: WCNX | AI21: 0 | AJ21: 0 | AK21: 0 | AL21: Drop Boxes | AM21: 6 | AN21: 2022 | AO21: 2034 | AP21: 2034.5 | AQ21: 7.75125 | AR21: 93.015 | AS21: 93.015 | AT21: 0 | AU21: 93.015 | AV21: 1023.165 | AW21: No
B22: 2178 | C22: 284802 | D22: P | E22: 30YD RO Boxes | F22: 2 | J22: 0 | K22: CAPITAL INDUSTRIES INC | M22: 30 YD RO Box | N22: 2022-06-30 | O22: 2022-06-30 | P22: 2178-22-0006-1 | Q22: 1200 | R22: 14050 | S22: 17440 | T22: 14056 | U22: 1211.11 | V22: 16228.89 | W22: 484.44 | X22: 54260 | Y22: 121.11 | Z22: P | AB22: 173823 | AD22: Internal | AE22: A | AF22: SL | AH22: WCNX | AI22: 0 | AJ22: 0 | AK22: 0 | AL22: Drop Boxes | AM22: 6 | AN22: 2022 | AO22: 2034 | AP22: 2034.5 | AQ22: 121.1111111 | AR22: 1453.333333 | AS22: 1453.333333 | AT22: 0 | AU22: 1453.333333 | AV22: 15986.66667 | AW22: No
B23: 2178 | C23: 284792 | D23: P | E23: 20YD RO Boxes | F23: 2 | J23: 0 | K23: CAPITAL INDUSTRIES INC | M23: 20 YD RO Box | N23: 2022-06-30 | O23: 2022-06-30 | P23: 2178-22-0006-1 | Q23: 1200 | R23: 14050 | S23: 13780 | T23: 14056 | U23: 956.95 | V23: 12823.05 | W23: 382.78 | X23: 54260 | Y23: 95.7 | Z23: P | AB23: 173822 | AD23: Internal | AE23: A | AF23: SL | AH23: WCNX | AI23: 0 | AJ23: 0 | AK23: 0 | AL23: Drop Boxes | AM23: 6 | AN23: 2022 | AO23: 2034 | AP23: 2034.5 | AQ23: 95.69444444 | AR23: 1148.333333 | AS23: 1148.333333 | AT23: 0 | AU23: 1148.333333 | AV23: 12631.66667 | AW23: No
B24: 2178 | C24: 283492 | D24: P | E24: Laptop for Maint Sup SN: 5CD2159W57 | F24: 1 | J24: 0 | K24: CDW DIR #PO 2178-22-0 | N24: 2022-06-02 | O24: 2022-06-02 | P24: 2178-22-0007-1 | Q24: 300 | R24: 14110 | S24: 1459.08 | T24: 14116 | U24: 445.83 | V24: 1013.25 | W24: 162.12 | X24: 70260 | Y24: 40.53 | Z24: P | AB24: Z066342 | AD24: Internal | AE24: A | AF24: SL | AH24: WCNX | AI24: 0 | AJ24: 0 | AK24: 0 | AL24: Shop Equipment | AM24: 6 | AN24: 2022 | AO24: 2025 | AP24: 2025.5 | AQ24: 40.53 | AR24: 486.36 | AS24: 486.36 | AT24: 0 | AU24: 486.36 | AV24: 972.72 | AW24: No
B25: 2178 | C25: 280400 | D25: P | E25: 20 YD RO Box | F25: 1 | J25: 0 | N25: 2008-11-03 | O25: 2008-11-03 | Q25: 700 | R25: 14050 | S25: 87.05 | T25: 14056 | U25: 87.05 | V25: 0 | W25: 0 | X25: 54260 | Y25: 0 | Z25: A | AA25: LeMay Enterprises | AD25: Internal | AE25: A | AF25: SL | AG25: 2022-04-30 | AH25: WCNX | AI25: 0 | AJ25: 87.05 | AK25: 0 | AL25: Drop Boxes | AM25: 11 | AN25: 2008 | AO25: 2015 | AP25: 2015.916667 | AQ25: 1.036309524 | AR25: 12.43571429 | AS25: 0 | AT25: 87.05 | AU25: 87.05 | AV25: 0 | AW25: No
B26: 2178 | C26: 279840 | D26: P | E26: 30 Yard box | F26: 3 | H26: 0 | J26: 0 | K26: ENTERPRISE SALES, INC. | M26: 30 YD RO Box | N26: 2007-06-11 | O26: 2007-06-11 | P26: 07-2112-003 | Q26: 1200 | R26: 14050 | S26: 6362.21 | T26: 14056 | U26: 6362.21 | V26: 0 | W26: 0 | X26: 54260 | Y26: 0 | Z26: P | AB26: 3405 | AD26: Internal | AE26: A | AF26: SL | AG26: 2022-04-30 | AH26: WCNX | AI26: 0 | AJ26: 6362.21 | AK26: 0 | AL26: Drop Boxes | AM26: 6 | AN26: 2007 | AO26: 2019 | AP26: 2019.5 | AQ26: 44.18201389 | AR26: 530.1841667 | AS26: 0 | AT26: 6362.21 | AU26: 6362.21 | AV26: 0 | AW26: No
B27: 2178 | C27: 278662 | D27: P | E27: Shop Laptop - Diagnostic Cable | F27: 1 | J27: 0 | K27: Jackson Group Peterbilt | N27: 2022-04-14 | O27: 2022-04-14 | P27: 2178-22-0004-1 | Q27: 300 | R27: 14110 | S27: 3774.96 | T27: 14116 | U27: 1363.18 | V27: 2411.78 | W27: 419.44 | X27: 70260 | Y27: 104.86 | Z27: P | AB27: 23297K | AD27: Internal | AE27: A | AF27: SL | AH27: WCNX | AI27: 0 | AJ27: 0 | AK27: 0 | AL27: Shop Equipment | AM27: 4 | AN27: 2022 | AO27: 2025 | AP27: 2025.333333 | AQ27: 104.86 | AR27: 1258.32 | AS27: 1258.32 | AT27: 104.86 | AU27: 1363.18 | AV27: 2411.78 | AW27: No
B28: 2178 | C28: 276457 | D28: P | E28: Peninsula Sanitation DTL - Tax C/O Fixed Assets Q1 '22 | J28: 0 | N28: 2022-03-31 | O28: 2022-03-31 | Q28: 0 | R28: 15110 | S28: -147795 | T28: 15120 | U28: 0 | V28: -147795 | W28: 0 | X28: 70268 | Y28: 0 | Z28: A | AA28: Pacific Solid Waste | AD28: Internal | AE28: A | AF28: NO | AH28: WCNX | AI28: 0 | AJ28: 0 | AK28: 0 | AL28: Intangibles | AW28: Yes
B29: 2178 | C29: 276001 | D29: P | E29: Shop 10 ton Maintenance Set | F29: 1 | J29: 0 | K29: Grainger | N29: 2022-03-22 | O29: 2022-03-22 | P29: 2178-22-0005-1 | Q29: 500 | R29: 14070 | S29: 3558.84 | T29: 14076 | U29: 771.08 | V29: 2787.76 | W29: 237.26 | X29: 51260 | Y29: 59.32 | Z29: P | AB29: 1440707389 | AD29: Internal | AE29: A | AF29: SL | AH29: WCNX | AI29: 0 | AJ29: 0 | AK29: 0 | AL29: Office Equipment | AM29: =MONTH($N29) -> 3 | AN29: =YEAR($N29) -> 2022 | AO29: =$AN29+($Q29/100) -> 2027 | AP29: =$AO29+($AM29/12) -> 2027.25 | AQ29: =IFERROR($S29/($Q29/100)/12,0) -> 59.314 | AR29: =$AQ29*12 -> 711.768 | AS29: =+IF(AP29<=$AK$9,0,AR29) -> 711.768 | AT29: =+IF(AP29<=$AK$10,S29,IF((AN29+(AM29/12))>=$AK$10,0,((S29-((AP29-$AK$10)*12)*AQ29)))) -> 118.628 | AU29: =IF($AS29=0,S29,($AS29+$AT29)) -> 830.396 | AV29: =$S29-$AU29 -> 2728.444 | AW29: No
B30: 2178 | C30: 275231 | D30: P | E30: 65gal MSW Totes | F30: 330 | I30: 94-3283464 | J30: 0 | K30: REHRIG PACIFIC COMPANY IN | M30: Non-Container Audit | N30: 2022-02-28 | O30: 2022-02-28 | P30: 2178-22-0001-1 | Q30: 700 | R30: 14050 | S30: 20180.22 | T30: 14056 | U30: 3363.37 | V30: 16816.85 | W30: 960.96 | X30: 54260 | Y30: 240.24 | Z30: P | AB30: 50226410 | AD30: Internal | AE30: A | AF30: SL | AH30: WCNX | AI30: 0 | AJ30: 0 | AK30: 0 | AL30: Garbage Carts | AM30: 2 | AN30: 2022 | AO30: 2029 | AP30: 2029.166667 | AQ30: 240.2407143 | AR30: 2882.888571 | AS30: 2882.888571 | AT30: 720.7221429 | AU30: 3603.610714 | AV30: 16576.60929 | AW30: No
B31: 2178 | C31: 275230 | D31: P | E31: 95gal MSW Totes | F31: 336 | I31: 94-3283464 | J31: 0 | K31: REHRIG PACIFIC COMPANY IN | M31: Non-Container Audit | N31: 2022-02-28 | O31: 2022-02-28 | P31: 2178-22-0001-1 | Q31: 700 | R31: 14050 | S31: 22715.52 | T31: 14056 | U31: 3785.92 | V31: 18929.6 | W31: 1081.69 | X31: 54260 | Y31: 270.42 | Z31: P | AB31: 50226410 | AD31: Internal | AE31: A | AF31: SL | AH31: WCNX | AI31: 0 | AJ31: 0 | AK31: 0 | AL31: Garbage Carts | AM31: 2 | AN31: 2022 | AO31: 2029 | AP31: 2029.166667 | AQ31: 270.4228571 | AR31: 3245.074286 | AS31: 3245.074286 | AT31: 811.2685714 | AU31: 4056.342857 | AV31: 18659.17714 | AW31: No
B32: 2178 | C32: 274706 | D32: P | E32: C2GW-February Goodwill | J32: 0 | N32: 2022-02-01 | O32: 2022-02-01 | Q32: 0 | R32: 15110 | S32: 1386244.01 | T32: 15120 | U32: 0 | V32: 1386244.01 | W32: 0 | X32: 70268 | Y32: 0 | Z32: A | AA32: Peninsula Sanitation | AD32: Internal | AE32: A | AF32: NO | AH32: WCNX | AI32: 0 | AJ32: 0 | AK32: 0 | AL32: Intangibles | AW32: Yes
B33: 2178 | C33: 274639 | D33: 273337 | E33: Insite Pro (MR/HD) Plus | F33: 1 | J33: 0 | K33: Cummins Inc. | N33: 2022-01-25 | O33: 2022-01-25 | P33: 2178-22-0003-1 | Q33: 300 | R33: 14110 | S33: 337.78 | T33: 14116 | U33: 140.73 | V33: 197.05 | W33: 37.53 | X33: 70260 | Y33: 9.38 | Z33: P | AB33: I-0000151212 | AD33: Internal | AE33: A | AF33: SL | AH33: WCNX | AI33: 0 | AJ33: 0 | AK33: 0 | AL33: Office Equipment | AM33: =MONTH($N33) -> 1 | AN33: =YEAR($N33) -> 2022 | AO33: =$AN33+($Q33/100) -> 2025 | AP33: =$AO33+($AM33/12) -> 2025.083333 | AQ33: =IFERROR($S33/($Q33/100)/12,0) -> 9.382777778 | AR33: =$AQ33*12 -> 112.5933333 | AS33: =+IF(AP33<=$AK$9,0,AR33) -> 112.5933333 | AT33: =+IF(AP33<=$AK$10,S33,IF((AN33+(AM33/12))>=$AK$10,0,((S33-((AP33-$AK$10)*12)*AQ33)))) -> 37.53111111 | AU33: =IF($AS33=0,S33,($AS33+$AT33)) -> 150.1244444 | AV33: =$S33-$AU33 -> 187.6555556 | AW33: No
B34: 2178 | C34: 273536 | D34: P | E34: C2GW-January Goodwill | J34: 0 | N34: 2022-01-01 | O34: 2022-01-01 | Q34: 0 | R34: 15110 | S34: -87959.15 | T34: 15120 | U34: 0 | V34: -87959.15 | W34: 0 | X34: 70268 | Y34: 0 | Z34: A | AA34: Peninsula Sanitation | AD34: Internal | AE34: A | AF34: NO | AH34: WCNX | AI34: 0 | AJ34: 0 | AK34: 0 | AL34: Intangibles | AW34: Yes
B35: 2178 | C35: 273337 | D35: P | E35: HP ProDesk 600 G6 i5 MXL1521KW6 | F35: 1 | J35: 0 | K35: CDW DIR #2178 | N35: 2022-01-25 | O35: 2022-01-25 | P35: 2178-22-0003-1 | Q35: 300 | R35: 14110 | S35: 1050.85 | T35: 14116 | U35: 437.85 | V35: 613 | W35: 116.76 | X35: 70260 | Y35: 29.19 | Z35: P | AB35: R284784 | AD35: Internal | AE35: A | AF35: SL | AH35: WCNX | AI35: 0 | AJ35: 0 | AK35: 0 | AL35: Office Equipment | AM35: =MONTH($N35) -> 1 | AN35: =YEAR($N35) -> 2022 | AO35: =$AN35+($Q35/100) -> 2025 | AP35: =$AO35+($AM35/12) -> 2025.083333 | AQ35: =IFERROR($S35/($Q35/100)/12,0) -> 29.19027778 | AR35: =$AQ35*12 -> 350.2833333 | AS35: =+IF(AP35<=$AK$9,0,AR35) -> 350.2833333 | AT35: =+IF(AP35<=$AK$10,S35,IF((AN35+(AM35/12))>=$AK$10,0,((S35-((AP35-$AK$10)*12)*AQ35)))) -> 116.7611111 | AU35: =IF($AS35=0,S35,($AS35+$AT35)) -> 467.0444444 | AV35: =$S35-$AU35 -> 583.8055556 | AW35: No
B36: 2178 | C36: 272324 | D36: P | E36: Peninsula Sanitation Deferred Tax Liabil | J36: 0 | N36: 2021-12-31 | O36: 2021-12-31 | Q36: 0 | R36: 15110 | S36: 2394046.57 | T36: 15120 | U36: 0 | V36: 2394046.57 | W36: 0 | Y36: 0 | Z36: A | AA36: J&J Services | AD36: Internal | AE36: A | AF36: NO | AH36: WCNX | AI36: 0 | AJ36: 0 | AK36: 0 | AL36: Intangibles | AW36: Yes
B37: 2178 | C37: 272323 | D37: P | E37: Peninsula Sanitation Deferred Tax Liabil | J37: 0 | N37: 2021-12-31 | O37: 2021-12-31 | Q37: 0 | R37: 15110 | S37: 722851.08 | T37: 15120 | U37: 0 | V37: 722851.08 | W37: 0 | Y37: 0 | Z37: A | AA37: Pacific Solid Waste | AD37: Internal | AE37: A | AF37: NO | AH37: WCNX | AI37: 0 | AJ37: 0 | AK37: 0 | AL37: Intangibles | AW37: Yes
B38: 2178 | C38: 272004 | D38: P | E38: C2GW-December Goodwill | J38: 0 | N38: 2021-12-01 | O38: 2021-12-01 | Q38: 0 | R38: 15110 | S38: 30779.49 | T38: 15120 | U38: 0 | V38: 30779.49 | W38: 0 | Y38: 0 | Z38: A | AA38: Pacific Solid Waste | AD38: Internal | AE38: A | AF38: NO | AH38: WCNX | AI38: 0 | AJ38: 0 | AK38: 0 | AL38: Intangibles | AW38: Yes
B39: 2178 | C39: 271883 | D39: 266482 | E39: 2022 Peterbilt 520 RH Drive (Heil Durapack Automated) | H39: 3BPDLJ0X1NF112424 | J39: 0 | M39: Non-Rolling Stock | N39: 2021-11-01 | O39: 2021-11-01 | Q39: 1000 | R39: 14040 | S39: 0 | T39: 14046 | U39: 0 | V39: 0 | W39: 0 | X39: 51260 | Y39: 0 | Z39: A | AA39: Peninsula Sanitation | AC39: 115 | AD39: Internal | AE39: A | AF39: SL | AH39: WCNX | AI39: 0 | AJ39: 0 | AK39: 18 | AW39: Yes
B40: 2178 | C40: 271882 | D40: 266481 | E40: 2022 Peterbilt 520 RH Drive (Heil Durapack Automated) | H40: 3BPDLJ0XXNF112423 | J40: 0 | M40: Non-Rolling Stock | N40: 2021-11-01 | O40: 2021-11-01 | Q40: 1000 | R40: 14040 | S40: 0 | T40: 14046 | U40: 0 | V40: 0 | W40: 0 | X40: 51260 | Y40: 0 | Z40: A | AA40: Peninsula Sanitation | AC40: 114 | AD40: Internal | AE40: A | AF40: SL | AH40: WCNX | AI40: 0 | AJ40: 0 | AK40: 17 | AW40: Yes
B41: 2178 | C41: 271844 | D41: P-Tax | E41: 40-60 Gallon Carts | F41: 40 | J41: 0 | N41: 2021-11-01 | O41: 2021-11-01 | Q41: 0 | R41: 14050 | S41: 0 | T41: 14056 | U41: 0 | V41: 0 | W41: 0 | X41: 54260 | Y41: 0 | Z41: A | AA41: Pacific Solid Waste | AD41: Internal | AE41: A | AF41: NO | AH41: WCNX | AI41: 0 | AJ41: 0 | AK41: 0 | AW41: Yes
B42: 2178 | C42: 271458 | D42: P | E42: Nexiq USB Link 2 | F42: 1 | J42: 0 | K42: SP MARINE DIAG TOOLS | N42: 2021-12-20 | O42: 2021-12-20 | P42: 2178-21-0003-1 | Q42: 200 | R42: 14110 | S42: 846.22 | T42: 14116 | U42: 564.15 | V42: 282.07 | W42: 141.04 | X42: 70260 | Y42: 35.26 | Z42: P | AB42: 106144 | AD42: Internal | AE42: A | AF42: SL | AH42: WCNX | AI42: 0 | AJ42: 0 | AK42: 0 | AL42: Office Equipment | AM42: =MONTH($N42) -> 12 | AN42: =YEAR($N42) -> 2021 | AO42: =$AN42+($Q42/100) -> 2023 | AP42: =$AO42+($AM42/12) -> 2024 | AQ42: =IFERROR($S42/($Q42/100)/12,0) -> 35.25916667 | AR42: =$AQ42*12 -> 423.11 | AS42: =+IF(AP42<=$AK$9,0,AR42) -> 423.11 | AT42: =+IF(AP42<=$AK$10,S42,IF((AN42+(AM42/12))>=$AK$10,0,((S42-((AP42-$AK$10)*12)*AQ42)))) -> 176.2958333 | AU42: =IF($AS42=0,S42,($AS42+$AT42)) -> 599.4058333 | AV42: =$S42-$AU42 -> 246.8141667 | AW42: No
B43: 2178 | C43: 271407 | D43: P | E43: SF300 Event Recorders | F43: 17 | J43: 0 | K43: Lytx | N43: 2021-12-13 | O43: 2021-12-13 | P43: 2178-21-0006-1 | Q43: 500 | R43: 14070 | S43: 5391.49 | T43: 14076 | U43: 1527.59 | V43: 3863.9 | W43: 359.43 | X43: 51260 | Y43: 89.85 | Z43: P | AB43: 5437755 | AD43: Internal | AE43: A | AF43: SL | AH43: WCNX | AI43: 0 | AJ43: 0 | AK43: MULTI | AL43: Shop Equipment | AM43: 12 | AN43: 2021 | AO43: 2026 | AP43: 2027 | AQ43: 89.85816667 | AR43: 1078.298 | AS43: 1078.298 | AT43: 449.2908333 | AU43: 1527.588833 | AV43: 3863.901167 | AW43: No
B44: 2178 | C44: 271406 | D44: P | E44: Shop Jacks and Stands | F44: 3 | J44: 0 | K44: Northern Tool & Equipment | N44: 2021-12-20 | O44: 2021-12-20 | P44: 2178-21-0005-1 | Q44: 500 | R44: 14070 | S44: 5375.72 | T44: 14076 | U44: 1433.52 | V44: 3942.2 | W44: 358.38 | X44: 51260 | Y44: 89.59 | Z44: P | AB44: 93009660 | AD44: Internal | AE44: A | AF44: SL | AH44: WCNX | AI44: 0 | AJ44: 0 | AK44: 0 | AL44: Shop Equipment | AM44: 12 | AN44: 2021 | AO44: 2026 | AP44: 2027 | AQ44: 89.59533333 | AR44: 1075.144 | AS44: 1075.144 | AT44: 447.9766667 | AU44: 1523.120667 | AV44: 3852.599333 | AW44: No
B45: 2178 | C45: 270682 | D45: P | E45: 3rd Eye Camera | F45: 31 | J45: 0 | N45: 2021-12-31 | O45: 2021-12-31 | P45: 1010-21-0039 | Q45: 500 | R45: 14070 | S45: 15000.12 | T45: 14076 | U45: 4000.03 | V45: 11000.09 | W45: 1000.01 | X45: 51260 | Y45: 250 | Z45: P | AD45: Internal | AE45: A | AF45: SL | AH45: WCNX | AI45: 0 | AJ45: 0 | AK45: MULTI | AL45: Shop Equipment | AM45: 12 | AN45: 2021 | AO45: 2026 | AP45: 2027 | AQ45: 250.002 | AR45: 3000.024 | AS45: 3000.024 | AT45: 1250.01 | AU45: 4250.034 | AV45: 10750.086 | AW45: No
B46: 2178 | C46: 270098 | D46: 265060 | E46: Pickup - License and Use Tax | J46: 2021 | K46: N/A | L46: Ford | M46: Non-Rolling Stock | N46: 2021-12-28 | O46: 2021-12-28 | P46: 2178-21-0001-1 | Q46: 500 | R46: 14040 | S46: 3522.68 | T46: 14046 | U46: 939.39 | V46: =S46-U46 -> 2583.29 | W46: 234.85 | X46: 51260 | Y46: 58.71 | Z46: P | AB46: 12282021 | AD46: Internal | AE46: A | AF46: SL | AH46: WCNX | AI46: 0 | AJ46: 0 | AK46: PU2 | AL46: Service Truck | AM46: 12 | AN46: 2021 | AO46: 2026 | AP46: 2027 | AQ46: 58.71133333 | AR46: 704.536 | AS46: 704.536 | AT46: 293.5566667 | AU46: 998.0926667 | AV46: 2524.587333 | AW46: No
B47: 2178 | C47: 267267 | D47: P | E47: NOREGON Panasonic Toughbook | F47: 1 | J47: 0 | K47: NOREGON SYSTEMS INC | N47: 2021-12-13 | O47: 2021-12-13 | P47: 2178-21-0003-1 | Q47: 200 | R47: 14110 | S47: 2992.86 | T47: 14116 | U47: 2119.94 | V47: 872.92 | W47: 498.81 | X47: 70260 | Y47: 124.7 | Z47: P | AB47: INV00108359 | AD47: Internal | AE47: A | AF47: SL | AH47: WCNX | AI47: 0 | AJ47: 0 | AK47: 0 | AL47: Shop Equipment | AM47: 12 | AN47: 2021 | AO47: 2023 | AP47: 2024 | AQ47: 124.7025 | AR47: 1496.43 | AS47: 1496.43 | AT47: 623.5125 | AU47: 2119.9425 | AV47: 872.9175 | AW47: No
B48: 2178 | C48: 267059 | D48: P | E48: Peninsula Sanitation Office Equipment | J48: 0 | N48: 2021-11-01 | O48: 2021-11-01 | Q48: 500 | R48: 14100 | S48: 1250 | T48: 14106 | U48: 375 | V48: 875 | W48: 83.33 | X48: 70260 | Y48: 20.83 | Z48: A | AA48: Peninsula Sanitation | AD48: Internal | AE48: A | AF48: SL | AH48: WCNX | AI48: 0 | AJ48: 0 | AK48: 0 | AW48: Yes
B49: 2178 | C49: 267058 | D49: P | E49: Peninsula Sanitation Shop Equipment | J49: 0 | N49: 2021-11-01 | O49: 2021-11-01 | Q49: 500 | R49: 14070 | S49: 1250 | T49: 14076 | U49: 375 | V49: 875 | W49: 83.33 | X49: 51260 | Y49: 20.83 | Z49: A | AA49: Peninsula Sanitation | AD49: Internal | AE49: A | AF49: SL | AH49: WCNX | AI49: 0 | AJ49: 0 | AK49: 0 | AW49: Yes
B50: 2178 | C50: 266876 | D50: P | E50: 96 Gal Totes | F50: 30 | J50: 0 | K50: TANK HOLDING CORP | M50: Non-Container Audit | N50: 2021-11-15 | O50: 2021-11-15 | P50: 2178-21-0004-1 | Q50: 700 | R50: 14050 | S50: 3845.84 | T50: 14056 | U50: 824.11 | V50: 3021.73 | W50: 183.14 | X50: 54260 | Y50: 45.79 | Z50: P | AB50: 396156 | AD50: Internal | AE50: A | AF50: SL | AH50: WCNX | AI50: 0 | AJ50: 0 | AK50: 0 | AW50: Yes
B51: 2178 | C51: 266858 | D51: P | E51: 60 Gal Totes | F51: 120 | J51: 0 | K51: TANK HOLDING CORP | M51: Non-Container Audit | N51: 2021-11-15 | O51: 2021-11-15 | P51: 2178-21-0004-1 | Q51: 700 | R51: 14050 | S51: 14114.98 | T51: 14056 | U51: 3024.64 | V51: 11090.34 | W51: 672.14 | X51: 54260 | Y51: 168.03 | Z51: P | AB51: 396156 | AD51: Internal | AE51: A | AF51: SL | AH51: WCNX | AI51: 0 | AJ51: 0 | AK51: 0 | AW51: Yes
B52: 2178 | C52: 266608 | D52: P | E52: Peninsula Sanitation G. Certificate | J52: 0 | N52: 2021-11-01 | O52: 2021-11-01 | Q52: 0 | R52: 15260 | S52: 9557072.12 | T52: 15266 | U52: 0 | V52: 9557072.12 | W52: 0 | X52: 0 | Y52: 0 | Z52: A | AA52: Peninsula Sanitation | AD52: Internal | AE52: A | AF52: NO | AH52: WCNX | AI52: 0 | AJ52: 0 | AK52: 0 | AW52: Yes
B53: 2178 | C53: 266607 | D53: P-Tax | E53: 350-65G& 100-95G Bear Cart | J53: 0 | N53: 2021-11-01 | O53: 2021-11-01 | Q53: 0 | R53: 14050 | S53: 0 | T53: 14056 | U53: 0 | V53: 0 | W53: 0 | X53: 54260 | Y53: 0 | Z53: A | AA53: Peninsula Sanitation | AC53: 113 | AD53: Internal | AE53: A | AF53: NO | AH53: WCNX | AI53: 0 | AJ53: 0 | AK53: 0 | AW53: Yes
B54: 2178 | C54: 266606 | D54: P-Tax | E54: 300-60 gal./ 100-90 gal. | J54: 0 | N54: 2021-11-01 | O54: 2021-11-01 | Q54: 0 | R54: 14050 | S54: 0 | T54: 14056 | U54: 0 | V54: 0 | W54: 0 | X54: 54260 | Y54: 0 | Z54: A | AA54: Peninsula Sanitation | AC54: 112 | AD54: Internal | AE54: A | AF54: NO | AH54: WCNX | AI54: 0 | AJ54: 0 | AK54: 0 | AW54: Yes
B55: 2178 | C55: 266605 | D55: P-Tax | E55: 210 - 60 gallons | F55: 210 | J55: 0 | N55: 2021-11-01 | O55: 2021-11-01 | Q55: 0 | R55: 14050 | S55: 0 | T55: 14056 | U55: 0 | V55: 0 | W55: 0 | X55: 54260 | Y55: 0 | Z55: A | AA55: Peninsula Sanitation | AC55: 111 | AD55: Internal | AE55: A | AF55: NO | AH55: WCNX | AI55: 0 | AJ55: 0 | AK55: 0 | AW55: Yes
B56: 2178 | C56: 266604 | D56: P-Tax | E56: Box C8,9.10,11 | J56: 0 | N56: 2021-11-01 | O56: 2021-11-01 | Q56: 0 | R56: 14050 | S56: 0 | T56: 14056 | U56: 0 | V56: 0 | W56: 0 | X56: 54260 | Y56: 0 | Z56: A | AA56: Peninsula Sanitation | AC56: 110 | AD56: Internal | AE56: A | AF56: NO | AH56: WCNX | AI56: 0 | AJ56: 0 | AK56: 0 | AW56: Yes
B57: 2178 | C57: 266603 | D57: P-Tax | E57: 100-90 Gallon Cans | F57: 100 | J57: 0 | N57: 2021-11-01 | O57: 2021-11-01 | Q57: 0 | R57: 14050 | S57: 0 | T57: 14056 | U57: 0 | V57: 0 | W57: 0 | X57: 54260 | Y57: 0 | Z57: A | AA57: Peninsula Sanitation | AC57: 107 | AD57: Internal | AE57: A | AF57: NO | AH57: WCNX | AI57: 0 | AJ57: 0 | AK57: 0 | AW57: Yes
B58: 2178 | C58: 266602 | D58: P-Tax | E58: 300-60 Gallon Cans | J58: 0 | N58: 2021-11-01 | O58: 2021-11-01 | Q58: 0 | R58: 14050 | S58: 0 | T58: 14056 | U58: 0 | V58: 0 | W58: 0 | X58: 54260 | Y58: 0 | Z58: A | AA58: Peninsula Sanitation | AC58: 106 | AD58: Internal | AE58: A | AF58: NO | AH58: WCNX | AI58: 0 | AJ58: 0 | AK58: 0 | AW58: Yes
B59: 2178 | C59: 266601 | D59: P-Tax | E59: 100-300 Gallon Cans | F59: 100 | J59: 0 | N59: 2021-11-01 | O59: 2021-11-01 | Q59: 0 | R59: 14050 | S59: 0 | T59: 14056 | U59: 0 | V59: 0 | W59: 0 | X59: 54260 | Y59: 0 | Z59: A | AA59: Peninsula Sanitation | AC59: 105 | AD59: Internal | AE59: A | AF59: NO | AH59: WCNX | AI59: 0 | AJ59: 0 | AK59: 0 | AW59: Yes
B60: 2178 | C60: 266600 | D60: P-Tax | E60: 300 60 G. Cans/100 96 G. | J60: 0 | N60: 2021-11-01 | O60: 2021-11-01 | Q60: 0 | R60: 14050 | S60: 0 | T60: 14056 | U60: 0 | V60: 0 | W60: 0 | X60: 54260 | Y60: 0 | Z60: A | AA60: Peninsula Sanitation | AC60: 102 | AD60: Internal | AE60: A | AF60: NO | AH60: WCNX | AI60: 0 | AJ60: 0 | AK60: 0 | AW60: Yes
B61: 2178 | C61: 266599 | D61: P-Tax | E61: 400 60 Gallon totes | F61: 400 | J61: 0 | N61: 2021-11-01 | O61: 2021-11-01 | Q61: 0 | R61: 14050 | S61: 0 | T61: 14056 | U61: 0 | V61: 0 | W61: 0 | X61: 54260 | Y61: 0 | Z61: A | AA61: Peninsula Sanitation | AC61: 98 | AD61: Internal | AE61: A | AF61: NO | AH61: WCNX | AI61: 0 | AJ61: 0 | AK61: 0 | AW61: Yes
B62: 2178 | C62: 266598 | D62: P-Tax | E62: Drop Boxes | J62: 0 | N62: 2021-11-01 | O62: 2021-11-01 | Q62: 0 | R62: 14050 | S62: 0 | T62: 14056 | U62: 0 | V62: 0 | W62: 0 | X62: 54260 | Y62: 0 | Z62: A | AA62: Peninsula Sanitation | AC62: 97 | AD62: Internal | AE62: A | AF62: NO | AH62: WCNX | AI62: 0 | AJ62: 0 | AK62: 0 | AW62: Yes
B63: 2178 | C63: 266597 | D63: P-Tax | E63: New cans - 400 | F63: 400 | J63: 0 | N63: 2021-11-01 | O63: 2021-11-01 | Q63: 0 | R63: 14050 | S63: 0 | T63: 14056 | U63: 0 | V63: 0 | W63: 0 | X63: 54260 | Y63: 0 | Z63: A | AA63: Peninsula Sanitation | AC63: 91 | AD63: Internal | AE63: A | AF63: NO | AH63: WCNX | AI63: 0 | AJ63: 0 | AK63: 0 | AW63: Yes
B64: 2178 | C64: 266596 | D64: P-Tax | E64: 60 Gallon Cans | J64: 0 | N64: 2021-11-01 | O64: 2021-11-01 | Q64: 0 | R64: 14050 | S64: 0 | T64: 14056 | U64: 0 | V64: 0 | W64: 0 | X64: 54260 | Y64: 0 | Z64: A | AA64: Peninsula Sanitation | AC64: 84 | AD64: Internal | AE64: A | AF64: NO | AH64: WCNX | AI64: 0 | AJ64: 0 | AK64: 0 | AW64: Yes
B65: 2178 | C65: 266595 | D65: P-Tax | E65: 90 Gallon Cans | J65: 0 | N65: 2021-11-01 | O65: 2021-11-01 | Q65: 0 | R65: 14050 | S65: 0 | T65: 14056 | U65: 0 | V65: 0 | W65: 0 | X65: 54260 | Y65: 0 | Z65: A | AA65: Peninsula Sanitation | AC65: 83 | AD65: Internal | AE65: A | AF65: NO | AH65: WCNX | AI65: 0 | AJ65: 0 | AK65: 0 | AW65: Yes
B66: 2178 | C66: 266594 | D66: P-Tax | E66: Box #4730 #3730 | J66: 0 | N66: 2021-11-01 | O66: 2021-11-01 | Q66: 0 | R66: 14050 | S66: 0 | T66: 14056 | U66: 0 | V66: 0 | W66: 0 | X66: 54260 | Y66: 0 | Z66: A | AA66: Peninsula Sanitation | AC66: 82 | AD66: Internal | AE66: A | AF66: NO | AH66: WCNX | AI66: 0 | AJ66: 0 | AK66: 0 | AW66: Yes
B67: 2178 | C67: 266593 | D67: P-Tax | E67: Box #3L30 | J67: 0 | N67: 2021-11-01 | O67: 2021-11-01 | Q67: 0 | R67: 14050 | S67: 0 | T67: 14056 | U67: 0 | V67: 0 | W67: 0 | X67: 54260 | Y67: 0 | Z67: A | AA67: Peninsula Sanitation | AC67: 81 | AD67: Internal | AE67: A | AF67: NO | AH67: WCNX | AI67: 0 | AJ67: 0 | AK67: 0 | AW67: Yes
B68: 2178 | C68: 266592 | D68: P-Tax | E68: Box #C5 C6 C7 | J68: 0 | N68: 2021-11-01 | O68: 2021-11-01 | Q68: 0 | R68: 14050 | S68: 0 | T68: 14056 | U68: 0 | V68: 0 | W68: 0 | X68: 54260 | Y68: 0 | Z68: A | AA68: Peninsula Sanitation | AC68: 73 | AD68: Internal | AE68: A | AF68: NO | AH68: WCNX | AI68: 0 | AJ68: 0 | AK68: 0 | AW68: Yes
B69: 2178 | C69: 266591 | D69: P-Tax | E69: Box # 1630 CB9 CB 10 | J69: 0 | N69: 2021-11-01 | O69: 2021-11-01 | Q69: 0 | R69: 14050 | S69: 0 | T69: 14056 | U69: 0 | V69: 0 | W69: 0 | X69: 54260 | Y69: 0 | Z69: A | AA69: Peninsula Sanitation | AC69: 72 | AD69: Internal | AE69: A | AF69: NO | AH69: WCNX | AI69: 0 | AJ69: 0 | AK69: 0 | AW69: Yes
B70: 2178 | C70: 266590 | D70: P-Tax | E70: 90, 300 & 60 Gal. Cans | J70: 0 | N70: 2021-11-01 | O70: 2021-11-01 | Q70: 0 | R70: 14050 | S70: 0 | T70: 14056 | U70: 0 | V70: 0 | W70: 0 | X70: 54260 | Y70: 0 | Z70: A | AA70: Peninsula Sanitation | AC70: 71 | AD70: Internal | AE70: A | AF70: NO | AH70: WCNX | AI70: 0 | AJ70: 0 | AK70: 0 | AW70: Yes
B71: 2178 | C71: 266589 | D71: P-Tax | E71: 3 . 30yd Drop Boxes | J71: 0 | N71: 2021-11-01 | O71: 2021-11-01 | Q71: 0 | R71: 14050 | S71: 0 | T71: 14056 | U71: 0 | V71: 0 | W71: 0 | X71: 54260 | Y71: 0 | Z71: A | AA71: Peninsula Sanitation | AC71: 70 | AD71: Internal | AE71: A | AF71: NO | AH71: WCNX | AI71: 0 | AJ71: 0 | AK71: 0 | AW71: Yes
B72: 2178 | C72: 266588 | D72: P-Tax | E72: 10 Drop Boxes | J72: 0 | N72: 2021-11-01 | O72: 2021-11-01 | Q72: 0 | R72: 14050 | S72: 0 | T72: 14056 | U72: 0 | V72: 0 | W72: 0 | X72: 54260 | Y72: 0 | Z72: A | AA72: Peninsula Sanitation | AC72: 68 | AD72: Internal | AE72: A | AF72: NO | AH72: WCNX | AI72: 0 | AJ72: 0 | AK72: 0 | AW72: Yes
B73: 2178 | C73: 266587 | D73: P-Tax | E73: Totes | J73: 0 | N73: 2021-11-01 | O73: 2021-11-01 | Q73: 0 | R73: 14050 | S73: 0 | T73: 14056 | U73: 0 | V73: 0 | W73: 0 | X73: 54260 | Y73: 0 | Z73: A | AA73: Peninsula Sanitation | AC73: 67 | AD73: Internal | AE73: A | AF73: NO | AH73: WCNX | AI73: 0 | AJ73: 0 | AK73: 0 | AW73: Yes
B74: 2178 | C74: 266586 | D74: P-Tax | E74: Box#2830 2930 24 L2 3 4 | J74: 0 | N74: 2021-11-01 | O74: 2021-11-01 | Q74: 0 | R74: 14050 | S74: 0 | T74: 14056 | U74: 0 | V74: 0 | W74: 0 | X74: 54260 | Y74: 0 | Z74: A | AA74: Peninsula Sanitation | AC74: 66 | AD74: Internal | AE74: A | AF74: NO | AH74: WCNX | AI74: 0 | AJ74: 0 | AK74: 0 | AW74: Yes
B75: 2178 | C75: 266585 | D75: P-Tax | E75: Box #22 23 Ll | J75: 0 | N75: 2021-11-01 | O75: 2021-11-01 | Q75: 0 | R75: 14050 | S75: 0 | T75: 14056 | U75: 0 | V75: 0 | W75: 0 | X75: 54260 | Y75: 0 | Z75: A | AA75: Peninsula Sanitation | AC75: 64 | AD75: Internal | AE75: A | AF75: NO | AH75: WCNX | AI75: 0 | AJ75: 0 | AK75: 0 | AW75: Yes
B76: 2178 | C76: 266584 | D76: P-Tax | E76: 400 60 Gallon Cans | F76: 400 | J76: 0 | N76: 2021-11-01 | O76: 2021-11-01 | Q76: 0 | R76: 14050 | S76: 0 | T76: 14056 | U76: 0 | V76: 0 | W76: 0 | X76: 54260 | Y76: 0 | Z76: A | AA76: Peninsula Sanitation | AC76: 63 | AD76: Internal | AE76: A | AF76: NO | AH76: WCNX | AI76: 0 | AJ76: 0 | AK76: 0 | AW76: Yes
B77: 2178 | C77: 266583 | D77: P-Tax | E77: Drop Box #2530 2630 2730 | J77: 0 | N77: 2021-11-01 | O77: 2021-11-01 | Q77: 0 | R77: 14050 | S77: 0 | T77: 14056 | U77: 0 | V77: 0 | W77: 0 | X77: 54260 | Y77: 0 | Z77: A | AA77: Peninsula Sanitation | AC77: 62 | AD77: Internal | AE77: A | AF77: NO | AH77: WCNX | AI77: 0 | AJ77: 0 | AK77: 0 | AW77: Yes
B78: 2178 | C78: 266582 | D78: P-Tax | E78: Totes | J78: 0 | N78: 2021-11-01 | O78: 2021-11-01 | Q78: 0 | R78: 14050 | S78: 0 | T78: 14056 | U78: 0 | V78: =S78-U78 -> 0 | W78: 0 | X78: 54260 | Y78: 0 | Z78: A | AA78: Peninsula Sanitation | AC78: 61 | AD78: Internal | AE78: A | AF78: NO | AH78: WCNX | AI78: 0 | AJ78: 0 | AK78: 0 | AW78: Yes
B79: 2178 | C79: 266581 | D79: P-Tax | E79: Box #2430 4L40 5L40 | J79: 0 | N79: 2021-11-01 | O79: 2021-11-01 | Q79: 0 | R79: 14050 | S79: 0 | T79: 14056 | U79: 0 | V79: 0 | W79: 0 | X79: 54260 | Y79: 0 | Z79: A | AA79: Peninsula Sanitation | AC79: 60 | AD79: Internal | AE79: A | AF79: NO | AH79: WCNX | AI79: 0 | AJ79: 0 | AK79: 0 | AW79: Yes
B80: 2178 | C80: 266580 | D80: P-Tax | E80: Box #21 | J80: 0 | N80: 2021-11-01 | O80: 2021-11-01 | Q80: 0 | R80: 14050 | S80: 0 | T80: 14056 | U80: 0 | V80: 0 | W80: 0 | X80: 54260 | Y80: 0 | Z80: A | AA80: Peninsula Sanitation | AC80: 59 | AD80: Internal | AE80: A | AF80: NO | AH80: WCNX | AI80: 0 | AJ80: 0 | AK80: 0 | AW80: Yes
B81: 2178 | C81: 266579 | D81: P-Tax | E81: 2 Drop Boxes #19 & 20 | J81: 0 | N81: 2021-11-01 | O81: 2021-11-01 | Q81: 0 | R81: 14050 | S81: 0 | T81: 14056 | U81: 0 | V81: 0 | W81: 0 | X81: 54260 | Y81: 0 | Z81: A | AA81: Peninsula Sanitation | AC81: 58 | AD81: Internal | AE81: A | AF81: NO | AH81: WCNX | AI81: 0 | AJ81: 0 | AK81: 0 | AW81: Yes
B82: 2178 | C82: 266578 | D82: P-Tax | E82: Totes | J82: 0 | N82: 2021-11-01 | O82: 2021-11-01 | Q82: 0 | R82: 14050 | S82: 0 | T82: 14056 | U82: 0 | V82: 0 | W82: 0 | X82: 54260 | Y82: 0 | Z82: A | AA82: Peninsula Sanitation | AC82: 57 | AD82: Internal | AE82: A | AF82: NO | AH82: WCNX | AI82: 0 | AJ82: 0 | AK82: 0 | AW82: Yes
B83: 2178 | C83: 266577 | D83: P-Tax | E83: Recycle Box #2330 | J83: 0 | N83: 2021-11-01 | O83: 2021-11-01 | Q83: 0 | R83: 14050 | S83: 0 | T83: 14056 | U83: 0 | V83: 0 | W83: 0 | X83: 54260 | Y83: 0 | Z83: A | AA83: Peninsula Sanitation | AC83: 56 | AD83: Internal | AE83: A | AF83: NO | AH83: WCNX | AI83: 0 | AJ83: 0 | AK83: 0 | AW83: Yes
B84: 2178 | C84: 266576 | D84: P-Tax | E84: 20 Yd. Boxes - 4 | J84: 0 | N84: 2021-11-01 | O84: 2021-11-01 | Q84: 0 | R84: 14050 | S84: 0 | T84: 14056 | U84: 0 | V84: 0 | W84: 0 | X84: 54260 | Y84: 0 | Z84: A | AA84: Peninsula Sanitation | AC84: 54 | AD84: Internal | AE84: A | AF84: NO | AH84: WCNX | AI84: 0 | AJ84: 0 | AK84: 0 | AW84: Yes
B85: 2178 | C85: 266575 | D85: P-Tax | E85: 60 & 90 Gallon cans | J85: 0 | N85: 2021-11-01 | O85: 2021-11-01 | Q85: 0 | R85: 14050 | S85: 0 | T85: 14056 | U85: 0 | V85: 0 | W85: 0 | X85: 54260 | Y85: 0 | Z85: A | AA85: Peninsula Sanitation | AC85: 53 | AD85: Internal | AE85: A | AF85: NO | AH85: WCNX | AI85: 0 | AJ85: 0 | AK85: 0 | AW85: Yes
B86: 2178 | C86: 266574 | D86: P-Tax | E86: 30 Yd. Drop Boxes-#1 2 3 | J86: 0 | N86: 2021-11-01 | O86: 2021-11-01 | Q86: 0 | R86: 14050 | S86: 0 | T86: 14056 | U86: 0 | V86: 0 | W86: 0 | X86: 54260 | Y86: 0 | Z86: A | AA86: Peninsula Sanitation | AC86: 50 | AD86: Internal | AE86: A | AF86: NO | AH86: WCNX | AI86: 0 | AJ86: 0 | AK86: 0 | AW86: Yes
B87: 2178 | C87: 266573 | D87: P-Tax | E87: New totes | J87: 0 | N87: 2021-11-01 | O87: 2021-11-01 | Q87: 0 | R87: 14050 | S87: 0 | T87: 14056 | U87: 0 | V87: 0 | W87: 0 | X87: 54260 | Y87: 0 | Z87: A | AA87: Peninsula Sanitation | AC87: 48 | AD87: Internal | AE87: A | AF87: NO | AH87: WCNX | AI87: 0 | AJ87: 0 | AK87: 0 | AW87: Yes
B88: 2178 | C88: 266572 | D88: P-Tax | E88: Box's #LlO #Lll #Ll3 | J88: 0 | N88: 2021-11-01 | O88: 2021-11-01 | Q88: 0 | R88: 14050 | S88: 0 | T88: 14056 | U88: 0 | V88: 0 | W88: 0 | X88: 54260 | Y88: 0 | Z88: A | AA88: Peninsula Sanitation | AC88: 47 | AD88: Internal | AE88: A | AF88: NO | AH88: WCNX | AI88: 0 | AJ88: 0 | AK88: 0 | AW88: Yes
B89: 2178 | C89: 266571 | D89: P-Tax | E89: Totes | J89: 0 | N89: 2021-11-01 | O89: 2021-11-01 | Q89: 0 | R89: 14050 | S89: 0 | T89: 14056 | U89: 0 | V89: 0 | W89: 0 | X89: 54260 | Y89: 0 | Z89: A | AA89: Peninsula Sanitation | AC89: 46 | AD89: Internal | AE89: A | AF89: NO | AH89: WCNX | AI89: 0 | AJ89: 0 | AK89: 0 | AW89: Yes
B90: 2178 | C90: 266570 | D90: P-Tax | E90: 30Yd Drop Boxes | J90: 0 | N90: 2021-11-01 | O90: 2021-11-01 | Q90: 0 | R90: 14050 | S90: 0 | T90: 14056 | U90: 0 | V90: 0 | W90: 0 | X90: 54260 | Y90: 0 | Z90: A | AA90: Peninsula Sanitation | AC90: 44 | AD90: Internal | AE90: A | AF90: NO | AH90: WCNX | AI90: 0 | AJ90: 0 | AK90: 0 | AW90: Yes
B91: 2178 | C91: 266569 | D91: P-Tax | E91: Box #'s L5 LG L9 | J91: 0 | N91: 2021-11-01 | O91: 2021-11-01 | Q91: 0 | R91: 14050 | S91: 0 | T91: 14056 | U91: 0 | V91: 0 | W91: 0 | X91: 54260 | Y91: 0 | Z91: A | AA91: Peninsula Sanitation | AC91: 43 | AD91: Internal | AE91: A | AF91: NO | AH91: WCNX | AI91: 0 | AJ91: 0 | AK91: 0 | AW91: Yes
B92: 2178 | C92: 266567 | D92: P-Tax | E92: Compactor | J92: 0 | N92: 2021-11-01 | O92: 2021-11-01 | Q92: 0 | R92: 14060 | S92: 0 | T92: 14066 | U92: 0 | V92: 0 | W92: 0 | X92: 54260 | Y92: 0 | Z92: A | AA92: Peninsula Sanitation | AC92: 69 | AD92: Internal | AE92: A | AF92: NO | AH92: WCNX | AI92: 0 | AJ92: 0 | AK92: 0 | AW92: Yes
B93: 2178 | C93: 266566 | D93: P-Tax | E93: Roll-Off #2 | J93: 0 | N93: 2021-11-01 | O93: 2021-11-01 | Q93: 0 | R93: 14040 | S93: 0 | T93: 14046 | U93: 0 | V93: 0 | W93: 0 | X93: 51260 | Y93: 0 | Z93: A | AA93: Peninsula Sanitation | AC93: 109 | AD93: Internal | AE93: A | AF93: NO | AH93: WCNX | AI93: 0 | AJ93: 0 | AK93: 0 | AW93: Yes
B94: 2178 | C94: 266565 | D94: P-Tax | E94: Roll-Off #3 | J94: 0 | N94: 2021-11-01 | O94: 2021-11-01 | Q94: 0 | R94: 14040 | S94: 0 | T94: 14046 | U94: 0 | V94: 0 | W94: 0 | X94: 51260 | Y94: 0 | Z94: A | AA94: Peninsula Sanitation | AC94: 108 | AD94: Internal | AE94: A | AF94: NO | AH94: WCNX | AI94: 0 | AJ94: 0 | AK94: 0 | AW94: Yes
B95: 2178 | C95: 266564 | D95: P-Tax | E95: Heil Truck #16 | J95: 0 | N95: 2021-11-01 | O95: 2021-11-01 | Q95: 0 | R95: 14040 | S95: 0 | T95: 14046 | U95: 0 | V95: 0 | W95: 0 | X95: 51260 | Y95: 0 | Z95: A | AA95: Peninsula Sanitation | AC95: 99 | AD95: Internal | AE95: A | AF95: NO | AH95: WCNX | AI95: 0 | AJ95: 0 | AK95: 0 | AW95: Yes
B96: 2178 | C96: 266563 | D96: P-Tax | E96: DP 7000 28yd Dump #14 | J96: 0 | N96: 2021-11-01 | O96: 2021-11-01 | Q96: 0 | R96: 14030 | S96: 0 | T96: 14036 | U96: 0 | V96: 0 | W96: 0 | X96: 51260 | Y96: 0 | Z96: A | AA96: Peninsula Sanitation | AC96: 92 | AD96: Internal | AE96: A | AF96: NO | AH96: WCNX | AI96: 0 | AJ96: 0 | AK96: 14 | AW96: Yes
B97: 2178 | C97: 266562 | D97: P-Tax | E97: 2014 Peterbilt 320 #14 | J97: 0 | N97: 2021-11-01 | O97: 2021-11-01 | Q97: 0 | R97: 14040 | S97: 0 | T97: 14046 | U97: 0 | V97: 0 | W97: 0 | X97: 51260 | Y97: 0 | Z97: A | AA97: Peninsula Sanitation | AC97: 90 | AD97: Internal | AE97: A | AF97: NO | AH97: WCNX | AI97: 0 | AJ97: 0 | AK97: 0 | AW97: Yes
B98: 2178 | C98: 266561 | D98: P-Tax | E98: #4 Rolloff Boom | J98: 0 | N98: 2021-11-01 | O98: 2021-11-01 | Q98: 0 | R98: 14030 | S98: 0 | T98: 14036 | U98: 0 | V98: 0 | W98: 0 | X98: 51260 | Y98: 0 | Z98: A | AA98: Peninsula Sanitation | AC98: 89 | AD98: Internal | AE98: A | AF98: NO | AH98: WCNX | AI98: 0 | AJ98: 0 | AK98: 4 | AW98: Yes
B99: 2178 | C99: 266560 | D99: P-Tax | E99: #5 Rolloff Boom | J99: 0 | N99: 2021-11-01 | O99: 2021-11-01 | Q99: 0 | R99: 14030 | S99: 0 | T99: 14036 | U99: 0 | V99: 0 | W99: 0 | X99: 51260 | Y99: 0 | Z99: A | AA99: Peninsula Sanitation | AC99: 88 | AD99: Internal | AE99: A | AF99: NO | AH99: WCNX | AI99: 0 | AJ99: 0 | AK99: 5 | AW99: Yes
B100: 2178 | C100: 266559 | D100: P-Tax | E100: DP 7000 28yd Dump #12 | J100: 0 | N100: 2021-11-01 | O100: 2021-11-01 | Q100: 0 | R100: 14030 | S100: 0 | T100: 14036 | U100: 0 | V100: 0 | W100: 0 | X100: 51260 | Y100: 0 | Z100: A | AA100: Peninsula Sanitation | AC100: 85 | AD100: Internal | AE100: A | AF100: NO | AH100: WCNX | AI100: 0 | AJ100: 0 | AK100: 12 | AW100: Yes
B101: 2178 | C101: 266558 | D101: P-Tax | E101: Roto Cart | J101: 0 | N101: 2021-11-01 | O101: 2021-11-01 | Q101: 0 | R101: 14050 | S101: 0 | T101: 14056 | U101: 0 | V101: 0 | W101: 0 | X101: 54260 | Y101: 0 | Z101: A | AA101: Peninsula Sanitation | AC101: 75 | AD101: Internal | AE101: A | AF101: NO | AH101: WCNX | AI101: 0 | AJ101: 0 | AK101: 0 | AW101: Yes
B102: 2178 | C102: 266557 | D102: P-Tax | E102: 2 Trucks#9 Heil | J102: 0 | N102: 2021-11-01 | O102: 2021-11-01 | Q102: 0 | R102: 14040 | S102: 0 | T102: 14046 | U102: 0 | V102: 0 | W102: 0 | X102: 51260 | Y102: 0 | Z102: A | AA102: Peninsula Sanitation | AC102: 55 | AD102: Internal | AE102: A | AF102: NO | AH102: WCNX | AI102: 0 | AJ102: 0 | AK102: 0 | AW102: Yes
B103: 2178 | C103: 266556 | D103: P-Tax | E103: Computers | J103: 0 | N103: 2021-11-01 | O103: 2021-11-01 | Q103: 0 | R103: 14110 | S103: 0 | T103: 14116 | U103: 0 | V103: 0 | W103: 0 | X103: 70260 | Y103: 0 | Z103: A | AA103: Peninsula Sanitation | AC103: 79 | AD103: Internal | AE103: A | AF103: NO | AH103: WCNX | AI103: 0 | AJ103: 0 | AK103: 0 | AW103: Yes
B104: 2178 | C104: 266555 | D104: P-Tax | E104: Printer & stand | J104: 0 | N104: 2021-11-01 | O104: 2021-11-01 | Q104: 0 | R104: 14110 | S104: 0 | T104: 14116 | U104: 0 | V104: 0 | W104: 0 | X104: 70260 | Y104: 0 | Z104: A | AA104: Peninsula Sanitation | AC104: 78 | AD104: Internal | AE104: A | AF104: NO | AH104: WCNX | AI104: 0 | AJ104: 0 | AK104: 0 | AW104: Yes
B105: 2178 | C105: 266554 | D105: P-Tax | E105: Computer Program | J105: 0 | N105: 2021-11-01 | O105: 2021-11-01 | Q105: 0 | R105: 14110 | S105: 0 | T105: 14116 | U105: 0 | V105: 0 | W105: 0 | X105: 70260 | Y105: 0 | Z105: A | AA105: Peninsula Sanitation | AC105: 77 | AD105: Internal | AE105: A | AF105: NO | AH105: WCNX | AI105: 0 | AJ105: 0 | AK105: 0 | AW105: Yes
B106: 2178 | C106: 266553 | D106: P-Tax | E106: Phone System | J106: 0 | N106: 2021-11-01 | O106: 2021-11-01 | Q106: 0 | R106: 14100 | S106: 0 | T106: 14106 | U106: 0 | V106: 0 | W106: 0 | X106: 70260 | Y106: 0 | Z106: A | AA106: Peninsula Sanitation | AC106: 74 | AD106: Internal | AE106: A | AF106: NO | AH106: WCNX | AI106: 0 | AJ106: 0 | AK106: 0 | AW106: Yes
B107: 2178 | C107: 266552 | D107: P-Tax | E107: Truck Cover Building | J107: 0 | N107: 2021-11-01 | O107: 2021-11-01 | Q107: 0 | R107: 14080 | S107: 0 | T107: 14086 | U107: 0 | V107: 0 | W107: 0 | X107: 57260 | Y107: 0 | Z107: A | AA107: Peninsula Sanitation | AC107: 76 | AD107: Internal | AE107: A | AF107: NO | AH107: WCNX | AI107: 0 | AJ107: 0 | AK107: 0 | AW107: Yes
B108: 2178 | C108: 266551 | D108: P-Tax | E108: Paving | J108: 0 | N108: 2021-11-01 | O108: 2021-11-01 | Q108: 0 | R108: 14010 | S108: 0 | T108: 14016 | U108: 0 | V108: 0 | W108: 0 | X108: 57260 | Y108: 0 | Z108: A | AA108: Peninsula Sanitation | AC108: 49 | AD108: Internal | AE108: A | AF108: NO | AH108: WCNX | AI108: 0 | AJ108: 0 | AK108: 0 | AW108: Yes
B109: 2178 | C109: 266550 | D109: P-Tax | E109: Leasehold improvements | J109: 0 | N109: 2021-11-01 | O109: 2021-11-01 | Q109: 0 | R109: 14090 | S109: 0 | T109: 14096 | U109: 0 | V109: 0 | W109: 0 | X109: 57260 | Y109: 0 | Z109: A | AA109: Peninsula Sanitation | AC109: 30 | AD109: Internal | AE109: A | AF109: NO | AH109: WCNX | AI109: 0 | AJ109: 0 | AK109: 0 | AW109: Yes
B110: 2178 | C110: 266515 | D110: P | E110: 116 Howerton Way - Land Improvements | J110: 0 | N110: 2021-11-01 | O110: 2021-11-01 | Q110: 1000 | R110: 14010 | S110: 90000 | T110: 14016 | U110: 13500 | V110: =S110-U110 -> 76500 | W110: 3000 | X110: 57260 | Y110: 750 | Z110: A | AA110: Peninsula Sanitation | AD110: Internal | AE110: A | AF110: SL | AH110: WCNX | AI110: 0 | AJ110: 0 | AK110: 0 | AW110: Yes
B111: 2178 | C111: 266514 | D111: P | E111: 116 Howerton Way - Buildings | J111: 0 | N111: 2021-11-01 | O111: 2021-11-01 | Q111: 2000 | R111: 14080 | S111: 840000 | T111: 14086 | U111: 63000 | V111: 777000 | W111: 14000 | X111: 57260 | Y111: 3500 | Z111: A | AA111: Peninsula Sanitation | AC111: 1 | AD111: Internal | AE111: A | AF111: SL | AH111: WCNX | AI111: 0 | AJ111: 0 | AK111: 0 | AW111: Yes
B112: 2178 | C112: 266510 | D112: P | E112: 20 YD Compactor | F112: 1 | J112: 0 | M112: 20 YD Compactor | N112: 2021-11-01 | O112: 2021-11-01 | Q112: 700 | R112: 14060 | S112: 7000 | T112: 14066 | U112: 1500 | V112: 5500 | W112: 333.33 | X112: 54260 | Y112: 83.33 | Z112: A | AA112: Peninsula Sanitation | AC112: 100 | AD112: Internal | AE112: A | AF112: SL | AH112: WCNX | AI112: 0 | AJ112: 0 | AK112: 0 | AW112: Yes
B113: 2178 | C113: 266509 | D113: P | E113: 2 YD Container Bin | F113: 48 | J113: 0 | M113: 2 YD Container | N113: 2021-11-01 | O113: 2021-11-01 | Q113: 700 | R113: 14050 | S113: 9408 | T113: 14056 | U113: 2016 | V113: 7392 | W113: 448 | X113: 54260 | Y113: 112 | Z113: A | AA113: Peninsula Sanitation | AD113: Internal | AE113: A | AF113: SL | AH113: WCNX | AI113: 0 | AJ113: 0 | AK113: 0 | AW113: Yes
B114: 2178 | C114: 266508 | D114: P | E114: 1.5 YD Container Bin | F114: 86 | J114: 0 | M114: 1.5 YD Container | N114: 2021-11-01 | O114: 2021-11-01 | Q114: 700 | R114: 14050 | S114: 16856 | T114: 14056 | U114: 3612 | V114: 13244 | W114: 802.67 | X114: 54260 | Y114: 200.67 | Z114: A | AA114: Peninsula Sanitation | AD114: Internal | AE114: A | AF114: SL | AH114: WCNX | AI114: 0 | AJ114: 0 | AK114: 0 | AW114: Yes
B115: 2178 | C115: 266507 | D115: P | E115: 1 YD Container Bin | F115: 68 | J115: 0 | M115: 1 YD Container | N115: 2021-11-01 | O115: 2021-11-01 | Q115: 700 | R115: 14050 | S115: 13328 | T115: 14056 | U115: 2856 | V115: 10472 | W115: 634.67 | X115: 54260 | Y115: 158.67 | Z115: A | AA115: Peninsula Sanitation | AD115: Internal | AE115: A | AF115: SL | AH115: WCNX | AI115: 0 | AJ115: 0 | AK115: 0 | AW115: Yes
B116: 2178 | C116: 266506 | D116: P | E116: 2652 Gallon Water Box | F116: 1 | J116: 0 | M116: Other | N116: 2021-11-01 | O116: 2021-11-01 | Q116: 700 | R116: 14050 | S116: 196 | T116: 14056 | U116: 42 | V116: 154 | W116: 9.33 | X116: 54260 | Y116: 2.33 | Z116: A | AA116: Peninsula Sanitation | AC116: 58 | AD116: Internal | AE116: A | AF116: SL | AH116: WCNX | AI116: 0 | AJ116: 0 | AK116: 0 | AW116: Yes
B117: 2178 | C117: 266505 | D117: P | E117: 44 YD RO Boxes | F117: 3 | J117: 0 | M117: 44 YD RO Box | N117: 2021-11-01 | O117: 2021-11-01 | Q117: 700 | R117: 14050 | S117: 9000 | T117: 14056 | U117: 1928.58 | V117: 7071.42 | W117: 428.57 | X117: 54260 | Y117: 107.14 | Z117: A | AA117: Peninsula Sanitation | AD117: Internal | AE117: A | AF117: SL | AH117: WCNX | AI117: 0 | AJ117: 0 | AK117: 0 | AW117: Yes
B118: 2178 | C118: 266504 | D118: P | E118: 40 YD RO Boxes | F118: 5 | J118: 0 | M118: 40 YD RO Box | N118: 2021-11-01 | O118: 2021-11-01 | Q118: 700 | R118: 14050 | S118: 15000 | T118: 14056 | U118: 3214.29 | V118: 11785.71 | W118: 714.29 | X118: 54260 | Y118: 178.57 | Z118: A | AA118: Peninsula Sanitation | AD118: Internal | AE118: A | AF118: SL | AH118: WCNX | AI118: 0 | AJ118: 0 | AK118: 0 | AW118: Yes
B119: 2178 | C119: 266503 | D119: P | E119: 35 YD RO Boxes | F119: 6 | J119: 0 | M119: 20 YD RO Boxes | N119: 2021-11-01 | O119: 2021-11-01 | Q119: 700 | R119: 14050 | S119: 18000 | T119: 14056 | U119: 3857.14 | V119: 14142.86 | W119: 857.14 | X119: 54260 | Y119: 214.28 | Z119: A | AA119: Peninsula Sanitation | AD119: Internal | AE119: A | AF119: SL | AH119: WCNX | AI119: 0 | AJ119: 0 | AK119: 0 | AW119: Yes
B120: 2178 | C120: 266502 | D120: P | E120: 30 YD RO Boxes | F120: 72 | J120: 0 | M120: 20 YD RO Box | N120: 2021-11-01 | O120: 2021-11-01 | Q120: 700 | R120: 14050 | S120: 216000 | T120: 14056 | U120: 46285.71 | V120: 169714.29 | W120: 10285.71 | X120: 54260 | Y120: 2571.42 | Z120: A | AA120: Peninsula Sanitation | AD120: Internal | AE120: A | AF120: SL | AH120: WCNX | AI120: 0 | AJ120: 0 | AK120: 0 | AW120: Yes
B121: 2178 | C121: 266501 | D121: P | E121: 25 YD RO Boxes | F121: 2 | J121: 0 | M121: 20 YD RO Boxes | N121: 2021-11-01 | O121: 2021-11-01 | Q121: 700 | R121: 14050 | S121: 6000 | T121: 14056 | U121: 1285.71 | V121: 4714.29 | W121: 285.71 | X121: 54260 | Y121: 71.42 | Z121: A | AA121: Peninsula Sanitation | AD121: Internal | AE121: A | AF121: SL | AH121: WCNX | AI121: 0 | AJ121: 0 | AK121: 0 | AW121: Yes
B122: 2178 | C122: 266500 | D122: P | E122: 20 YD RO Boxes | F122: 55 | J122: 0 | M122: 20 YD RO Boxes | N122: 2021-11-01 | O122: 2021-11-01 | Q122: 700 | R122: 14050 | S122: 165000 | T122: 14056 | U122: 35357.14 | V122: 129642.86 | W122: 7857.14 | X122: 54260 | Y122: 1964.28 | Z122: A | AA122: Peninsula Sanitation | AD122: Internal | AE122: A | AF122: SL | AH122: WCNX | AI122: 0 | AJ122: 0 | AK122: 0 | AW122: Yes
B123: 2178 | C123: 266499 | D123: P | E123: 300 Gallon Carts | F123: 390 | J123: 0 | M123: Non-Container Audit | N123: 2021-11-01 | O123: 2021-11-01 | Q123: 500 | R123: 14050 | S123: 6240 | T123: 14056 | U123: 1872 | V123: 4368 | W123: 416 | X123: 54260 | Y123: 104 | Z123: A | AA123: Peninsula Sanitation | AD123: Internal | AE123: A | AF123: SL | AH123: WCNX | AI123: 0 | AJ123: 0 | AK123: 0 | AW123: Yes
B124: 2178 | C124: 266498 | D124: P | E124: 95 Gallon Carts | F124: 100 | J124: 0 | M124: Non-Container Audit | N124: 2021-11-01 | O124: 2021-11-01 | Q124: 500 | R124: 14050 | S124: 1600 | T124: 14056 | U124: 480 | V124: 1120 | W124: 106.67 | X124: 54260 | Y124: 26.67 | Z124: A | AA124: Peninsula Sanitation | AD124: Internal | AE124: A | AF124: SL | AH124: WCNX | AI124: 0 | AJ124: 0 | AK124: 0 | AW124: Yes
B125: 2178 | C125: 266497 | D125: P | E125: 65 Gallon Carts | F125: 350 | J125: 0 | M125: Non-Container Audit | N125: 2021-11-01 | O125: 2021-11-01 | Q125: 500 | R125: 14050 | S125: 5600 | T125: 14056 | U125: 1680 | V125: 3920 | W125: 373.33 | X125: 54260 | Y125: 93.33 | Z125: A | AA125: Peninsula Sanitation | AD125: Internal | AE125: A | AF125: SL | AH125: WCNX | AI125: 0 | AJ125: 0 | AK125: 0 | AW125: Yes
B126: 2178 | C126: 266496 | D126: P | E126: 90 Gallon Carts | F126: 841 | J126: 0 | M126: Non-Container Audit | N126: 2021-11-01 | O126: 2021-11-01 | Q126: 500 | R126: 14050 | S126: 13456 | T126: 14056 | U126: 4036.8 | V126: 9419.2 | W126: 897.07 | X126: 54260 | Y126: 224.27 | Z126: A | AA126: Peninsula Sanitation | AD126: Internal | AE126: A | AF126: SL | AH126: WCNX | AI126: 0 | AJ126: 0 | AK126: 0 | AW126: Yes
B127: 2178 | C127: 266495 | D127: P | E127: 60 Gallon Carts | F127: 5128 | J127: 0 | M127: Non-Container Audit | N127: 2021-11-01 | O127: 2021-11-01 | Q127: 500 | R127: 14050 | S127: 82048 | T127: 14056 | U127: 24614.4 | V127: 57433.6 | W127: 5469.87 | X127: 54260 | Y127: 1367.47 | Z127: A | AA127: Peninsula Sanitation | AD127: Internal | AE127: A | AF127: SL | AH127: WCNX | AI127: 0 | AJ127: 0 | AK127: 0 | AW127: Yes
B128: 2178 | C128: 266482 | D128: P | E128: 2022 Peterbilt 520 RH Drive (Heil Durapack Automated) | H128: 3BPDLJ0X1NF112424 | J128: 2022 | M128: Automated Sideload | N128: 2021-11-01 | O128: 2021-11-01 | Q128: 1000 | R128: 14040 | S128: 295000 | T128: 14046 | U128: 44250 | V128: 250750 | W128: 9833.33 | X128: 51260 | Y128: 2458.33 | Z128: A | AA128: Peninsula Sanitation | AC128: 18 | AD128: Internal | AE128: A | AF128: SL | AH128: WCNX | AI128: 0 | AJ128: 0 | AK128: 18 | AW128: Yes
B129: 2178 | C129: 266481 | D129: P | E129: 2022 Peterbilt 520 RH Drive (Heil Durapack Automated) | H129: 3BPDLJ0XXNF112423 | J129: 2022 | M129: Automated Sideload | N129: 2021-11-01 | O129: 2021-11-01 | Q129: 1000 | R129: 14040 | S129: 295000 | T129: 14046 | U129: 44250 | V129: 250750 | W129: 9833.33 | X129: 51260 | Y129: 2458.33 | Z129: A | AA129: Peninsula Sanitation | AC129: 17 | AD129: Internal | AE129: A | AF129: SL | AH129: WCNX | AI129: 0 | AJ129: 0 | AK129: 17 | AW129: Yes
B130: 2178 | C130: 266480 | D130: P | E130: 2019 Peterbilt 567 (Roll-Off) | H130: 1NPCLP0X9KD618187 | J130: 2019 | M130: R/O Truck | N130: 2021-11-01 | O130: 2021-11-01 | Q130: 700 | R130: 14040 | S130: 155000 | T130: 14046 | U130: 33214.29 | V130: 121785.71 | W130: 7380.95 | X130: 51260 | Y130: 1845.23 | Z130: A | AA130: Peninsula Sanitation | AC130: 3 | AD130: Internal | AE130: A | AF130: SL | AH130: WCNX | AI130: 0 | AJ130: 0 | AK130: 3 | AW130: Yes
B131: 2178 | C131: 266479 | D131: P | E131: 2019 Peterbilt 567 (Roll-Off) | H131: 1NPCLP0X0KD618188 | J131: 2019 | M131: R/O Truck | N131: 2021-11-01 | O131: 2021-11-01 | Q131: 700 | R131: 14040 | S131: 155000 | T131: 14046 | U131: 33214.29 | V131: 121785.71 | W131: 7380.95 | X131: 51260 | Y131: 1845.23 | Z131: A | AA131: Peninsula Sanitation | AC131: 2 | AD131: Internal | AE131: A | AF131: SL | AH131: WCNX | AI131: 0 | AJ131: 0 | AK131: 2 | AW131: Yes
B132: 2178 | C132: 266478 | D132: P | E132: 2016 Peterbilt 320 (Heil Durapack Automated) | H132: 3BPZLJ0X6GF107244 | J132: 2016 | M132: Automated Sideload | N132: 2021-11-01 | O132: 2021-11-01 | Q132: 400 | R132: 14040 | S132: 155000 | T132: 14046 | U132: 58125 | V132: 96875 | W132: 12916.67 | X132: 51260 | Y132: 3229.17 | Z132: A | AA132: Peninsula Sanitation | AC132: 16 | AD132: Internal | AE132: A | AF132: SL | AH132: WCNX | AI132: 0 | AJ132: 0 | AK132: 16 | AW132: Yes
B133: 2178 | C133: 266477 | D133: P | E133: 2015 Peterbilt 320 (Heil Durapack Automated) | H133: 3BPZLJ0XXFF290940 | J133: 2015 | M133: Automated Sideload | N133: 2021-11-01 | O133: 2021-11-01 | Q133: 300 | R133: 14040 | S133: 140000 | T133: 14046 | U133: 70000.01 | V133: 69999.99 | W133: 15555.56 | X133: 51260 | Y133: 3888.89 | Z133: A | AA133: Peninsula Sanitation | AC133: 15 | AD133: Internal | AE133: A | AF133: SL | AH133: WCNX | AI133: 0 | AJ133: 0 | AK133: 15 | AW133: Yes
B134: 2178 | C134: 266476 | D134: P | E134: 2015 Peterbilt 320 (Heil Durapack Automated) | H134: 3BPZLJ0X3FF290939 | J134: 2015 | M134: Automated Sideload | N134: 2021-11-01 | O134: 2021-11-01 | Q134: 300 | R134: 14040 | S134: 140000 | T134: 14046 | U134: 70000.01 | V134: 69999.99 | W134: 15555.56 | X134: 51260 | Y134: 3888.89 | Z134: A | AA134: Peninsula Sanitation | AC134: 14 | AD134: Internal | AE134: A | AF134: SL | AH134: WCNX | AI134: 0 | AJ134: 0 | AK134: 14 | AW134: Yes
B135: 2178 | C135: 266475 | D135: P | E135: 2014 Peterbilt 365 (Roll-Off) | H135: 1NPSLP0X5ED229417 | J135: 2014 | M135: R/O Truck | N135: 2021-11-01 | O135: 2021-11-01 | Q135: 300 | R135: 14040 | S135: 85000 | T135: 14046 | U135: 42499.98 | V135: 42500.02 | W135: 9444.44 | X135: 51260 | Y135: 2361.11 | Z135: A | AA135: Peninsula Sanitation | AC135: 5 | AD135: Internal | AE135: A | AF135: SL | AH135: WCNX | AI135: 0 | AJ135: 0 | AK135: 5 | AW135: Yes
B136: 2178 | C136: 266474 | D136: P | E136: 2014 Peterbilt 365 (Roll-Off) | H136: 1NPSLP0X3ED229416 | J136: 2014 | M136: R/O Truck | N136: 2021-11-01 | O136: 2021-11-01 | Q136: 300 | R136: 14040 | S136: 85000 | T136: 14046 | U136: 42499.98 | V136: 42500.02 | W136: 9444.44 | X136: 51260 | Y136: 2361.11 | Z136: A | AA136: Peninsula Sanitation | AC136: 4 | AD136: Internal | AE136: A | AF136: SL | AH136: WCNX | AI136: 0 | AJ136: 0 | AK136: 4 | AW136: Yes
B137: 2178 | C137: 266472 | D137: P | E137: 2013 Peterbilt 320 (Heil Durapack Automated) | H137: 3BPZL50X9DF198593 | J137: 2013 | M137: Trailer | N137: 2021-11-01 | O137: 2021-11-01 | Q137: 300 | R137: 14040 | S137: 15000 | T137: 14046 | U137: 7500 | V137: 7500 | W137: 1666.67 | X137: 51260 | Y137: 416.67 | Z137: A | AA137: Peninsula Sanitation | AC137: 61 | AD137: Internal | AE137: A | AF137: SL | AH137: WCNX | AI137: 0 | AJ137: 0 | AK137: 12 | AW137: Yes
B138: 2178 | C138: 266471 | D138: P | E138: 2012 Peterbilt 386 (Tractor) | H138: 1XPHDP9XXCD149351 | J138: 2012 | M138: Tractor | N138: 2021-11-01 | O138: 2021-11-01 | Q138: 300 | R138: 14040 | S138: 25000 | T138: 14046 | U138: 12500 | V138: 12500 | W138: 2777.78 | X138: 51260 | Y138: 694.45 | Z138: A | AA138: Peninsula Sanitation | AC138: 8 | AD138: Internal | AE138: A | AF138: SL | AH138: WCNX | AI138: 0 | AJ138: 0 | AK138: 8 | AW138: Yes
B139: 2178 | C139: 266470 | D139: P | E139: 2011 Chevrolet 63500 (Box Van w/ Lift Gate) | H139: 1GB3G4BG8B1155133 | J139: 2011 | M139: Box Van | N139: 2021-11-01 | O139: 2021-11-01 | Q139: 300 | R139: 14040 | S139: 15000 | T139: 14046 | U139: 7500 | V139: 7500 | W139: 1666.67 | X139: 51260 | Y139: 416.67 | Z139: A | AA139: Peninsula Sanitation | AC139: 101 | AD139: Internal | AE139: A | AF139: SL | AH139: WCNX | AI139: 0 | AJ139: 0 | AK139: CT | AW139: Yes
B140: 2178 | C140: 266467 | D140: P | E140: 2002 Trail Mobile Dry Van (53' Dry Van) | H140: 1PTO1AAH229002614 | J140: 2002 | M140: Box Van | N140: 2021-11-01 | O140: 2021-11-01 | Q140: 0 | R140: 14040 | S140: 0 | T140: 14046 | U140: 0 | V140: 0 | W140: 0 | X140: 51260 | Y140: 0 | Z140: A | AA140: Peninsula Sanitation | AD140: Internal | AE140: A | AF140: NO | AH140: WCNX | AI140: 0 | AJ140: 0 | AK140: VT2 | AW140: Yes
B141: 2178 | C141: 266466 | D141: P | E141: 2002 Trail Mobile Dry Van (53' Dry Van) | H141: 1PTO1AAH529002610 | J141: 2002 | M141: Box Van | N141: 2021-11-01 | O141: 2021-11-01 | Q141: 0 | R141: 14040 | S141: 0 | T141: 14046 | U141: 0 | V141: 0 | W141: 0 | X141: 51260 | Y141: 0 | Z141: A | AA141: Peninsula Sanitation | AD141: Internal | AE141: A | AF141: NO | AH141: WCNX | AI141: 0 | AJ141: 0 | AK141: VT1 | AW141: Yes
B142: 2178 | C142: 266465 | D142: P | E142: 1994 Chevrolet 2500 (Service Truck) | H142: 1GCFC24K9RE226837 | J142: 1994 | M142: Service Truck | N142: 2021-11-01 | O142: 2021-11-01 | Q142: 0 | R142: 14040 | S142: 0 | T142: 14046 | U142: 0 | V142: =S142-U142 -> 0 | W142: 0 | X142: 51260 | Y142: 0 | Z142: A | AA142: Peninsula Sanitation | AC142: 52 | AD142: Internal | AE142: A | AF142: NO | AH142: WCNX | AI142: 0 | AJ142: 0 | AK142: PU3 | AW142: Yes
B143: 2178 | C143: 266463 | D143: P | E143: 1991 Peerless (Drop Box Trailer) | H143: 1PLC02821MTG06770 | J143: 1991 | M143: Trailer | N143: 2021-11-01 | O143: 2021-11-01 | Q143: 0 | R143: 14040 | S143: 0 | T143: 14046 | U143: 0 | V143: 0 | W143: 0 | X143: 51260 | Y143: 0 | Z143: A | AA143: Peninsula Sanitation | AC143: 37 | AD143: Internal | AE143: A | AF143: NO | AH143: WCNX | AI143: 0 | AJ143: 0 | AK143: DBT1 | AW143: Yes
B144: 2178 | C144: 266437 | D144: P | E144: C2GW-November Goodwill | J144: 0 | N144: 2021-11-01 | O144: 2021-11-01 | Q144: 0 | R144: 15110 | S144: -1114618.1 | T144: 15120 | U144: 0 | V144: -1114618.1 | W144: 0 | Y144: 0 | Z144: A | AA144: Peninsula Sanitation | AD144: Internal | AE144: A | AF144: NO | AH144: WCNX | AI144: 0 | AJ144: 0 | AK144: 0 | AW144: Yes
B145: 2178 | C145: 266433 | D145: P | E145: Docking station (NO SN) | F145: 1 | J145: 0 | K145: AMZN MKTP US S79NJ6SK3 | N145: 2021-11-02 | O145: 2021-11-02 | P145: 2178-21-0002-1 | Q145: 300 | R145: 14110 | S145: 271.24 | T145: 14116 | U145: 135.62 | V145: 135.62 | W145: 30.14 | X145: 70260 | Y145: 7.54 | Z145: P | AB145: 4144256 | AD145: Internal | AE145: A | AF145: SL | AH145: WCNX | AI145: 0 | AJ145: 0 | AK145: 0 | AW145: Yes
B146: 2178 | C146: 266034 | D146: P | E146: HP PROBOOK # : 5CD1421C7P | F146: 1 | J146: 0 | K146: CDW DIR #2178 | N146: 2021-11-02 | O146: 2021-11-02 | P146: 2178-21-0002-1 | Q146: 300 | R146: 14110 | S146: 1370.38 | T146: 14116 | U146: 685.18 | V146: 685.2 | W146: 152.26 | X146: 70260 | Y146: 38.06 | Z146: P | AB146: N227774 | AD146: Internal | AE146: A | AF146: SL | AH146: WCNX | AI146: 0 | AJ146: 0 | AK146: 0 | AW146: Yes
B147: 2178 | C147: 265060 | D147: P | E147: 2021 Ford Pickup Truck F250 | H147: 1FTBF2A61MED54365 | J147: 2021 | M147: Pick Up Truck | N147: 2021-11-30 | O147: 2021-11-30 | P147: 2178-21-0001 | Q147: 500 | R147: 14040 | S147: 43995 | T147: 14046 | U147: 12465.25 | V147: 31529.75 | W147: 2933 | X147: 51260 | Y147: 733.25 | Z147: P | AC147: P2 | AD147: Internal | AE147: A | AF147: SL | AH147: WCNX | AI147: 0 | AJ147: 0 | AK147: PU2 | AL147: Service Truck | AM147: =MONTH($N147) -> 11 | AN147: =YEAR($N147) -> 2021 | AO147: =$AN147+($Q147/100) -> 2026 | AP147: =$AO147+($AM147/12) -> 2026.916667 | AQ147: =IFERROR($S147/($Q147/100)/12,0) -> 733.25 | AR147: =$AQ147*12 -> 8799 | AS147: =+IF(AP147<=$AK$9,0,AR147) -> 8799 | AT147: =+IF(AP147<=$AK$10,S147,IF((AN147+(AM147/12))>=$AK$10,0,((S147-((AP147-$AK$10)*12)*AQ147)))) -> 4399.5 | AU147: =IF($AS147=0,S147,($AS147+$AT147)) -> 13198.5 | AV147: =$S147-$AU147 -> 30796.5 | AW147: No

Sheet Bud Capital Input
D1: Column Definitions
Q2: TruckRequest#
A3: PONum_Modified | B3: CurrentProjectNumber_FPS | C3: ProjectNumber_FPS | E3: DeleteFlag | F3: PoNumber | G3: PoItemNumber | H3: ProjectName_FPS | I3: ItemDescription | J3: Explanation | L3: AssetType | M3: AssetSubType | N3: Life | O3: AddReplace | P3: Condition | Q3: TruckCenterNum ValueList:RequestedTruckList | R3: Jan | S3: Feb | T3: Mar | U3: Apr | V3: May | W3: Jun | X3: Jul | Y3: Aug | Z3: Sep | AA3: Oct | AB3: Nov | AC3: Dec | AG3: FASNum | AI3: ReplacementNotes | AJ3: EquipmentNum | AK3: EquipmentModelYear | AM3: FileLink hlink:FileLink
C4: CurrentProjectNumber_FPS | G4: PoItemNumber | AO4: MessageToUser
D5: Formatting Range
A6: =IF(AND(C6<>"", B6<>C6),TRUE, FALSE) -> FALSE | B6: =IF(RIGHT("0000"&F6,4)&"-"&G6 <> "0000-", RIGHT("0000"&F6,4)&"-"&G6, "") ->  | D6: 1 | AE6: =SUM(R6:AC6) -> 0 | AQ6: =IF(Q6="", "", Q6) ->  | AR6: =IFERROR(VLOOKUP($AQ6,[2]TruckCenterReference!$C$23:$I26,3,FALSE), "") ->  | AS6: =IF(Q6<>"",IF(AR6<>H6,"Review","ok"), "") ->  | AU6: =IFERROR(VLOOKUP($AQ6,[2]TruckCenterReference!$C$23:$I26,4,FALSE), "") ->  | AV6: =IF(Q6="","", IF($AU6<>$P6, "Fix!", "ok")) ->  | AX6: =IFERROR(VLOOKUP(M6,SubtypeToTruckType,2,FALSE),"") ->  | AY6: =IFERROR(VLOOKUP($AQ6,[2]TruckCenterReference!$C$23:$I26,6,FALSE), "") ->  | AZ6: =IF(Q6<>"",IF(AX6<>AY6,"Fix!","ok"), "") ->  | BB6: =IFERROR(VLOOKUP($AQ6,[2]TruckCenterReference!$C$23:$I26,7,FALSE), 0) -> 0 | BC6: =IFERROR(VLOOKUP($AQ6,[2]TruckCenterReference!$C$23:$K26,9,FALSE), 0) -> 0 | BD6: =IFERROR(VLOOKUP($AQ6,[2]TruckCenterReference!$C$23:$K26,8,FALSE), 0) -> 0 | BE6: =IF(BB6<>0,BB6-AE6-BD6,"") ->  | BF6: =IF(Q6="","",IF(ABS(BE6)>100,IF(RIGHT(M6,4)="Body","Review","Fix!"),"ok")) -> 
D7: Report Formulas
F8: Pull | L8: =_xll.jFreezePanes(I29,D22) -> > jFreezePanes is ready.
E9: Clear Hash: | F9: =_xll.ReportDefaults("Pull","Clear",_xll.PairGroup(_xll.Pair("",H18))) -> OK!: ReportDefaults Formula OK [jAction{}] | K9: CC Query Drill: | L9: =_xll.ReportDrill(,"CCQueryDrill",_xll.PairGroup(_xll.Pair(K18,"SummaryLevel"),_xll.Pair(H24,"BudYear"),_xll.Pair(H23,"DistrictCell"),_xll.Pair(C30:C79,"PONumber"),_xll.Pair(F20:AO20)),"Drill to CC Query for Change History") -> OK!: ReportDrill 'Drill to CC Query for Change History' Formula OK [jAction{}]
E10: Pull AssetTypeList: | F10: =_xll.ReportRun([2]AssetTypeList!C7,FALSE,"Pull") -> OK!: ReportRun Formula OK [jAction{}]
E11: Pull - BudCap: | F11: =_xll.ReportRange("BudgetCapitalDetailPull",30:53,C3:BE3,C6:BE6,_xll.Param(H23,H24,H18,N18,K19)) -> OK!: ReportRange Formula OK [jAction{}] | AG11: FASNum | AH11: FASDescription
E12: Pull - FAS: | F12: =_xll.ReportFixed("BudCap1",AG30:AG53,AG11:AH11,_xll.Param(DetailBudYear, DetailDistrict)) -> OK!: ReportFixed Formula OK [jAction{}]
F13: =_xll.ReportRun([2]TruckCenterReference!F16,,"Pull") -> OK!: ReportRun Formula OK [jAction{}]
F14: Save
E15: Save: | F15: =_xll.ReportSave("BudgetCapitalDetailSave",B30:B53,A3:AM3,C4:AO4,_xll.Param(H23,H24,H18,N18)) -> OK!: ReportSave Formula OK [jAction{}]
D17: Hidden Parameters & Notes
A18: Repull?: | B18: =IFERROR(OR(A30:A53),FALSE) -> FALSE | G18: FilterHash: | H18: 6D0AC9A9C0621706F1907653EB800A | J18: CC Query Summary Level: | K18: By Change | M18: Exclude Items: | N18: 2
B19: =IF(B18=TRUE,"Save","SkipRePull") -> SkipRePull | J19: Pull Blank Rows: | K19: Yes
F20: For Drill | G20: For Drill | H20: For Drill | I20: For Drill | J20: For Drill | L20: For Drill | M20: For Drill | N20: For Drill | O20: For Drill | P20: For Drill | Q20: For Drill | R20: For Drill | S20: For Drill | T20: For Drill | U20: For Drill | V20: For Drill | W20: For Drill | X20: For Drill | Y20: For Drill | Z20: For Drill | AA20: For Drill | AB20: For Drill | AC20: For Drill | AE20: For Drill | AG20: For Drill | AJ20: For Drill | AK20: For Drill | AM20: For Drill | AO20: For Drill
D21: Report Area Below
G23: Individual District: | H23: 2178 | I23: (Only one district a time for this input page)
G24: Budget Year: | H24: 2023
L25: IMPORTANT: Pull for a single district BEFORE inputting. This will auto create new lines for you and prepare the page for input. | AQ25: Recon Check Against Truck Center
E26: CAPITAL DETAIL
AF27: Replacement Info | AR27: Suggested | AU27: New / Used | AX27: Truck Type | AY27: Truck Type | BB27: Truck Cost
E28: Delete on Save | F28: PO # | G28: Item | H28: PO Description (Required) | I28: PO Item Description | J28: PO Explanation | L28: Asset Type | M28: SubType | N28: Life | O28: A / R | P28: N / U | Q28: Truck Ctr. # | R28: 2010-01-31 | S28: 2010-02-28 | T28: 2010-03-31 | U28: 2010-04-30 | V28: 2010-05-31 | W28: 2010-06-30 | X28: 2010-07-31 | Y28: 2010-08-31 | Z28: 2010-09-30 | AA28: 2010-10-31 | AB28: 2010-11-30 | AC28: 2010-12-31 | AE28: Total | AG28: FAS # | AH28: FAS Description | AI28: Replacement Notes | AJ28: Site Eq # | AK28: Model Year | AM28: Folder/File Link | AO28: Save Message | AQ28: Truck # | AR28: PO Description | AS28: Note | AU28: Truck Center | AV28: Note* | AX28: PO Center | AY28: Truck Center | AZ28: Note | BB28: Truck Center | BC28: Prior year PO | BD28: Prior Year PO$ | BE28: Variance | BF28: Note*
A30: =IF(AND(C30<>"", B30<>C30),TRUE, FALSE) -> FALSE | B30: =IF(RIGHT("0000"&F30,4)&"-"&G30 <> "0000-", RIGHT("0000"&F30,4)&"-"&G30, "") -> 0001-1 | C30: 0001-1 | D30: 1 | F30: 1 | G30: 1 | H30: New Ford Shop Service Truck | I30: New Ford Shop Service Truck | J30: New Ford Shop Service Truck | L30: New Trucks | M30: Service Truck | N30: 10 | O30: R | P30: N | Q30: 17366 | R30: 0 | S30: 0 | T30: 93408 | U30: 0 | V30: 0 | W30: 0 | X30: 0 | Y30: 0 | Z30: 0 | AA30: 0 | AB30: 0 | AC30: 0 | AE30: =SUM(R30:AC30) -> 93408 | AG30: 266462 | AI30: Current service truck is unreliable as it is 35 years old. Current mile radius is around 200 miles. | AK30: 1987 | AQ30: =IF(Q30="", "", Q30) -> 17366 | AR30: =IFERROR(VLOOKUP($AQ30,[2]TruckCenterReference!$C$23:$I50,3,FALSE), "") ->  | AS30: =IF(Q30<>"",IF(AR30<>H30,"Review","ok"), "") -> Review | AU30: =IFERROR(VLOOKUP($AQ30,[2]TruckCenterReference!$C$23:$I50,4,FALSE), "") ->  | AV30: =IF(Q30="","", IF($AU30<>$P30, "Fix!", "ok")) -> Fix! | AX30: =IFERROR(VLOOKUP(M30,SubtypeToTruckType,2,FALSE),"") -> Service Truck | AY30: =IFERROR(VLOOKUP($AQ30,[2]TruckCenterReference!$C$23:$I50,6,FALSE), "") ->  | AZ30: =IF(Q30<>"",IF(AX30<>AY30,"Fix!","ok"), "") -> Fix! | BB30: =IFERROR(VLOOKUP($AQ30,[2]TruckCenterReference!$C$23:$I50,7,FALSE), 0) -> 0 | BC30: =IFERROR(VLOOKUP($AQ30,[2]TruckCenterReference!$C$23:$K50,9,FALSE), 0) -> 0 | BD30: =IFERROR(VLOOKUP($AQ30,[2]TruckCenterReference!$C$23:$K50,8,FALSE), 0) -> 0 | BE30: =IF(BB30<>0,BB30-AE30-BD30,"") ->  | BF30: =IF(Q30="","",IF(ABS(BE30)>100,IF(RIGHT(M30,4)="Body","Review","Fix!"),"ok")) -> 
A31: FALSE | B31: 0002-1 | C31: 0002-1 | D31: 1 | F31: 2 | G31: 1 | H31: New RO Pup Trailer | I31: New RO Pup Trailer | J31: New RO Pup Trailer | L31: New Trucks | M31: Roll Off Pup Trailer | N31: 7 | O31: R | P31: N | Q31: 16485 | R31: 0 | S31: 0 | T31: 0 | U31: 0 | V31: 0 | W31: 0 | X31: 0 | Y31: 0 | Z31: 105157 | AA31: 0 | AB31: 0 | AC31: 0 | AE31: 105157 | AG31: 266463 | AH31: 1991 Peerless (Drop Box Trailer) | AI31: Curent trailer is constently undergoing repairs and doesn't have ABS brakes, and is used about twice/day. | AK31: 1991 | AQ31: 16485 | AR31: =IFERROR(VLOOKUP($AQ31,[2]TruckCenterReference!$C$23:$I51,3,FALSE), "") -> New RO Pup Wagon - Dry | AS31: Review | AU31: =IFERROR(VLOOKUP($AQ31,[2]TruckCenterReference!$C$23:$I51,4,FALSE), "") -> N | AV31: ok | AX31: Trailer | AY31: =IFERROR(VLOOKUP($AQ31,[2]TruckCenterReference!$C$23:$I51,6,FALSE), "") -> Trailer | AZ31: ok | BB31: =IFERROR(VLOOKUP($AQ31,[2]TruckCenterReference!$C$23:$I51,7,FALSE), 0) -> 105157 | BC31: =IFERROR(VLOOKUP($AQ31,[2]TruckCenterReference!$C$23:$K51,9,FALSE), 0) -> 0 | BD31: =IFERROR(VLOOKUP($AQ31,[2]TruckCenterReference!$C$23:$K51,8,FALSE), 0) -> 0 | BE31: 0 | BF31: ok
A32: FALSE | B32: 0003-1 | C32: 0003-1 | D32: 1 | F32: 3 | G32: 1 | H32: Containers Various | I32: Containers Various | J32: Containers Various | L32: Containers | M32: Other – Metal | N32: 12 | O32: R | P32: N | R32: 0 | S32: 0 | T32: 15000 | U32: 0 | V32: 35000 | W32: 0 | X32: 0 | Y32: 35000 | Z32: 0 | AA32: 0 | AB32: 0 | AC32: 0 | AE32: 85000 | AI32: Replacement of old rusted roll off boxes. 300 for addt'l commercial use. | AR32: =IFERROR(VLOOKUP($AQ32,[2]TruckCenterReference!$C$23:$I52,3,FALSE), "") ->  | AU32: =IFERROR(VLOOKUP($AQ32,[2]TruckCenterReference!$C$23:$I52,4,FALSE), "") ->  | AY32: =IFERROR(VLOOKUP($AQ32,[2]TruckCenterReference!$C$23:$I52,6,FALSE), "") ->  | BB32: =IFERROR(VLOOKUP($AQ32,[2]TruckCenterReference!$C$23:$I52,7,FALSE), 0) -> 0 | BC32: =IFERROR(VLOOKUP($AQ32,[2]TruckCenterReference!$C$23:$K52,9,FALSE), 0) -> 0 | BD32: =IFERROR(VLOOKUP($AQ32,[2]TruckCenterReference!$C$23:$K52,8,FALSE), 0) -> 0
A33: FALSE | D33: 1 | R33: 0 | S33: 0 | T33: 0 | U33: 0 | V33: 0 | W33: 0 | X33: 0 | Y33: 0 | Z33: 0 | AA33: 0 | AB33: 0 | AC33: 0 | AE33: 0 | AR33: =IFERROR(VLOOKUP($AQ33,[2]TruckCenterReference!$C$23:$I53,3,FALSE), "") ->  | AU33: =IFERROR(VLOOKUP($AQ33,[2]TruckCenterReference!$C$23:$I53,4,FALSE), "") ->  | AY33: =IFERROR(VLOOKUP($AQ33,[2]TruckCenterReference!$C$23:$I53,6,FALSE), "") ->  | BB33: =IFERROR(VLOOKUP($AQ33,[2]TruckCenterReference!$C$23:$I53,7,FALSE), 0) -> 0 | BC33: =IFERROR(VLOOKUP($AQ33,[2]TruckCenterReference!$C$23:$K53,9,FALSE), 0) -> 0 | BD33: =IFERROR(VLOOKUP($AQ33,[2]TruckCenterReference!$C$23:$K53,8,FALSE), 0) -> 0
A34: FALSE | D34: 1 | R34: 0 | S34: 0 | T34: 0 | U34: 0 | V34: 0 | W34: 0 | X34: 0 | Y34: 0 | Z34: 0 | AA34: 0 | AB34: 0 | AC34: 0 | AE34: 0 | AR34: =IFERROR(VLOOKUP($AQ34,[2]TruckCenterReference!$C$23:$I54,3,FALSE), "") ->  | AU34: =IFERROR(VLOOKUP($AQ34,[2]TruckCenterReference!$C$23:$I54,4,FALSE), "") ->  | AY34: =IFERROR(VLOOKUP($AQ34,[2]TruckCenterReference!$C$23:$I54,6,FALSE), "") ->  | BB34: =IFERROR(VLOOKUP($AQ34,[2]TruckCenterReference!$C$23:$I54,7,FALSE), 0) -> 0 | BC34: =IFERROR(VLOOKUP($AQ34,[2]TruckCenterReference!$C$23:$K54,9,FALSE), 0) -> 0 | BD34: =IFERROR(VLOOKUP($AQ34,[2]TruckCenterReference!$C$23:$K54,8,FALSE), 0) -> 0
A35: FALSE | D35: 1 | R35: 0 | S35: 0 | T35: 0 | U35: 0 | V35: 0 | W35: 0 | X35: 0 | Y35: 0 | Z35: 0 | AA35: 0 | AB35: 0 | AC35: 0 | AE35: 0 | AR35: =IFERROR(VLOOKUP($AQ35,[2]TruckCenterReference!$C$23:$I55,3,FALSE), "") ->  | AU35: =IFERROR(VLOOKUP($AQ35,[2]TruckCenterReference!$C$23:$I55,4,FALSE), "") ->  | AY35: =IFERROR(VLOOKUP($AQ35,[2]TruckCenterReference!$C$23:$I55,6,FALSE), "") ->  | BB35: =IFERROR(VLOOKUP($AQ35,[2]TruckCenterReference!$C$23:$I55,7,FALSE), 0) -> 0 | BC35: =IFERROR(VLOOKUP($AQ35,[2]TruckCenterReference!$C$23:$K55,9,FALSE), 0) -> 0 | BD35: =IFERROR(VLOOKUP($AQ35,[2]TruckCenterReference!$C$23:$K55,8,FALSE), 0) -> 0
A36: FALSE | D36: 1 | R36: 0 | S36: 0 | T36: 0 | U36: 0 | V36: 0 | W36: 0 | X36: 0 | Y36: 0 | Z36: 0 | AA36: 0 | AB36: 0 | AC36: 0 | AE36: 0 | AR36: =IFERROR(VLOOKUP($AQ36,[2]TruckCenterReference!$C$23:$I56,3,FALSE), "") ->  | AU36: =IFERROR(VLOOKUP($AQ36,[2]TruckCenterReference!$C$23:$I56,4,FALSE), "") ->  | AY36: =IFERROR(VLOOKUP($AQ36,[2]TruckCenterReference!$C$23:$I56,6,FALSE), "") ->  | BB36: =IFERROR(VLOOKUP($AQ36,[2]TruckCenterReference!$C$23:$I56,7,FALSE), 0) -> 0 | BC36: =IFERROR(VLOOKUP($AQ36,[2]TruckCenterReference!$C$23:$K56,9,FALSE), 0) -> 0 | BD36: =IFERROR(VLOOKUP($AQ36,[2]TruckCenterReference!$C$23:$K56,8,FALSE), 0) -> 0
A37: FALSE | D37: 1 | R37: 0 | S37: 0 | T37: 0 | U37: 0 | V37: 0 | W37: 0 | X37: 0 | Y37: 0 | Z37: 0 | AA37: 0 | AB37: 0 | AC37: 0 | AE37: 0 | AR37: =IFERROR(VLOOKUP($AQ37,[2]TruckCenterReference!$C$23:$I57,3,FALSE), "") ->  | AU37: =IFERROR(VLOOKUP($AQ37,[2]TruckCenterReference!$C$23:$I57,4,FALSE), "") ->  | AY37: =IFERROR(VLOOKUP($AQ37,[2]TruckCenterReference!$C$23:$I57,6,FALSE), "") ->  | BB37: =IFERROR(VLOOKUP($AQ37,[2]TruckCenterReference!$C$23:$I57,7,FALSE), 0) -> 0 | BC37: =IFERROR(VLOOKUP($AQ37,[2]TruckCenterReference!$C$23:$K57,9,FALSE), 0) -> 0 | BD37: =IFERROR(VLOOKUP($AQ37,[2]TruckCenterReference!$C$23:$K57,8,FALSE), 0) -> 0
A38: FALSE | D38: 1 | R38: 0 | S38: 0 | T38: 0 | U38: 0 | V38: 0 | W38: 0 | X38: 0 | Y38: 0 | Z38: 0 | AA38: 0 | AB38: 0 | AC38: 0 | AE38: 0 | AR38: =IFERROR(VLOOKUP($AQ38,[2]TruckCenterReference!$C$23:$I58,3,FALSE), "") ->  | AU38: =IFERROR(VLOOKUP($AQ38,[2]TruckCenterReference!$C$23:$I58,4,FALSE), "") ->  | AY38: =IFERROR(VLOOKUP($AQ38,[2]TruckCenterReference!$C$23:$I58,6,FALSE), "") ->  | BB38: =IFERROR(VLOOKUP($AQ38,[2]TruckCenterReference!$C$23:$I58,7,FALSE), 0) -> 0 | BC38: =IFERROR(VLOOKUP($AQ38,[2]TruckCenterReference!$C$23:$K58,9,FALSE), 0) -> 0 | BD38: =IFERROR(VLOOKUP($AQ38,[2]TruckCenterReference!$C$23:$K58,8,FALSE), 0) -> 0
A39: FALSE | D39: 1 | R39: 0 | S39: 0 | T39: 0 | U39: 0 | V39: 0 | W39: 0 | X39: 0 | Y39: 0 | Z39: 0 | AA39: 0 | AB39: 0 | AC39: 0 | AE39: 0 | AR39: =IFERROR(VLOOKUP($AQ39,[2]TruckCenterReference!$C$23:$I59,3,FALSE), "") ->  | AU39: =IFERROR(VLOOKUP($AQ39,[2]TruckCenterReference!$C$23:$I59,4,FALSE), "") ->  | AY39: =IFERROR(VLOOKUP($AQ39,[2]TruckCenterReference!$C$23:$I59,6,FALSE), "") ->  | BB39: =IFERROR(VLOOKUP($AQ39,[2]TruckCenterReference!$C$23:$I59,7,FALSE), 0) -> 0 | BC39: =IFERROR(VLOOKUP($AQ39,[2]TruckCenterReference!$C$23:$K59,9,FALSE), 0) -> 0 | BD39: =IFERROR(VLOOKUP($AQ39,[2]TruckCenterReference!$C$23:$K59,8,FALSE), 0) -> 0
A40: FALSE | D40: 1 | R40: 0 | S40: 0 | T40: 0 | U40: 0 | V40: 0 | W40: 0 | X40: 0 | Y40: 0 | Z40: 0 | AA40: 0 | AB40: 0 | AC40: 0 | AE40: 0 | AR40: =IFERROR(VLOOKUP($AQ40,[2]TruckCenterReference!$C$23:$I60,3,FALSE), "") ->  | AU40: =IFERROR(VLOOKUP($AQ40,[2]TruckCenterReference!$C$23:$I60,4,FALSE), "") ->  | AY40: =IFERROR(VLOOKUP($AQ40,[2]TruckCenterReference!$C$23:$I60,6,FALSE), "") ->  | BB40: =IFERROR(VLOOKUP($AQ40,[2]TruckCenterReference!$C$23:$I60,7,FALSE), 0) -> 0 | BC40: =IFERROR(VLOOKUP($AQ40,[2]TruckCenterReference!$C$23:$K60,9,FALSE), 0) -> 0 | BD40: =IFERROR(VLOOKUP($AQ40,[2]TruckCenterReference!$C$23:$K60,8,FALSE), 0) -> 0
A41: FALSE | D41: 1 | R41: 0 | S41: 0 | T41: 0 | U41: 0 | V41: 0 | W41: 0 | X41: 0 | Y41: 0 | Z41: 0 | AA41: 0 | AB41: 0 | AC41: 0 | AE41: 0 | AR41: =IFERROR(VLOOKUP($AQ41,[2]TruckCenterReference!$C$23:$I61,3,FALSE), "") ->  | AU41: =IFERROR(VLOOKUP($AQ41,[2]TruckCenterReference!$C$23:$I61,4,FALSE), "") ->  | AY41: =IFERROR(VLOOKUP($AQ41,[2]TruckCenterReference!$C$23:$I61,6,FALSE), "") ->  | BB41: =IFERROR(VLOOKUP($AQ41,[2]TruckCenterReference!$C$23:$I61,7,FALSE), 0) -> 0 | BC41: =IFERROR(VLOOKUP($AQ41,[2]TruckCenterReference!$C$23:$K61,9,FALSE), 0) -> 0 | BD41: =IFERROR(VLOOKUP($AQ41,[2]TruckCenterReference!$C$23:$K61,8,FALSE), 0) -> 0
A42: FALSE | D42: 1 | R42: 0 | S42: 0 | T42: 0 | U42: 0 | V42: 0 | W42: 0 | X42: 0 | Y42: 0 | Z42: 0 | AA42: 0 | AB42: 0 | AC42: 0 | AE42: 0 | AR42: =IFERROR(VLOOKUP($AQ42,[2]TruckCenterReference!$C$23:$I62,3,FALSE), "") ->  | AU42: =IFERROR(VLOOKUP($AQ42,[2]TruckCenterReference!$C$23:$I62,4,FALSE), "") ->  | AY42: =IFERROR(VLOOKUP($AQ42,[2]TruckCenterReference!$C$23:$I62,6,FALSE), "") ->  | BB42: =IFERROR(VLOOKUP($AQ42,[2]TruckCenterReference!$C$23:$I62,7,FALSE), 0) -> 0 | BC42: =IFERROR(VLOOKUP($AQ42,[2]TruckCenterReference!$C$23:$K62,9,FALSE), 0) -> 0 | BD42: =IFERROR(VLOOKUP($AQ42,[2]TruckCenterReference!$C$23:$K62,8,FALSE), 0) -> 0
A43: FALSE | D43: 1 | R43: 0 | S43: 0 | T43: 0 | U43: 0 | V43: 0 | W43: 0 | X43: 0 | Y43: 0 | Z43: 0 | AA43: 0 | AB43: 0 | AC43: 0 | AE43: 0 | AR43: =IFERROR(VLOOKUP($AQ43,[2]TruckCenterReference!$C$23:$I63,3,FALSE), "") ->  | AU43: =IFERROR(VLOOKUP($AQ43,[2]TruckCenterReference!$C$23:$I63,4,FALSE), "") ->  | AY43: =IFERROR(VLOOKUP($AQ43,[2]TruckCenterReference!$C$23:$I63,6,FALSE), "") ->  | BB43: =IFERROR(VLOOKUP($AQ43,[2]TruckCenterReference!$C$23:$I63,7,FALSE), 0) -> 0 | BC43: =IFERROR(VLOOKUP($AQ43,[2]TruckCenterReference!$C$23:$K63,9,FALSE), 0) -> 0 | BD43: =IFERROR(VLOOKUP($AQ43,[2]TruckCenterReference!$C$23:$K63,8,FALSE), 0) -> 0
A44: FALSE | D44: 1 | R44: 0 | S44: 0 | T44: 0 | U44: 0 | V44: 0 | W44: 0 | X44: 0 | Y44: 0 | Z44: 0 | AA44: 0 | AB44: 0 | AC44: 0 | AE44: 0 | AR44: =IFERROR(VLOOKUP($AQ44,[2]TruckCenterReference!$C$23:$I64,3,FALSE), "") ->  | AU44: =IFERROR(VLOOKUP($AQ44,[2]TruckCenterReference!$C$23:$I64,4,FALSE), "") ->  | AY44: =IFERROR(VLOOKUP($AQ44,[2]TruckCenterReference!$C$23:$I64,6,FALSE), "") ->  | BB44: =IFERROR(VLOOKUP($AQ44,[2]TruckCenterReference!$C$23:$I64,7,FALSE), 0) -> 0 | BC44: =IFERROR(VLOOKUP($AQ44,[2]TruckCenterReference!$C$23:$K64,9,FALSE), 0) -> 0 | BD44: =IFERROR(VLOOKUP($AQ44,[2]TruckCenterReference!$C$23:$K64,8,FALSE), 0) -> 0
A45: FALSE | D45: 1 | R45: 0 | S45: 0 | T45: 0 | U45: 0 | V45: 0 | W45: 0 | X45: 0 | Y45: 0 | Z45: 0 | AA45: 0 | AB45: 0 | AC45: 0 | AE45: 0 | AR45: =IFERROR(VLOOKUP($AQ45,[2]TruckCenterReference!$C$23:$I65,3,FALSE), "") ->  | AU45: =IFERROR(VLOOKUP($AQ45,[2]TruckCenterReference!$C$23:$I65,4,FALSE), "") ->  | AY45: =IFERROR(VLOOKUP($AQ45,[2]TruckCenterReference!$C$23:$I65,6,FALSE), "") ->  | BB45: =IFERROR(VLOOKUP($AQ45,[2]TruckCenterReference!$C$23:$I65,7,FALSE), 0) -> 0 | BC45: =IFERROR(VLOOKUP($AQ45,[2]TruckCenterReference!$C$23:$K65,9,FALSE), 0) -> 0 | BD45: =IFERROR(VLOOKUP($AQ45,[2]TruckCenterReference!$C$23:$K65,8,FALSE), 0) -> 0
A46: FALSE | D46: 1 | R46: 0 | S46: 0 | T46: 0 | U46: 0 | V46: 0 | W46: 0 | X46: 0 | Y46: 0 | Z46: 0 | AA46: 0 | AB46: 0 | AC46: 0 | AE46: 0 | AR46: =IFERROR(VLOOKUP($AQ46,[2]TruckCenterReference!$C$23:$I66,3,FALSE), "") ->  | AU46: =IFERROR(VLOOKUP($AQ46,[2]TruckCenterReference!$C$23:$I66,4,FALSE), "") ->  | AY46: =IFERROR(VLOOKUP($AQ46,[2]TruckCenterReference!$C$23:$I66,6,FALSE), "") ->  | BB46: =IFERROR(VLOOKUP($AQ46,[2]TruckCenterReference!$C$23:$I66,7,FALSE), 0) -> 0 | BC46: =IFERROR(VLOOKUP($AQ46,[2]TruckCenterReference!$C$23:$K66,9,FALSE), 0) -> 0 | BD46: =IFERROR(VLOOKUP($AQ46,[2]TruckCenterReference!$C$23:$K66,8,FALSE), 0) -> 0
A47: FALSE | D47: 1 | R47: 0 | S47: 0 | T47: 0 | U47: 0 | V47: 0 | W47: 0 | X47: 0 | Y47: 0 | Z47: 0 | AA47: 0 | AB47: 0 | AC47: 0 | AE47: 0 | AR47: =IFERROR(VLOOKUP($AQ47,[2]TruckCenterReference!$C$23:$I67,3,FALSE), "") ->  | AU47: =IFERROR(VLOOKUP($AQ47,[2]TruckCenterReference!$C$23:$I67,4,FALSE), "") ->  | AY47: =IFERROR(VLOOKUP($AQ47,[2]TruckCenterReference!$C$23:$I67,6,FALSE), "") ->  | BB47: =IFERROR(VLOOKUP($AQ47,[2]TruckCenterReference!$C$23:$I67,7,FALSE), 0) -> 0 | BC47: =IFERROR(VLOOKUP($AQ47,[2]TruckCenterReference!$C$23:$K67,9,FALSE), 0) -> 0 | BD47: =IFERROR(VLOOKUP($AQ47,[2]TruckCenterReference!$C$23:$K67,8,FALSE), 0) -> 0
A48: FALSE | D48: 1 | R48: 0 | S48: 0 | T48: 0 | U48: 0 | V48: 0 | W48: 0 | X48: 0 | Y48: 0 | Z48: 0 | AA48: 0 | AB48: 0 | AC48: 0 | AE48: 0 | AR48: =IFERROR(VLOOKUP($AQ48,[2]TruckCenterReference!$C$23:$I68,3,FALSE), "") ->  | AU48: =IFERROR(VLOOKUP($AQ48,[2]TruckCenterReference!$C$23:$I68,4,FALSE), "") ->  | AY48: =IFERROR(VLOOKUP($AQ48,[2]TruckCenterReference!$C$23:$I68,6,FALSE), "") ->  | BB48: =IFERROR(VLOOKUP($AQ48,[2]TruckCenterReference!$C$23:$I68,7,FALSE), 0) -> 0 | BC48: =IFERROR(VLOOKUP($AQ48,[2]TruckCenterReference!$C$23:$K68,9,FALSE), 0) -> 0 | BD48: =IFERROR(VLOOKUP($AQ48,[2]TruckCenterReference!$C$23:$K68,8,FALSE), 0) -> 0
A49: FALSE | D49: 1 | R49: 0 | S49: 0 | T49: 0 | U49: 0 | V49: 0 | W49: 0 | X49: 0 | Y49: 0 | Z49: 0 | AA49: 0 | AB49: 0 | AC49: 0 | AE49: 0 | AR49: =IFERROR(VLOOKUP($AQ49,[2]TruckCenterReference!$C$23:$I69,3,FALSE), "") ->  | AU49: =IFERROR(VLOOKUP($AQ49,[2]TruckCenterReference!$C$23:$I69,4,FALSE), "") ->  | AY49: =IFERROR(VLOOKUP($AQ49,[2]TruckCenterReference!$C$23:$I69,6,FALSE), "") ->  | BB49: =IFERROR(VLOOKUP($AQ49,[2]TruckCenterReference!$C$23:$I69,7,FALSE), 0) -> 0 | BC49: =IFERROR(VLOOKUP($AQ49,[2]TruckCenterReference!$C$23:$K69,9,FALSE), 0) -> 0 | BD49: =IFERROR(VLOOKUP($AQ49,[2]TruckCenterReference!$C$23:$K69,8,FALSE), 0) -> 0
A50: FALSE | D50: 1 | R50: 0 | S50: 0 | T50: 0 | U50: 0 | V50: 0 | W50: 0 | X50: 0 | Y50: 0 | Z50: 0 | AA50: 0 | AB50: 0 | AC50: 0 | AE50: 0 | AR50: =IFERROR(VLOOKUP($AQ50,[2]TruckCenterReference!$C$23:$I70,3,FALSE), "") ->  | AU50: =IFERROR(VLOOKUP($AQ50,[2]TruckCenterReference!$C$23:$I70,4,FALSE), "") ->  | AY50: =IFERROR(VLOOKUP($AQ50,[2]TruckCenterReference!$C$23:$I70,6,FALSE), "") ->  | BB50: =IFERROR(VLOOKUP($AQ50,[2]TruckCenterReference!$C$23:$I70,7,FALSE), 0) -> 0 | BC50: =IFERROR(VLOOKUP($AQ50,[2]TruckCenterReference!$C$23:$K70,9,FALSE), 0) -> 0 | BD50: =IFERROR(VLOOKUP($AQ50,[2]TruckCenterReference!$C$23:$K70,8,FALSE), 0) -> 0
A51: FALSE | D51: 1 | R51: 0 | S51: 0 | T51: 0 | U51: 0 | V51: 0 | W51: 0 | X51: 0 | Y51: 0 | Z51: 0 | AA51: 0 | AB51: 0 | AC51: 0 | AE51: 0 | AR51: =IFERROR(VLOOKUP($AQ51,[2]TruckCenterReference!$C$23:$I71,3,FALSE), "") ->  | AU51: =IFERROR(VLOOKUP($AQ51,[2]TruckCenterReference!$C$23:$I71,4,FALSE), "") ->  | AY51: =IFERROR(VLOOKUP($AQ51,[2]TruckCenterReference!$C$23:$I71,6,FALSE), "") ->  | BB51: =IFERROR(VLOOKUP($AQ51,[2]TruckCenterReference!$C$23:$I71,7,FALSE), 0) -> 0 | BC51: =IFERROR(VLOOKUP($AQ51,[2]TruckCenterReference!$C$23:$K71,9,FALSE), 0) -> 0 | BD51: =IFERROR(VLOOKUP($AQ51,[2]TruckCenterReference!$C$23:$K71,8,FALSE), 0) -> 0
A52: FALSE | D52: 1 | R52: 0 | S52: 0 | T52: 0 | U52: 0 | V52: 0 | W52: 0 | X52: 0 | Y52: 0 | Z52: 0 | AA52: 0 | AB52: 0 | AC52: 0 | AE52: 0 | AR52: =IFERROR(VLOOKUP($AQ52,[2]TruckCenterReference!$C$23:$I72,3,FALSE), "") ->  | AU52: =IFERROR(VLOOKUP($AQ52,[2]TruckCenterReference!$C$23:$I72,4,FALSE), "") ->  | AY52: =IFERROR(VLOOKUP($AQ52,[2]TruckCenterReference!$C$23:$I72,6,FALSE), "") ->  | BB52: =IFERROR(VLOOKUP($AQ52,[2]TruckCenterReference!$C$23:$I72,7,FALSE), 0) -> 0 | BC52: =IFERROR(VLOOKUP($AQ52,[2]TruckCenterReference!$C$23:$K72,9,FALSE), 0) -> 0 | BD52: =IFERROR(VLOOKUP($AQ52,[2]TruckCenterReference!$C$23:$K72,8,FALSE), 0) -> 0
E53: End of List (save and re-pull for at least 5 more rows)
Q54: TOTAL CAPITAL | R54: =SUM(R29:R53) -> 0 | S54: 0 | T54: 108408 | U54: 0 | V54: 35000 | W54: 0 | X54: 0 | Y54: 35000 | Z54: 105157 | AA54: 0 | AB54: 0 | AC54: 0 | AE54: =SUM(AE29:AE53) -> 283565
L56: Item | M56: Cost | N56: Adjustment | O56: Adjusted Cost | P56: Useful Lefe | Q56: Test Year Depreciation | R56: Ending Accum Depreciation | S56: Average Investment
L57: Service Truck | M57: =+AE30 -> 93408 | N57: =-M57 -> -93408 | O57: =+M57+N57 -> 0 | P57: =+N30 -> 10 | Q57: =+O57/P57 -> 0 | R57: =+Q57 -> 0 | S57: 0
L58: Roll-off Trailer | M58: =+AE31 -> 105157 | N58: 0 | O58: 105157 | P58: =+N31 -> 7 | Q58: =+O58/P58 -> 15022.42857 | R58: =+Q58 -> 15022.42857 | S58: =+O58-R58 -> 90134.57143
L59: Drop Boxes | M59: =+SUMIF($M$30:$M$52,L59,$AE$30:$AE$52) -> 0 | N59: =17900+15000 -> 32900 | O59: 32900 | P59: 12 | Q59: =+O59/P59 -> 2741.666667 | R59: 2741.666667 | S59: =+O59-R59 -> 30158.33333
L60: Garbage Carts | M60: 0 | N60: =38050+14050 -> 52100 | O60: 52100 | P60: 7 | Q60: =+O60/P60 -> 7442.857143 | R60: 7442.857143 | S60: 44657.14286
L61: Containers | M61: =+AE32 -> 85000 | N61: =+-N59-N60 -> -85000 | O61: 0 | R61: 0 | S61: 0
O62: =SUM(O58:O61) -> 190157 | Q62: =SUM(Q58:Q61) -> 25206.95238 | R62: =SUM(R58:R61) -> 25206.95238 | S62: =SUM(S58:S61) -> 164950.0476

Sheet Pre Acquisition Assets
B1: Peninsula Sanitation Services, Inc. | P1: 5 | Q1: Test Period Beg. Month
B2: Regulatory Depreciation Schedule | P2: 4 | Q2: Test Period End Month
B3: 2020-09-30 | P3: 2022 | Q3: First Year
P4: 2023 | Q4: Second year
B5: $400k is the over reconized revenue | P5: =+P4+(P2/12) -> 2023.333333 | Q5: Test Period End Mo/Yr
B6: Prior year adjustment for $400k February | P6: =+P3+(P1/12) -> 2022.416667 | Q6: Test Period Beg. Mo/Yr
B7: Livermore | U7: Total | V7: Beginning | W7: Allocated | Y7: Allocated | Z7: Ending
D8: Date in Service | F8: Salvage | I8: Year | L8: Year/Mo | R8: Disposal | S8: Total | U8: Allocated | V8: Accumulated | W8: Accumulated | X8: Branch | Y8: Accum. | Z8: Accumulated
F9: Value | G9: Method | H9: Life | I9: Fully | J9: Disposal | L9: Fully | M9: Asset | N9: Asset | O9: Depreciable | P9: Monthly | Q9: Test year | R9: Year | S9: Test yr. | T9: % | U9: Test year | V9: Depreciation | W9: Depreciation | X9: Allo. | Y9: Depr. | Z9: Depreciation | AA9: Average
A10: Depreciation | B10: DESCRIPTION | C10: Waste Connections Equipment Type | D10: Year | E10: Mo. | F10: % | I10: Depreciated | J10: Yr. | K10: Mo. | L10: Depreciated | M10: Cost | N10: Disposal | O10: Cost | P10: Depreciation | Q10: Depreciation | R10: Depr. | S10: Depr. | T10: Allo. | U10: Depr. | V10: 2019-10-01 | W10: 39814 | X10: % | Y10: 39814 | Z10: 2020-09-30 | AA10: Investment
A11: Schedule No.
B12: GARBAGE COLLECTION EQUIPMENT
A15: 53-a | B15: 1991 Peerless trailer | C15: Roll-off Truck | D15: 1998 | E15: 9 | F15: 0 | G15: SL | H15: 5 | I15: =+D15+H15 -> 2003 | L15: =+I15+E15/12 -> 2003.75 | M15: =7100-2343 -> 4757 | O15: =M15-M15*F15 -> 4757 | P15: =O15/H15/12 -> 79.28333333 | Q15: =+IF(L15<=$P$5,0,P15*12) -> 0 | R15: =IF(N15=0,0,IF((AND((AF15>=AE15),(AF15<=AD15))),((AF15-AE15)*12)*P15,0)) -> 0 | S15: =IF(R15>0,R15,Q15) -> 0 | T15: 1 | U15: =T15*SUM(Q15:R15) -> 0 | V15: =+IF(L15<=$P$6,M15,IF((D15+(E15/12))>=$P$6,0,((M15-((L15-$P$6)*12)*P15)))) -> 4757 | W15: =V15*T15 -> 4757 | X15: 1 | Y15: =W15*X15 -> 4757 | Z15: =+IF(U15=0,M15,Y15+U15) -> 4757 | AA15: =+O15-Z15 -> 0
A16: 53-SV | B16: 1991 Peerless trailer - Salvage Value | C16: Roll-off Truck | D16: 2017 | E16: 12 | F16: 0 | G16: SL | H16: 5 | I16: =+D16+H16 -> 2022 | L16: 2023 | M16: 2343 | O16: =M16-M16*F16 -> 2343 | P16: =O16/H16/12 -> 39.05 | Q16: =+IF(L16<=$P$5,0,P16*12) -> 0 | R16: =IF(N16=0,0,IF((AND((AF16>=AE16),(AF16<=AD16))),((AF16-AE16)*12)*P16,0)) -> 0 | S16: =IF(R16>0,R16,Q16) -> 0 | T16: 1 | U16: =T16*SUM(Q16:R16) -> 0 | V16: =+IF(L16<=$P$6,M16,IF((D16+(E16/12))>=$P$6,0,((M16-((L16-$P$6)*12)*P16)))) -> 2069.65 | W16: =V16*T16 -> 2069.65 | X16: 1 | Y16: =W16*X16 -> 2069.65 | Z16: =+IF(U16=0,M16,Y16+U16) -> 2343 | AA16: =+O16-Z16 -> 0
A17: 67-a | B17: 94 Chev Service Truck | C17: Service Truck | D17: 2003 | E17: 10 | F17: 0 | G17: SL | H17: 5 | I17: 2008 | L17: 2008.833333 | M17: =13900-4587 -> 9313 | O17: 9313 | P17: 155.2166667 | Q17: 0 | R17: 0 | S17: 0 | T17: 1 | U17: 0 | V17: 9313 | W17: 9313 | X17: 1 | Y17: 9313 | Z17: 9313 | AA17: 0
A18: 67-SV | B18: 94 Chev Service Truck - Salvage Value | C18: Service Truck | D18: 2017 | E18: 12 | F18: 0 | G18: SL | H18: 5 | I18: =+D18+H18 -> 2022 | L18: 2023 | M18: 4587 | O18: 4587 | P18: 76.45 | Q18: 0 | R18: 0 | S18: 0 | T18: 1 | U18: 0 | V18: 4051.85 | W18: 4051.85 | X18: 1 | Y18: 4051.85 | Z18: 4587 | AA18: 0
A19: 68-a | B19: 94 Chev Service Truck Body | C19: Service Truck | D19: 2003 | E19: 10 | F19: 0 | G19: SL | H19: 5 | I19: 2008 | L19: 2008.833333 | M19: =8298-2738 -> 5560 | O19: 5560 | P19: 92.66666667 | Q19: 0 | R19: 0 | S19: 0 | T19: 1 | U19: 0 | V19: 5560 | W19: 5560 | X19: 1 | Y19: 5560 | Z19: 5560 | AA19: 0
A20: 68-SV | B20: 94 Chev Service Truck Body-Salvage Value | C20: Service Truck | D20: 2017 | E20: 12 | F20: 0 | G20: SL | H20: 5 | I20: =+D20+H20 -> 2022 | L20: 2023 | M20: 2738 | O20: 2738 | P20: 45.63333333 | Q20: 0 | R20: 0 | S20: 0 | T20: 1 | U20: 0 | V20: 2418.566667 | W20: 2418.566667 | X20: 1 | Y20: 2418.566667 | Z20: 2738 | AA20: 0
A21: 96-a | B21: 2013 Peterbilt 320 #12 | C21: Garbage Trucks | D21: 2012 | E21: 9 | F21: 0 | G21: SL | H21: 7 | I21: 2019 | L21: 2019.75 | M21: =152150-30430 -> 121720 | O21: 121720 | P21: 1449.047619 | Q21: 0 | R21: 0 | S21: 0 | T21: 1 | U21: 0 | V21: 121720 | W21: 121720 | X21: 1 | Y21: 121720 | Z21: 121720 | AA21: 0
A22: 96-SV | B22: 2013 Peterbilt 320 #12-Salvage Value | C22: Garbage Trucks | D22: 2017 | E22: 12 | F22: 0 | G22: SL | H22: 7 | I22: =+D22+H22 -> 2024 | L22: 2025 | M22: 30430 | O22: 30430 | P22: 362.2619048 | Q22: 4347.142857 | R22: 0 | S22: 4347.142857 | T22: 1 | U22: 4347.142857 | V22: 19199.88095 | W22: 19199.88095 | X22: 1 | Y22: 19199.88095 | Z22: 23547.02381 | AA22: 6882.97619
A23: 101-a | B23: DP 7000 28yd Dump #12 | C23: Garbage Trucks | D23: 2013 | E23: 4 | F23: 0 | G23: SL | H23: 7 | I23: 2020 | L23: 2020.333333 | M23: =137629-27526 -> 110103 | O23: 110103 | P23: 1310.75 | Q23: 0 | R23: 0 | S23: 0 | T23: 1 | U23: 0 | V23: 110103 | W23: 110103 | X23: 1 | Y23: 110103 | Z23: 110103 | AA23: 0
A24: 101-SV | B24: DP 7000 28yd Dump #12-Salvage Value | C24: Garbage Trucks | D24: 2017 | E24: 12 | F24: 0 | G24: SL | H24: 7 | I24: =+D24+H24 -> 2024 | L24: 2025 | M24: 27526 | O24: 27526 | P24: 327.6904762 | Q24: 3932.285714 | R24: 0 | S24: 3932.285714 | T24: 1 | U24: 3932.285714 | V24: 17367.59524 | W24: 17367.59524 | X24: 1 | Y24: 17367.59524 | Z24: 21299.88095 | AA24: 6226.119048
A25: 102-a | B25: 2014 Peterbilt 365 #4 | C25: Roll-off Truck | D25: 2013 | E25: 7 | F25: 0 | G25: SL | H25: 7 | I25: 2020 | L25: 2020.583333 | M25: =138938-27788 -> 111150 | O25: 111150 | P25: 1323.214286 | Q25: 0 | R25: 0 | S25: 0 | T25: 1 | U25: 0 | V25: 111150 | W25: 111150 | X25: 1 | Y25: 111150 | Z25: 111150 | AA25: 0
A26: 102-SV | B26: 2014 Peterbilt 365 #4-Salvage Value | C26: Roll-off Truck | D26: 2017 | E26: 12 | F26: 0 | G26: SL | H26: 7 | I26: =+D26+H26 -> 2024 | L26: 2025 | M26: 27788 | O26: 27788 | P26: 330.8095238 | Q26: 3969.714286 | R26: 0 | S26: 3969.714286 | T26: 1 | U26: 3969.714286 | V26: 17532.90476 | W26: 17532.90476 | X26: 1 | Y26: 17532.90476 | Z26: 21502.61905 | AA26: 6285.380952
A27: 103-a | B27: 2014 Peterbilt 365 #5 | C27: Roll-off Truck | D27: 2013 | E27: 8 | F27: 0 | G27: SL | H27: 7 | I27: 2020 | L27: 2020.666667 | M27: =138938-27788 -> 111150 | O27: 111150 | P27: 1323.214286 | Q27: 0 | R27: 0 | S27: 0 | T27: 1 | U27: 0 | V27: 111150 | W27: 111150 | X27: 1 | Y27: 111150 | Z27: 111150 | AA27: 0
A28: 103-SV | B28: 2014 Peterbilt 365 #5-Salvage Value | C28: Roll-off Truck | D28: 2017 | E28: 12 | F28: 0 | G28: SL | H28: 7 | I28: =+D28+H28 -> 2024 | L28: 2025 | M28: 27788 | O28: 27788 | P28: 330.8095238 | Q28: 3969.714286 | R28: 0 | S28: 3969.714286 | T28: 1 | U28: 3969.714286 | V28: 17532.90476 | W28: 17532.90476 | X28: 1 | Y28: 17532.90476 | Z28: 21502.61905 | AA28: 6285.380952
A29: 104-a | B29: #5 Rolloff Boom | C29: Roll-off Truck | D29: 2013 | E29: 7 | F29: 0 | G29: SL | H29: 7 | I29: 2020 | L29: 2020.583333 | M29: =71455-14291 -> 57164 | O29: 57164 | P29: 680.5238095 | Q29: 0 | R29: 0 | S29: 0 | T29: 1 | U29: 0 | V29: 57164 | W29: 57164 | X29: 1 | Y29: 57164 | Z29: 57164 | AA29: 0
A30: 104-SV | B30: #5 Rolloff Boom-Salvage Value | C30: Roll-off Truck | D30: 2017 | E30: 12 | F30: 0 | G30: SL | H30: 7 | I30: =+D30+H30 -> 2024 | L30: 2025 | M30: 14291 | O30: 14291 | P30: 170.1309524 | Q30: 2041.571429 | R30: 0 | S30: 2041.571429 | T30: 1 | U30: 2041.571429 | V30: 9016.940476 | W30: 9016.940476 | X30: 1 | Y30: 9016.940476 | Z30: 11058.5119 | AA30: 3232.488095
A31: 105-a | B31: #4 Rolloff Boom | C31: Roll-off Truck | D31: 2013 | E31: 8 | F31: 0 | G31: SL | H31: 7 | I31: 2020 | L31: 2020.666667 | M31: =74027-14805 -> 59222 | O31: 59222 | P31: 705.0238095 | Q31: 0 | R31: 0 | S31: 0 | T31: 1 | U31: 0 | V31: 59222 | W31: 59222 | X31: 1 | Y31: 59222 | Z31: 59222 | AA31: 0
A32: 105-SV | B32: #4 Rolloff Boom-Salvage Value | C32: Roll-off Truck | D32: 2017 | E32: 12 | F32: 0 | G32: SL | H32: 7 | I32: =+D32+H32 -> 2024 | L32: 2025 | M32: 14805 | O32: 14805 | P32: 176.25 | Q32: 2115 | R32: 0 | S32: 2115 | T32: 1 | U32: 2115 | V32: 9341.25 | W32: 9341.25 | X32: 1 | Y32: 9341.25 | Z32: 11456.25 | AA32: 3348.75
A33: 106-a | B33: 2014 Peterbilt 320 #14 | C33: Garbage Trucks | D33: 2014 | E33: 10 | F33: 0 | G33: SL | H33: 7 | I33: 2021 | L33: 2021.833333 | M33: =152700-30540 -> 122160 | O33: 122160 | P33: 1454.285714 | Q33: 0 | R33: 0 | S33: 0 | T33: 1 | U33: 0 | V33: 122160 | W33: 122160 | X33: 1 | Y33: 122160 | Z33: 122160 | AA33: 0
A34: 106-SV | B34: 2014 Peterbilt 320 #14-Salvage Value | C34: Garbage Trucks | D34: 2017 | E34: 12 | F34: 0 | G34: SL | H34: 7 | I34: =+D34+H34 -> 2024 | L34: 2025 | M34: 30540 | O34: 30540 | P34: 363.5714286 | Q34: 4362.857143 | R34: 0 | S34: 4362.857143 | T34: 1 | U34: 4362.857143 | V34: 19269.28571 | W34: 19269.28571 | X34: 1 | Y34: 19269.28571 | Z34: 23632.14286 | AA34: 6907.857143
A35: 108-a | B35: DP 7000 28yd Dump #14 | C35: Garbage Trucks | D35: 2014 | E35: 12 | F35: 0 | G35: SL | H35: 7 | I35: 2021 | L35: 2022 | M35: =153776-30755 -> 123021 | O35: 123021 | P35: 1464.535714 | Q35: 0 | R35: 0 | S35: 0 | T35: 1 | U35: 0 | V35: 123021 | W35: 123021 | X35: 1 | Y35: 123021 | Z35: 123021 | AA35: 0
A36: 108-SV | B36: DP 7000 28yd Dump #14-Salvage Value | C36: Garbage Trucks | D36: 2017 | E36: 12 | F36: 0 | G36: SL | H36: 7 | I36: =+D36+H36 -> 2024 | L36: 2025 | M36: 30755 | O36: 30755 | P36: 366.1309524 | Q36: 4393.571429 | R36: 0 | S36: 4393.571429 | T36: 1 | U36: 4393.571429 | V36: 19404.94048 | W36: 19404.94048 | X36: 1 | Y36: 19404.94048 | Z36: 23798.5119 | AA36: 6956.488095
A37: 110-a | B37: 2015 Peterbilt 320 #15 | C37: Garbage Trucks | D37: 2015 | E37: 4 | F37: 0 | G37: SL | H37: 7 | I37: 2022 | L37: 2022.333333 | M37: =152827-30565 -> 122262 | O37: 122262 | P37: 1455.5 | Q37: 0 | R37: 0 | S37: 0 | T37: 1 | U37: 0 | V37: 122262 | W37: 122262 | X37: 1 | Y37: 122262 | Z37: 122262 | AA37: 0
A38: 110-SV | B38: 2015 Peterbilt 320 #15-Salvage Value | C38: Garbage Trucks | D38: 2017 | E38: 12 | F38: 0 | G38: SL | H38: 7 | I38: =+D38+H38 -> 2024 | L38: 2025 | M38: 30565 | O38: 30565 | P38: 363.8690476 | Q38: 4366.428571 | R38: 0 | S38: 4366.428571 | T38: 1 | U38: 4366.428571 | V38: 19285.05952 | W38: 19285.05952 | X38: 1 | Y38: 19285.05952 | Z38: 23651.4881 | AA38: 6913.511905
A39: 111-a | B39: 2016 Peterbilt 320 #16 | C39: Garbage Trucks | D39: 2015 | E39: 9 | F39: 0 | G39: SL | H39: 7 | I39: 2022 | L39: 2022.75 | M39: =152827-30565 -> 122262 | O39: 122262 | P39: 1455.5 | Q39: 0 | R39: 0 | S39: 0 | T39: 1 | U39: 0 | V39: 116440 | W39: 116440 | X39: 1 | Y39: 116440 | Z39: 122262 | AA39: 0
A40: 111-SV | B40: 2016 Peterbilt 320 #16-Salvage Value | C40: Garbage Trucks | D40: 2017 | E40: 12 | F40: 0 | G40: SL | H40: 7 | I40: =+D40+H40 -> 2024 | L40: 2025 | M40: 30565 | O40: 30565 | P40: 363.8690476 | Q40: 4366.428571 | R40: 0 | S40: 4366.428571 | T40: 1 | U40: 4366.428571 | V40: 19285.05952 | W40: 19285.05952 | X40: 1 | Y40: 19285.05952 | Z40: 23651.4881 | AA40: 6913.511905
A41: 112-a | B41: Heil Refuse Body DP7000 #15 | C41: Garbage Trucks | D41: 2015 | E41: 5 | F41: 0 | G41: SL | H41: 7 | I41: 2022 | L41: 2022.416667 | M41: =153776-30755 -> 123021 | O41: 123021 | P41: 1464.535714 | Q41: 0 | R41: 0 | S41: 0 | T41: 1 | U41: 0 | V41: 123021 | W41: 123021 | X41: 1 | Y41: 123021 | Z41: 123021 | AA41: 0
A42: 112-SV | B42: Heil Refuse Body DP7000 #15-Salvage Value | C42: Garbage Trucks | D42: 2017 | E42: 12 | F42: 0 | G42: SL | H42: 7 | I42: =+D42+H42 -> 2024 | L42: 2025 | M42: 30755 | O42: 30755 | P42: 366.1309524 | Q42: 4393.571429 | R42: 0 | S42: 4393.571429 | T42: 1 | U42: 4393.571429 | V42: 19404.94048 | W42: 19404.94048 | X42: 1 | Y42: 19404.94048 | Z42: 23798.5119 | AA42: 6956.488095
A43: 115-a | B43: Heil Refuse Body DP7000 #16 | C43: Garbage Trucks | D43: 2015 | E43: 12 | F43: 0 | G43: SL | H43: 7 | I43: 2022 | L43: 2023 | M43: =157400-31480 -> 125920 | O43: 125920 | P43: 1499.047619 | Q43: 0 | R43: 0 | S43: 0 | T43: 1 | U43: 0 | V43: 115426.6667 | W43: 115426.6667 | X43: 1 | Y43: 115426.6667 | Z43: 125920 | AA43: 0
A44: 115-SV | B44: Heil Refuse Body DP7000 #16-Salvage Value | C44: Garbage Trucks | D44: 2017 | E44: 12 | F44: 0 | G44: SL | H44: 7 | I44: 2024 | L44: 2025 | M44: 31480 | O44: 31480 | P44: 374.7619048 | Q44: 4497.142857 | R44: 0 | S44: 4497.142857 | T44: 1 | U44: 4497.142857 | V44: 19862.38095 | W44: 19862.38095 | X44: 1 | Y44: 19862.38095 | Z44: 24359.52381 | AA44: 7120.47619
A45: 120-a | B45: 2019 Peterbuilt #2 | C45: Roll-off Truck | D45: 2018 | E45: 7 | F45: 0 | G45: SL | H45: 7 | I45: 2025 | L45: 2025.583333 | M45: 134223 | O45: 134223 | P45: 1597.892857 | Q45: 19174.71429 | R45: 0 | S45: 19174.71429 | T45: 1 | U45: 19174.71429 | V45: 73503.07143 | W45: 73503.07143 | X45: 1 | Y45: 73503.07143 | Z45: 92677.78571 | AA45: 41545.21429
A46: 121-a | B46: 2019 Peterbuilt #3 | C46: Roll-off Truck | D46: 2018 | E46: 7 | F46: 0 | G46: SL | H46: 7 | I46: 2025 | L46: 2025.583333 | M46: 134223 | O46: 134223 | P46: 1597.892857 | Q46: 19174.71429 | R46: 0 | S46: 19174.71429 | T46: 1 | U46: 19174.71429 | V46: 73503.07143 | W46: 73503.07143 | X46: 1 | Y46: 73503.07143 | Z46: 92677.78571 | AA46: 41545.21429
A47: 125-a | B47: Roll - Off #3 | C47: Roll-off Truck | D47: 2018 | E47: 11 | F47: 0 | G47: SL | H47: 7 | I47: 2025 | L47: 2025.916667 | M47: 73667 | O47: 73667 | P47: 876.9880952 | Q47: 10523.85714 | R47: 0 | S47: 10523.85714 | T47: 1 | U47: 10523.85714 | V47: 36833.5 | W47: 36833.5 | X47: 1 | Y47: 36833.5 | Z47: 47357.35714 | AA47: 26309.64286
A48: 126-a | B48: Roll - Off #2 | C48: Roll-off Truck | D48: 2018 | E48: 11 | F48: 0 | G48: SL | H48: 7 | I48: 2025 | L48: 2025.916667 | M48: 73667 | O48: 73667 | P48: 876.9880952 | Q48: 10523.85714 | R48: 0 | S48: 10523.85714 | T48: 1 | U48: 10523.85714 | V48: 36833.5 | W48: 36833.5 | X48: 1 | Y48: 36833.5 | Z48: 47357.35714 | AA48: 26309.64286
B49: 2022 Peterbilt RH Drive-Side Loader | C49: Garbage Trucks | D49: 2019 | E49: 10 | F49: 0 | G49: SL | H49: 7 | I49: =+D49+H49 -> 2026 | L49: 2026.833333 | M49: 344974 | O49: 344974 | P49: 4106.833333 | Q49: 49282 | R49: 0 | S49: 49282 | T49: 1 | U49: 49282 | V49: 127311.8333 | W49: 127311.8333 | X49: 1 | Y49: 127311.8333 | Z49: 176593.8333 | AA49: 168380.1667
B50: 2022 Bodies for Peterbilt RH Drive-Side Loader | C50: Garbage Trucks | D50: 2019 | E50: 10 | F50: 0 | G50: SL | H50: 7 | I50: =+D50+H50 -> 2026 | L50: 2026.833333 | M50: 320170 | O50: 320170 | P50: 3811.547619 | Q50: 45738.57143 | R50: 0 | S50: 45738.57143 | T50: 1 | U50: 45738.57143 | V50: 118157.9762 | W50: 118157.9762 | X50: 1 | Y50: 118157.9762 | Z50: 163896.5476 | AA50: 156273.4524
A51: STAFF CAPITALIZED ITEMS - LAST RATE CASE
B53: Truck #3-Differental Replacement | C53: Roll-off Truck | D53: 2013 | E53: 7 | F53: 0 | G53: SL | H53: 5 | I53: =+D53+H53 -> 2018 | L53: 2018.583333 | M53: 2313 | O53: =M53-M53*F53 -> 2313 | P53: =O53/H53/12 -> 38.55 | Q53: =+IF(L53<=$P$5,0,P53*12) -> 0 | R53: =IF(N53=0,0,IF((AND((AF53>=AE53),(AF53<=AD53))),((AF53-AE53)*12)*P53,0)) -> 0 | S53: =IF(R53>0,R53,Q53) -> 0 | T53: 1 | U53: =T53*SUM(Q53:R53) -> 0 | V53: =+IF(L53<=$P$6,M53,IF((D53+(E53/12))>=$P$6,0,((M53-((L53-$P$6)*12)*P53)))) -> 2313 | W53: =V53*T53 -> 2313 | X53: 1 | Y53: =W53*X53 -> 2313 | Z53: =+IF(U53=0,M53,Y53+U53) -> 2313 | AA53: =+O53-Z53 -> 0
B54: Trucks #4 & 5 Painting | C54: Roll-off Truck | D54: 2013 | E54: 7 | F54: 0 | G54: SL | H54: 5 | I54: =+D54+H54 -> 2018 | L54: 2018.583333 | M54: 3981 | O54: 3981 | P54: 66.35 | Q54: 0 | R54: 0 | S54: 0 | T54: 1 | U54: 0 | V54: 3981 | W54: 3981 | X54: 1 | Y54: 3981 | Z54: 3981 | AA54: 0
B55: Sub-Total - Collection Equipment | M55: =SUM(M15:M54) -> 2752959 | O55: =SUM(O15:O54) -> 2752959 | P55: 32942.80714 | Q55: 201173.1429 | R55: 0 | S55: 201173.1429 | U55: 201173.1429 | V55: 1999949.829 | W55: 1999949.829 | Y55: 1999949.829 | Z55: 2218566.238 | AA55: 534392.7619
B57: BUILDINGS
A58: 1 | B58: Building | C58: Structure - Hauling Only | D58: 1998 | E58: 5 | G58: SL | H58: 30 | I58: =+D58+H58 -> 2028 | L58: =+I58+E58/12 -> 2028.416667 | M58: 336581 | O58: =M58-M58*F58 -> 336581 | P58: =O58/H58/12 -> 934.9472222 | Q58: =+IF(L58<=$P$5,0,P58*12) -> 11219.36667 | R58: =IF(N58=0,0,IF((AND((AF58>=AE58),(AF58<=AD58))),((AF58-AE58)*12)*P58,0)) -> 0 | S58: =IF(R58>0,R58,Q58) -> 11219.36667 | T58: 1 | U58: =T58*SUM(Q58:R58) -> 11219.36667 | V58: =+IF(L58<=$P$6,M58,IF((D58+(E58/12))>=$P$6,0,((M58-((L58-$P$6)*12)*P58)))) -> 269264.8 | W58: =V58*T58 -> 269264.8 | X58: 1 | Y58: =W58*X58 -> 269264.8 | Z58: =+IF(U58=0,M58,Y58+U58) -> 280484.1667 | AA58: =+O58-Z58 -> 56096.83333
A59: 54 | B59: Leasehold Improvement | C59: Leasehold Improvements | D59: 1995 | E59: 12 | G59: SL | H59: 15 | I59: =+D59+H59 -> 2010 | L59: 2011 | M59: 112 | O59: 112 | P59: 0.6222222222 | Q59: 0 | R59: 0 | S59: 0 | T59: 1 | U59: 0 | V59: 112 | W59: 112 | X59: 1 | Y59: 112 | Z59: 112 | AA59: 0
A60: 91 | B60: Paving | C60: Leasehold Improvements | D60: 2003 | E60: 5 | G60: SL | H60: 15 | I60: =+D60+H60 -> 2018 | L60: 2018.416667 | M60: 16759 | O60: 16759 | P60: 93.10555556 | Q60: 0 | R60: 0 | S60: 0 | T60: 1 | U60: 0 | V60: 16759 | W60: 16759 | X60: 1 | Y60: 16759 | Z60: 16759 | AA60: 0
A61: 125 | B61: Truck Cover Building | C61: Structure - Hauling Only | D61: 2009 | E61: 7 | G61: SL | H61: 30 | I61: =+D61+H61 -> 2039 | L61: 2039.583333 | M61: 230079 | O61: 230079 | P61: 639.1083333 | Q61: 7669.3 | R61: 0 | S61: 7669.3 | T61: 1 | U61: 7669.3 | V61: 98422.68333 | W61: 98422.68333 | X61: 1 | Y61: 98422.68333 | Z61: 106091.9833 | AA61: 123987.0167
B62: Sub-Total - Buildings | M62: =SUM(M58:M61) -> 583531 | O62: =SUM(O58:O61) -> 583531 | P62: 1667.783333 | Q62: 18888.66667 | R62: 0 | S62: 18888.66667 | U62: 18888.66667 | V62: 384558.4833 | W62: 384558.4833 | Y62: 384558.4833 | Z62: 403447.15 | AA62: 180083.85
B64: CONTAINERS AND DROP BOXES
A65: 8 | B65: 2 20yd drop boxes | C65: Drop Boxes | D65: 1996 | E65: 2 | G65: SL | H65: 10 | I65: =+D65+H65 -> 2006 | L65: =+I65+E65/12 -> 2006.166667 | M65: 8570 | O65: =M65-M65*F65 -> 8570 | P65: =O65/H65/12 -> 71.41666667 | Q65: =+IF(L65<=$P$5,0,P65*12) -> 0 | R65: =IF(N65=0,0,IF((AND((AF65>=AE65),(AF65<=AD65))),((AF65-AE65)*12)*P65,0)) -> 0 | S65: =IF(R65>0,R65,Q65) -> 0 | T65: 1 | U65: =T65*SUM(Q65:R65) -> 0 | V65: =+IF(L65<=$P$6,M65,IF((D65+(E65/12))>=$P$6,0,((M65-((L65-$P$6)*12)*P65)))) -> 8570 | W65: =V65*T65 -> 8570 | X65: 1 | Y65: =W65*X65 -> 8570 | Z65: =+IF(U65=0,M65,Y65+U65) -> 8570 | AA65: =+O65-Z65 -> 0
A66: 25 | B66: 3-30yd Drop boxes | C66: Drop Boxes | D66: 1994 | E66: 2 | G66: SL | H66: 10 | I66: =+D66+H66 -> 2004 | L66: =+I66+E66/12 -> 2004.166667 | M66: 8786 | O66: =M66-M66*F66 -> 8786 | P66: =O66/H66/12 -> 73.21666667 | Q66: =+IF(L66<=$P$5,0,P66*12) -> 0 | R66: =IF(N66=0,0,IF((AND((AF66>=AE66),(AF66<=AD66))),((AF66-AE66)*12)*P66,0)) -> 0 | S66: =IF(R66>0,R66,Q66) -> 0 | T66: 1 | U66: =T66*SUM(Q66:R66) -> 0 | V66: =+IF(L66<=$P$6,M66,IF((D66+(E66/12))>=$P$6,0,((M66-((L66-$P$6)*12)*P66)))) -> 8786 | W66: =V66*T66 -> 8786 | X66: 1 | Y66: =W66*X66 -> 8786 | Z66: =+IF(U66=0,M66,Y66+U66) -> 8786 | AA66: =+O66-Z66 -> 0
A67: 26 | B67: 3-30yd Boxes | C67: Drop Boxes | D67: 1994 | E67: 7 | G67: SL | H67: 10 | I67: =+D67+H67 -> 2004 | L67: =+I67+E67/12 -> 2004.583333 | M67: 9315 | O67: =M67-M67*F67 -> 9315 | P67: =O67/H67/12 -> 77.625 | Q67: =+IF(L67<=$P$5,0,P67*12) -> 0 | R67: =IF(N67=0,0,IF((AND((AF67>=AE67),(AF67<=AD67))),((AF67-AE67)*12)*P67,0)) -> 0 | S67: =IF(R67>0,R67,Q67) -> 0 | T67: 1 | U67: =T67*SUM(Q67:R67) -> 0 | V67: =+IF(L67<=$P$6,M67,IF((D67+(E67/12))>=$P$6,0,((M67-((L67-$P$6)*12)*P67)))) -> 9315 | W67: =V67*T67 -> 9315 | X67: 1 | Y67: =W67*X67 -> 9315 | Z67: =+IF(U67=0,M67,Y67+U67) -> 9315 | AA67: =+O67-Z67 -> 0
A68: 28 | B68: 2 Drop boxes | C68: Drop Boxes | D68: 1996 | E68: 1 | G68: SL | H68: 10 | I68: 2006 | L68: 2006.083333 | M68: 10884 | O68: 10884 | P68: 90.7 | Q68: 0 | R68: 0 | S68: 0 | T68: 1 | U68: 0 | V68: 10884 | W68: 10884 | X68: 1 | Y68: 10884 | Z68: 10884 | AA68: 0
A69: 34 | B69: 150-60 F/A Containers | C69: Garbage Carts | D69: 1994 | E69: 5 | G69: SL | H69: 10 | I69: 2004 | L69: 2004.416667 | M69: 7357 | O69: 7357 | P69: 61.30833333 | Q69: 0 | R69: 0 | S69: 0 | T69: 1 | U69: 0 | V69: 7357 | W69: 7357 | X69: 1 | Y69: 7357 | Z69: 7357 | AA69: 0
A70: 36 | B70: 25 300F Auto containers | C70: Garbage Carts | D70: 1994 | E70: 5 | G70: SL | H70: 10 | I70: 2004 | L70: 2004.416667 | M70: 3622 | O70: 3622 | P70: 30.18333333 | Q70: 0 | R70: 0 | S70: 0 | T70: 1 | U70: 0 | V70: 3622 | W70: 3622 | X70: 1 | Y70: 3622 | Z70: 3622 | AA70: 0
A71: 40 | B71: 29 60 gal totes | C71: Garbage Carts | D71: 1993 | E71: 8 | G71: SL | H71: 10 | I71: 2003 | L71: 2003.666667 | M71: 784 | O71: 784 | P71: 6.533333333 | Q71: 0 | R71: 0 | S71: 0 | T71: 1 | U71: 0 | V71: 784 | W71: 784 | X71: 1 | Y71: 784 | Z71: 784 | AA71: 0
A72: 41 | B72: 200-60 Gal totes | C72: Garbage Carts | D72: 1995 | E72: 4 | G72: SL | H72: 10 | I72: 2005 | L72: 2005.333333 | M72: 10466 | O72: 10466 | P72: 87.21666667 | Q72: 0 | R72: 0 | S72: 0 | T72: 1 | U72: 0 | V72: 10466 | W72: 10466 | X72: 1 | Y72: 10466 | Z72: 10466 | AA72: 0
A73: 42 | B73: 50-90 gal totes | C73: Garbage Carts | D73: 1995 | E73: 4 | G73: SL | H73: 10 | I73: 2005 | L73: 2005.333333 | M73: 3103 | O73: 3103 | P73: 25.85833333 | Q73: 0 | R73: 0 | S73: 0 | T73: 1 | U73: 0 | V73: 3103 | W73: 3103 | X73: 1 | Y73: 3103 | Z73: 3103 | AA73: 0
A74: 43 | B74: 1-300 Gal tote | C74: Garbage Carts | D74: 1995 | E74: 4 | G74: SL | H74: 10 | I74: 2005 | L74: 2005.333333 | M74: 193 | O74: 193 | P74: 1.608333333 | Q74: 0 | R74: 0 | S74: 0 | T74: 1 | U74: 0 | V74: 193 | W74: 193 | X74: 1 | Y74: 193 | Z74: 193 | AA74: 0
A75: 62 | B75: 1-20yd Drop box | C75: Drop Boxes | D75: 1997 | E75: 1 | G75: SL | H75: 10 | I75: 2007 | L75: 2007.083333 | M75: 2538 | O75: 2538 | P75: 21.15 | Q75: 0 | R75: 0 | S75: 0 | T75: 1 | U75: 0 | V75: 2538 | W75: 2538 | X75: 1 | Y75: 2538 | Z75: 2538 | AA75: 0
A76: 63 | B76: 623 Roller totes | C76: Garbage Carts | D76: 1997 | E76: 2 | G76: SL | H76: 10 | I76: 2007 | L76: 2007.166667 | M76: 33457 | O76: 33457 | P76: 278.8083333 | Q76: 0 | R76: 0 | S76: 0 | T76: 1 | U76: 0 | V76: 33457 | W76: 33457 | X76: 1 | Y76: 33457 | Z76: 33457 | AA76: 0
A77: 74 | B77: Totes | C77: Garbage Carts | D77: 1999 | E77: 9 | G77: SL | H77: 10 | I77: 2009 | L77: 2009.75 | M77: 9458 | O77: 9458 | P77: 78.81666667 | Q77: 0 | R77: 0 | S77: 0 | T77: 1 | U77: 0 | V77: 9458 | W77: 9458 | X77: 1 | Y77: 9458 | Z77: 9458 | AA77: 0
A78: 79 | B78: New Totes | C78: Garbage Carts | D78: 2000 | E78: 8 | G78: SL | H78: 10 | I78: 2010 | L78: 2010.666667 | M78: 20502 | O78: 20502 | P78: 170.85 | Q78: 0 | R78: 0 | S78: 0 | T78: 1 | U78: 0 | V78: 20502 | W78: 20502 | X78: 1 | Y78: 20502 | Z78: 20502 | AA78: 0
A79: 81 | B79: 30Yd Drop Boxes | C79: Drop Boxes | D79: 2001 | E79: 1 | G79: SL | H79: 10 | I79: =+D79+H79 -> 2011 | L79: =+I79+E79/12 -> 2011.083333 | M79: 12006 | O79: =M79-M79*F79 -> 12006 | P79: =O79/H79/12 -> 100.05 | Q79: =+IF(L79<=$P$5,0,P79*12) -> 0 | R79: =IF(N79=0,0,IF((AND((AF79>=AE79),(AF79<=AD79))),((AF79-AE79)*12)*P79,0)) -> 0 | S79: =IF(R79>0,R79,Q79) -> 0 | T79: 1 | U79: =T79*SUM(Q79:R79) -> 0 | V79: =+IF(L79<=$P$6,M79,IF((D79+(E79/12))>=$P$6,0,((M79-((L79-$P$6)*12)*P79)))) -> 12006 | W79: =V79*T79 -> 12006 | X79: 1 | Y79: =W79*X79 -> 12006 | Z79: =+IF(U79=0,M79,Y79+U79) -> 12006 | AA79: =+O79-Z79 -> 0
A80: 85 | B80: Totes | C80: Garbage Carts | D80: 2002 | E80: 6 | G80: SL | H80: 10 | I80: 2012 | L80: 2012.5 | M80: 12584 | O80: 12584 | P80: 104.8666667 | Q80: 0 | R80: 0 | S80: 0 | T80: 1 | U80: 0 | V80: 12584 | W80: 12584 | X80: 1 | Y80: 12584 | Z80: 12584 | AA80: 0
A81: 89 | B81: New totes | C81: Garbage Carts | D81: 2003 | E81: 6 | G81: SL | H81: 10 | I81: 2013 | L81: 2013.5 | M81: 11326 | O81: 11326 | P81: 94.38333333 | Q81: 0 | R81: 0 | S81: 0 | T81: 1 | U81: 0 | V81: 11326 | W81: 11326 | X81: 1 | Y81: 11326 | Z81: 11326 | AA81: 0
A82: 92 | B82: 30 Yd. Drop Boxes-#1 2 3 | C82: Drop Boxes | D82: 2003 | E82: 8 | G82: SL | H82: 10 | I82: =+D82+H82 -> 2013 | L82: =+I82+E82/12 -> 2013.666667 | M82: 34364 | O82: =M82-M82*F82 -> 34364 | P82: =O82/H82/12 -> 286.3666667 | Q82: =+IF(L82<=$P$5,0,P82*12) -> 0 | R82: =IF(N82=0,0,IF((AND((AF82>=AE82),(AF82<=AD82))),((AF82-AE82)*12)*P82,0)) -> 0 | S82: =IF(R82>0,R82,Q82) -> 0 | T82: 1 | U82: =T82*SUM(Q82:R82) -> 0 | V82: =+IF(L82<=$P$6,M82,IF((D82+(E82/12))>=$P$6,0,((M82-((L82-$P$6)*12)*P82)))) -> 34364 | W82: =V82*T82 -> 34364 | X82: 1 | Y82: =W82*X82 -> 34364 | Z82: =+IF(U82=0,M82,Y82+U82) -> 34364 | AA82: =+O82-Z82 -> 0
A83: 96 | B83: 60 & 90 Gallon cans | C83: Garbage Carts | D83: 2004 | E83: 9 | G83: SL | H83: 10 | I83: 2014 | L83: 2014.75 | M83: 8286 | O83: 8286 | P83: 69.05 | Q83: 0 | R83: 0 | S83: 0 | T83: 1 | U83: 0 | V83: 8286 | W83: 8286 | X83: 1 | Y83: 8286 | Z83: 8286 | AA83: 0
A84: 99 | B84: 20 Yd. Boxes - 4 | C84: Drop Boxes | D84: 2005 | E84: 2 | G84: SL | H84: 10 | I84: 2015 | L84: 2015.166667 | M84: 16233 | O84: 16233 | P84: 135.275 | Q84: 0 | R84: 0 | S84: 0 | T84: 1 | U84: 0 | V84: 16233 | W84: 16233 | X84: 1 | Y84: 16233 | Z84: 16233 | AA84: 0
A85: 102 | B85: Totes | C85: Garbage Carts | D85: 2005 | E85: 8 | G85: SL | H85: 10 | I85: 2015 | L85: 2015.666667 | M85: 19267 | O85: 19267 | P85: 160.5583333 | Q85: 0 | R85: 0 | S85: 0 | T85: 1 | U85: 0 | V85: 19267 | W85: 19267 | X85: 1 | Y85: 19267 | Z85: 19267 | AA85: 0
A86: 107 | B86: Totes | C86: Garbage Carts | D86: 2006 | E86: 3 | G86: SL | H86: 10 | I86: 2016 | L86: 2016.25 | M86: 11053 | O86: 11053 | P86: 92.10833333 | Q86: 0 | R86: 0 | S86: 0 | T86: 1 | U86: 0 | V86: 11053 | W86: 11053 | X86: 1 | Y86: 11053 | Z86: 11053 | AA86: 0
A87: 109 | B87: 400 60 Gallon Cans | C87: Garbage Carts | D87: 2006 | E87: 6 | G87: SL | H87: 10 | I87: 2016 | L87: 2016.5 | M87: 26614 | O87: 26614 | P87: 221.7833333 | Q87: 0 | R87: 0 | S87: 0 | T87: 1 | U87: 0 | V87: 26614 | W87: 26614 | X87: 1 | Y87: 26614 | Z87: 26614 | AA87: 0
A88: 114 | B88: Totes | C88: Garbage Carts | D88: 2007 | E88: 8 | G88: SL | H88: 10 | I88: 2017 | L88: 2017.666667 | M88: 18120 | O88: 18120 | P88: 151 | Q88: 0 | R88: 0 | S88: 0 | T88: 1 | U88: 0 | V88: 18120 | W88: 18120 | X88: 1 | Y88: 18120 | Z88: 18120 | AA88: 0
A89: 117 | B89: 3 - 30yd Drop Boxes | C89: Drop Boxes | D89: 2008 | E89: 2 | G89: SL | H89: 10 | I89: 2018 | L89: 2018.166667 | M89: 21378 | O89: 21378 | P89: 178.15 | Q89: 0 | R89: 0 | S89: 0 | T89: 1 | U89: 0 | V89: 21378 | W89: 21378 | X89: 1 | Y89: 21378 | Z89: 21378 | AA89: 0
A90: 118 | B90: 90, 300 & 60 Gal. Cans | C90: Garbage Carts | D90: 2008 | E90: 2 | G90: SL | H90: 10 | I90: 2018 | L90: 2018.166667 | M90: 18565 | O90: 18565 | P90: 154.7083333 | Q90: 0 | R90: 0 | S90: 0 | T90: 1 | U90: 0 | V90: 18565 | W90: 18565 | X90: 1 | Y90: 18565 | Z90: 18565 | AA90: 0
A91: 99 | B91: 90 Gallon Cans | C91: Garbage Carts | D91: 2012 | E91: 10 | G91: SL | H91: 10 | I91: 2022 | L91: 2022.833333 | M91: 13252 | O91: 13252 | P91: 110.4333333 | Q91: 0 | R91: 0 | S91: 0 | T91: 1 | U91: 0 | V91: 12699.83333 | W91: 12699.83333 | X91: 1 | Y91: 12699.83333 | Z91: 13252 | AA91: 0
A92: 100 | B92: 60 Gallon Cans | C92: Garbage Carts | D92: 2012 | E92: 10 | G92: SL | H92: 10 | I92: 2022 | L92: 2022.833333 | M92: 12280 | O92: 12280 | P92: 102.3333333 | Q92: 0 | R92: 0 | S92: 0 | T92: 1 | U92: 0 | V92: 11768.33333 | W92: 11768.33333 | X92: 1 | Y92: 11768.33333 | Z92: 12280 | AA92: 0
A93: 107 | B93: New Cans - 400 | C93: Garbage Carts | D93: 2014 | E93: 8 | G93: SL | H93: 10 | I93: 2024 | L93: 2024.666667 | M93: 26505 | O93: 26505 | P93: 220.875 | Q93: 2650.5 | R93: 0 | S93: 2650.5 | T93: 1 | U93: 2650.5 | V93: 20541.375 | W93: 20541.375 | X93: 1 | Y93: 20541.375 | Z93: 23191.875 | AA93: 3313.125
A94: 113 | B94: Drop Boxes | C94: Drop Boxes | D94: 2015 | E94: 10 | G94: SL | H94: 10 | I94: 2025 | L94: 2025.833333 | M94: 32100 | O94: 32100 | P94: 267.5 | Q94: 3210 | R94: 0 | S94: 3210 | T94: 1 | U94: 3210 | V94: 21132.5 | W94: 21132.5 | X94: 1 | Y94: 21132.5 | Z94: 24342.5 | AA94: 7757.5
A95: 114 | B95: 400 - 60 Gallon Totes | C95: Garbage Carts | D95: 2015 | E95: 12 | G95: SL | H95: 10 | I95: 2025 | L95: 2026 | M95: 26100 | O95: 26100 | P95: 217.5 | Q95: 2610 | R95: 0 | S95: 2610 | T95: 1 | U95: 2610 | V95: 16747.5 | W95: 16747.5 | X95: 1 | Y95: 16747.5 | Z95: 19357.5 | AA95: 6742.5
A96: 116 | B96: Compactor | C96: Garbage Carts | D96: 2016 | E96: 7 | G96: SL | H96: 10 | I96: 2026 | L96: 2026.583333 | M96: 14835 | O96: 14835 | P96: 123.625 | Q96: 1483.5 | R96: 0 | S96: 1483.5 | T96: 1 | U96: 1483.5 | V96: 8653.75 | W96: 8653.75 | X96: 1 | Y96: 8653.75 | Z96: 10137.25 | AA96: 4697.75
A97: 118 | B97: 300 60 Gal Totes & 100 96 Gal Totes | C97: Garbage Carts | D97: 2017 | E97: 5 | G97: SL | H97: 10 | I97: 2027 | L97: 2027.416667 | M97: 26605 | O97: 26605 | P97: 221.7083333 | Q97: 2660.5 | R97: 0 | S97: 2660.5 | T97: 1 | U97: 2660.5 | V97: 13302.5 | W97: 13302.5 | X97: 1 | Y97: 13302.5 | Z97: 15963 | AA97: 10642
A98: 122 | B98: 100 - 300 Gal Cans | C98: Garbage Carts | D98: 2018 | E98: 6 | G98: SL | H98: 10 | I98: 2028 | L98: 2028.5 | M98: 27490 | O98: 27490 | P98: 229.0833333 | Q98: 2749 | R98: 0 | S98: 2749 | T98: 1 | U98: 2749 | V98: 10766.91667 | W98: 10766.91667 | X98: 1 | Y98: 10766.91667 | Z98: 13515.91667 | AA98: 13974.08333
A99: 123 | B99: 300 - 60 Gal Cans | C99: Garbage Carts | D99: 2018 | E99: 6 | G99: SL | H99: 10 | I99: 2028 | L99: 2028.5 | M99: 22560 | O99: 22560 | P99: 188 | Q99: 2256 | R99: 0 | S99: 2256 | T99: 1 | U99: 2256 | V99: 8836 | W99: 8836 | X99: 1 | Y99: 8836 | Z99: 11092 | AA99: 11468
A100: 124 | B100: 100 - 90 Gal Cans | C100: Garbage Carts | D100: 2018 | E100: 6 | G100: SL | H100: 10 | I100: 2028 | L100: 2028.5 | M100: 6290 | O100: 6290 | P100: 52.41666667 | Q100: 629 | R100: 0 | S100: 629 | T100: 1 | U100: 629 | V100: 2463.583333 | W100: 2463.583333 | X100: 1 | Y100: 2463.583333 | Z100: 3092.583333 | AA100: 3197.416667
A101: 127 | B101: 210 - 60 Gal Cans | C101: Garbage Carts | D101: 2019 | E101: 5 | G101: SL | H101: 10 | I101: 2029 | L101: 2029.416667 | M101: 14543 | O101: 14543 | P101: 121.1916667 | Q101: 1454.3 | R101: 0 | S101: 1454.3 | T101: 1 | U101: 1454.3 | V101: 4362.9 | W101: 4362.9 | X101: 1 | Y101: 4362.9 | Z101: 5817.2 | AA101: 8725.8
A102: 128 | B102: 300 - 60 Gal Cans 100 - 90 Gal Cans | C102: Garbage Carts | D102: 2019 | E102: 9 | G102: SL | H102: 10 | I102: 2029 | L102: 2029.75 | M102: 27835 | O102: 27835 | P102: 231.9583333 | Q102: 2783.5 | R102: 0 | S102: 2783.5 | T102: 1 | U102: 2783.5 | V102: 7422.666667 | W102: 7422.666667 | X102: 1 | Y102: 7422.666667 | Z102: 10206.16667 | AA102: 17628.83333
A103: 129 | B103: 350 - 65 Gal Bear Carts & 100 - 95 Gal Bear | C103: Garbage Carts | D103: 2019 | E103: 10 | G103: SL | H103: 10 | I103: 2029 | L103: 2029.833333 | M103: 110127 | O103: 110127 | P103: 917.725 | Q103: 11012.7 | R103: 0 | S103: 11012.7 | T103: 1 | U103: 11012.7 | V103: 28449.475 | W103: 28449.475 | X103: 1 | Y103: 28449.475 | Z103: 39462.175 | AA103: 70664.825
B104: 200 - 60 Gal Cans 30 96 Gal Cans | C104: Garbage Carts | D104: 2019 | E104: 10 | G104: SL | H104: 10 | I104: 2029 | L104: 2029.833333 | M104: 16696 | O104: 16696 | P104: 139.1333333 | Q104: 1669.6 | R104: 0 | S104: 1669.6 | T104: 1 | U104: 1669.6 | V104: 4313.133333 | W104: 4313.133333 | X104: 1 | Y104: 4313.133333 | Z104: 5982.733333 | AA104: 10713.26667
B106: Sub-Total - Containers & Drop Boxes | M106: =SUM(M65:M104) -> 716049 | N106: 0 | O106: 716049 | P106: 5967.075 | Q106: 35168.6 | R106: 0 | S106: 35168.6 | U106: =SUM(U65:U104) -> 35168.6 | V106: =SUM(V65:V104) -> 510291.4667 | W106: =SUM(W65:W104) -> 510291.4667 | Y106: =SUM(Y65:Y104) -> 510291.4667 | Z106: =SUM(Z65:Z104) -> 546523.9 | AA106: =SUM(AA65:AA104) -> 169525.1
R107: =IF(N107=0,0,IF((AND((AF107>=AE107),(AF107<=AD107))),((AF107-AE107)*12)*P107,0)) -> 0 | S107: =IF(R107>0,R107,Q107) -> 0 | U107: =T107*SUM(Q107:R107) -> 0
B108: SHOP EQUIPMENT
A109: 9 | B109: U Air compressor | C109: Shop Equipment | D109: 1993 | E109: 9 | G109: SL | H109: 5 | I109: =+D109+H109 -> 1998 | L109: =+I109+E109/12 -> 1998.75 | M109: 300 | O109: =M109-M109*F109 -> 300 | P109: =O109/H109/12 -> 5 | Q109: =+IF(L109<=$P$5,0,P109*12) -> 0 | R109: =IF(N109=0,0,IF((AND((AF109>=AE109),(AF109<=AD109))),((AF109-AE109)*12)*P109,0)) -> 0 | S109: =IF(R109>0,R109,Q109) -> 0 | T109: 1 | U109: =T109*SUM(Q109:R109) -> 0 | V109: =+IF(L109<=$P$6,M109,IF((D109+(E109/12))>=$P$6,0,((M109-((L109-$P$6)*12)*P109)))) -> 300 | W109: =V109*T109 -> 300 | X109: 1 | Y109: =W109*X109 -> 300 | Z109: =+IF(U109=0,M109,Y109+U109) -> 300 | AA109: =+O109-Z109 -> 0
A110: 19 | B110: Base radio speaker | C110: Shop Equipment | D110: 1986 | E110: 5 | G110: SL | H110: 5 | I110: =+D110+H110 -> 1991 | L110: 1991.416667 | M110: 1621 | O110: 1621 | P110: 27.01666667 | Q110: 0 | R110: 0 | S110: 0 | T110: 1 | U110: 0 | V110: 1621 | W110: 1621 | X110: 1 | Y110: 1621 | Z110: 1621 | AA110: 0
A111: 46 | B111: Midland Radio #15 | C111: Shop Equipment | D111: 1993 | E111: 6 | G111: SL | H111: 5 | I111: 1998 | L111: 1998.5 | M111: 971 | O111: 971 | P111: 16.18333333 | Q111: 0 | R111: 0 | S111: 0 | T111: 1 | U111: 0 | V111: 971 | W111: 971 | X111: 1 | Y111: 971 | Z111: 971 | AA111: 0
A112: 47 | B112: Tarp | C112: Shop Equipment | D112: 1993 | E112: 8 | G112: SL | H112: 5 | I112: 1998 | L112: 1998.666667 | M112: 3500 | O112: 3500 | P112: 58.33333333 | Q112: 0 | R112: 0 | S112: 0 | T112: 1 | U112: 0 | V112: 3500 | W112: 3500 | X112: 1 | Y112: 3500 | Z112: 3500 | AA112: 0
A113: 50 | B113: Tool box & lift ga | C113: Shop Equipment | D113: 1994 | E113: 10 | G113: SL | H113: 5 | I113: 1999 | L113: 1999.833333 | M113: 550 | O113: 550 | P113: 9.166666667 | Q113: 0 | R113: 0 | S113: 0 | T113: 1 | U113: 0 | V113: 550 | W113: 550 | X113: 1 | Y113: 550 | Z113: 550 | AA113: 0
A114: 51 | B114: Jensen radio #1 | C114: Shop Equipment | D114: 1995 | E114: 4 | G114: SL | H114: 5 | I114: 2000 | L114: 2000.333333 | M114: 923 | O114: 923 | P114: 15.38333333 | Q114: 0 | R114: 0 | S114: 0 | T114: 1 | U114: 0 | V114: 923 | W114: 923 | X114: 1 | Y114: 923 | Z114: 923 | AA114: 0
A115: 52 | B115: Peerless Roll off H | C115: Shop Equipment | D115: 1988 | E115: 3 | G115: SL | H115: 5 | I115: 1993 | L115: 1993.25 | M115: 2880 | O115: 2880 | P115: 48 | Q115: 0 | R115: 0 | S115: 0 | T115: 1 | U115: 0 | V115: 2880 | W115: 2880 | X115: 1 | Y115: 2880 | Z115: 2880 | AA115: 0
A116: 53 | B116: Midland radio | C116: Shop Equipment | D116: 1989 | E116: 12 | G116: SL | H116: 5 | I116: 1994 | L116: 1995 | M116: 775 | O116: 775 | P116: 12.91666667 | Q116: 0 | R116: 0 | S116: 0 | T116: 1 | U116: 0 | V116: 775 | W116: 775 | X116: 1 | Y116: 775 | Z116: 775 | AA116: 0
A117: 67 | B117: Compressor | C117: Shop Equipment | D117: 1997 | E117: 9 | G117: SL | H117: 5 | I117: =+D117+H117 -> 2002 | L117: 2002.75 | M117: 1615 | O117: 1615 | P117: 26.91666667 | Q117: 0 | R117: 0 | S117: 0 | T117: 1 | U117: 0 | V117: 1615 | W117: 1615 | X117: 1 | Y117: 1615 | Z117: 1615 | AA117: 0
A118: 68 | B118: Tools | C118: Shop Equipment | D118: 1997 | E118: 10 | G118: SL | H118: 5 | I118: =+D118+H118 -> 2002 | L118: 2002.833333 | M118: 2781 | O118: 2781 | P118: 46.35 | Q118: 0 | R118: 0 | S118: 0 | T118: 1 | U118: 0 | V118: 2781 | W118: 2781 | X118: 1 | Y118: 2781 | Z118: 2781 | AA118: 0
A119: 116 | B119: Drop Box Compactor 15 Yard | C119: Shop Equipment | D119: 2008 | E119: 6 | G119: SL | H119: 10 | I119: =+D119+H119 -> 2018 | L119: 2018.5 | M119: 11303 | O119: 11303 | P119: 94.19166667 | Q119: 0 | R119: 0 | S119: 0 | T119: 1 | U119: 0 | V119: 11303 | W119: 11303 | X119: 1 | Y119: 11303 | Z119: 11303 | AA119: 0
B120: Sub-Total - Shop Equipment | M120: =SUM(M109:M119) -> 27219 | N120: 0 | O120: =SUM(O109:O119) -> 27219 | P120: 359.4583333 | Q120: 0 | R120: 0 | S120: 0 | U120: 0 | V120: 27219 | W120: 27219 | Y120: 27219 | Z120: 27219 | AA120: 0
B122: OFFICE EQUIPMENT
A123: 2 | B123: Oak Desk | C123: Office Equipment | D123: 1988 | E123: 12 | G123: SL | H123: 5 | I123: =+D123+H123 -> 1993 | M123: 205 | O123: =M123-M123*F123 -> 205 | P123: =O123/H123/12 -> 3.416666667 | Q123: =+IF(L123<=$P$5,0,P123*12) -> 0 | R123: =IF(N123=0,0,IF((AND((AF123>=AE123),(AF123<=AD123))),((AF123-AE123)*12)*P123,0)) -> 0 | S123: =IF(R123>0,R123,Q123) -> 0 | T123: 1 | U123: =T123*SUM(Q123:R123) -> 0 | V123: =+IF(L123<=$P$6,M123,IF((D123+(E123/12))>=$P$6,0,((M123-((L123-$P$6)*12)*P123)))) -> 205 | W123: =V123*T123 -> 205 | X123: 1 | Y123: =W123*X123 -> 205 | Z123: =+IF(U123=0,M123,Y123+U123) -> 205 | AA123: =+O123-Z123 -> 0
A124: 3 | B124: Oak office desk | C124: Office Equipment | D124: 1989 | E124: 9 | G124: SL | H124: 5 | I124: 1994 | M124: 200 | O124: 200 | P124: 3.333333333 | Q124: 0 | R124: 0 | S124: 0 | T124: 1 | U124: 0 | V124: 200 | W124: 200 | X124: 1 | Y124: 200 | Z124: 200 | AA124: 0
A125: 4 | B125: File cabinet | C125: Office Equipment | D125: 1994 | E125: 5 | G125: SL | H125: 5 | I125: 1999 | M125: 210 | O125: 210 | P125: 3.5 | Q125: 0 | R125: 0 | S125: 0 | T125: 1 | U125: 0 | V125: 210 | W125: 210 | X125: 1 | Y125: 210 | Z125: 210 | AA125: 0
A126: 5 | B126: Quill/fire safe | C126: Office Equipment | D126: 1994 | E126: 4 | G126: SL | H126: 5 | I126: 1999 | M126: 245 | O126: 245 | P126: 4.083333333 | Q126: 0 | R126: 0 | S126: 0 | T126: 1 | U126: 0 | V126: 245 | W126: 245 | X126: 1 | Y126: 245 | Z126: 245 | AA126: 0
A127: 8 | B127: 2 Desks & chairs | C127: Office Equipment | D127: 1980 | E127: 7 | G127: SL | H127: 5 | I127: 1985 | M127: 132 | O127: 132 | P127: 2.2 | Q127: 0 | R127: 0 | S127: 0 | T127: 1 | U127: 0 | V127: 132 | W127: 132 | X127: 1 | Y127: 132 | Z127: 132 | AA127: 0
A128: 9 | B128: Filing cabinet | C128: Office Equipment | D128: 1980 | E128: 12 | G128: SL | H128: 5 | I128: 1985 | M128: 506 | O128: 506 | P128: 8.433333333 | Q128: 0 | R128: 0 | S128: 0 | T128: 1 | U128: 0 | V128: 506 | W128: 506 | X128: 1 | Y128: 506 | Z128: 506 | AA128: 0
A129: 10 | B129: Filing cabinet | C129: Office Equipment | D129: 1980 | E129: 7 | G129: SL | H129: 5 | I129: 1985 | M129: 29 | O129: 29 | P129: 0.4833333333 | Q129: 0 | R129: 0 | S129: 0 | T129: 1 | U129: 0 | V129: 29 | W129: 29 | X129: 1 | Y129: 29 | Z129: 29 | AA129: 0
A130: 11 | B130: Office sign | C130: Office Equipment | D130: 1980 | E130: 10 | G130: SL | H130: 5 | I130: 1985 | M130: 195 | O130: 195 | P130: 3.25 | Q130: 0 | R130: 0 | S130: 0 | T130: 1 | U130: 0 | V130: 195 | W130: 195 | X130: 1 | Y130: 195 | Z130: 195 | AA130: 0
A131: 12 | B131: Filing cabinet | C131: Office Equipment | D131: 1980 | E131: 12 | G131: SL | H131: 5 | I131: 1985 | M131: 35 | O131: 35 | P131: 0.5833333333 | Q131: 0 | R131: 0 | S131: 0 | T131: 1 | U131: 0 | V131: 35 | W131: 35 | X131: 1 | Y131: 35 | Z131: 35 | AA131: 0
A132: 13 | B132: Wall pictures | C132: Office Equipment | D132: 1980 | E132: 12 | G132: SL | H132: 5 | I132: 1985 | M132: 125 | O132: 125 | P132: 2.083333333 | Q132: 0 | R132: 0 | S132: 0 | T132: 1 | U132: 0 | V132: 125 | W132: 125 | X132: 1 | Y132: 125 | Z132: 125 | AA132: 0
A133: 14 | B133: Office furniture | C133: Office Equipment | D133: 1980 | E133: 12 | G133: SL | H133: 5 | I133: 1985 | M133: 585 | O133: 585 | P133: 9.75 | Q133: 0 | R133: 0 | S133: 0 | T133: 1 | U133: 0 | V133: 585 | W133: 585 | X133: 1 | Y133: 585 | Z133: 585 | AA133: 0
A134: 15 | B134: Office chair | C134: Office Equipment | D134: 1987 | E134: 4 | G134: SL | H134: 5 | I134: 1992 | M134: 159 | O134: 159 | P134: 2.65 | Q134: 0 | R134: 0 | S134: 0 | T134: 1 | U134: 0 | V134: 159 | W134: 159 | X134: 1 | Y134: 159 | Z134: 159 | AA134: 0
A135: 16 | B135: Oak file cabinet | C135: Office Equipment | D135: 1981 | E135: 7 | G135: SL | H135: 5 | I135: 1986 | M135: 38 | O135: 38 | P135: 0.6333333333 | Q135: 0 | R135: 0 | S135: 0 | T135: 1 | U135: 0 | V135: 38 | W135: 38 | X135: 1 | Y135: 38 | Z135: 38 | AA135: 0
A136: 54 | B136: Office furniture | C136: Office Equipment | D136: 1997 | E136: 10 | G136: SL | H136: 5 | I136: 2002 | M136: 1265 | O136: 1265 | P136: 21.08333333 | Q136: 0 | R136: 0 | S136: 0 | T136: 1 | U136: 0 | V136: 1265 | W136: 1265 | X136: 1 | Y136: 1265 | Z136: 1265 | AA136: 0
A137: 55 | B137: Carpet | C137: Office Equipment | D137: 1998 | E137: 6 | G137: SL | H137: 5 | I137: 2003 | M137: 6860 | O137: 6860 | P137: 114.3333333 | Q137: 0 | R137: 0 | S137: 0 | T137: 1 | U137: 0 | V137: 6860 | W137: 6860 | X137: 1 | Y137: 6860 | Z137: 6860 | AA137: 0
A138: 97 | B138: Phone System | C138: Office Equipment | D138: 2009 | E138: 3 | G138: SL | H138: 5 | I138: 2014 | M138: 7361 | O138: 7361 | P138: 122.6833333 | Q138: 0 | R138: 0 | S138: 0 | T138: 1 | U138: 0 | V138: 7361 | W138: 7361 | X138: 1 | Y138: 7361 | Z138: 7361 | AA138: 0
A139: 101 | B139: Computer Program | C139: Office Equipment | D139: 2010 | E139: 1 | G139: SL | H139: 5 | I139: 2015 | M139: 10908 | O139: 10908 | P139: 181.8 | Q139: 0 | R139: 0 | S139: 0 | T139: 1 | U139: 0 | V139: 10908 | W139: 10908 | X139: 1 | Y139: 10908 | Z139: 10908 | AA139: 0
A140: 102 | B140: Printer & stand | C140: Office Equipment | D140: 2010 | E140: 3 | G140: SL | H140: 5 | I140: 2015 | M140: 2477 | O140: 2477 | P140: 41.28333333 | Q140: 0 | R140: 0 | S140: 0 | T140: 1 | U140: 0 | V140: 2477 | W140: 2477 | X140: 1 | Y140: 2477 | Z140: 2477 | AA140: 0
A141: 103 | B141: Computers | C141: Office Equipment | D141: 2010 | E141: 12 | G141: SL | H141: 5 | I141: 2015 | M141: 14010 | O141: 14010 | P141: 233.5 | Q141: 0 | R141: 0 | S141: 0 | T141: 1 | U141: 0 | V141: 14010 | W141: 14010 | X141: 1 | Y141: 14010 | Z141: 14010 | AA141: 0
B142: Sub-Total - Office Equipment | M142: =SUM(M123:M141) -> 45545 | N142: =SUM(N123:N141) -> 0 | O142: 45545 | P142: 759.0833333 | Q142: 0 | R142: 0 | S142: 0 | U142: 0 | V142: 45545 | W142: 45545 | Y142: 45545 | Z142: 45545 | AA142: 0
M143: =+M55+M62+M106+M120+M142 -> 4125303 | O143: =+O55+O62+O106+O120+O142 -> 4125303 | P143: =+P55+P62+P106+P120+P142 -> 41696.20714 | Q143: =+Q55+Q62+Q106+Q120+Q142 -> 255230.4095 | R143: =+R55+R62+R106+R120+R142 -> 0 | S143: =+S55+S62+S106+S120+S142 -> 255230.4095 | U143: =+U55+U62+U106+U120+U142 -> 255230.4095 | V143: =+V55+V62+V106+V120+V142 -> 2967563.779 | W143: =+W55+W62+W106+W120+W142 -> 2967563.779 | Y143: =+Y55+Y62+Y106+Y120+Y142 -> 2967563.779 | Z143: =+Z55+Z62+Z106+Z120+Z142 -> 3241301.288 | AA143: =+AA55+AA62+AA106+AA120+AA142 -> 884001.7119
A150: Disposals
A151: 36-a | B151: 3 Axle trailer | D151: 1993 | E151: 7 | F151: 0 | G151: SL | H151: 7 | I151: =+D151+H151 -> 2000 | L151: =+I151+E151/12 -> 2000.583333 | M151: =24737-4947 -> 19790 | O151: =M151-M151*F151 -> 19790 | P151: =O151/H151/12 -> 235.5952381 | Q151: =+IF(L151<=$P$5,0,P151*12) -> 0 | R151: =IF(N151=0,0,IF((AND((AF151>=AE151),(AF151<=AD151))),((AF151-AE151)*12)*P151,0)) -> 0 | S151: =IF(R151>0,R151,Q151) -> 0 | T151: 1 | U151: =T151*SUM(Q151:R151) -> 0 | V151: =+IF(L151<=$P$6,M151,IF((D151+(E151/12))>=$P$6,0,((M151-((L151-$P$6)*12)*P151)))) -> 19790 | W151: =V151*T151 -> 19790 | X151: 1 | Y151: =W151*X151 -> 19790 | Z151: =+IF(U151=0,M151,V151+U151) -> 19790 | AA151: =IF(N151>0,(M151-Y151)/2,IF(AB151>=AE151,(((M151*T151)*X151)-Z151)/2,((((M151*T151)*X151)-Y151)+(((M151*T151)*X151)-Z151))/2)) -> 0 | AB151: =$D151+(($E151-1)/12) -> 1993.5 | AC151: =($O$5+1)-($O$2/12) -> 1
A152: 36-SV | B152: 3 Axle trailer - salvage value | D152: 2017 | E152: 12 | F152: 0 | G152: SL | H152: 7 | I152: 2024 | L152: 2025 | M152: 4947 | O152: 4947 | P152: 58.89285714 | Q152: 706.7142857 | R152: 0 | S152: 706.7142857 | T152: 1 | U152: 706.7142857 | V152: 3121.321429 | W152: 3121.321429 | X152: 1 | Y152: 3121.321429 | Z152: 3828.035714 | AA152: 559.4821429 | AB152: 2017.916667 | AC152: 1
A153: 61-a | B153: Ford Pickup | D153: 2001 | E153: 7 | F153: 0 | G153: SL | H153: 5 | I153: 2006 | L153: 2006.583333 | M153: =31129-10273 -> 20856 | O153: 20856 | P153: 347.6 | Q153: 0 | R153: 0 | S153: 0 | T153: 1 | U153: 0 | V153: 20856 | W153: 20856 | X153: 1 | Y153: 20856 | Z153: 20856 | AA153: 0 | AB153: 2001.5 | AC153: 1
A154: 61-SV | B154: Ford Pickup-Salvage Value | D154: 2017 | E154: 12 | F154: 0 | G154: SL | H154: 5 | I154: 2022 | L154: 2023 | M154: 10273 | O154: 10273 | P154: 171.2166667 | Q154: 0 | R154: 0 | S154: 0 | T154: 1 | U154: 0 | V154: 9074.483333 | W154: 9074.483333 | X154: 1 | Y154: 9074.483333 | Z154: 10273 | AA154: 0 | AB154: 2017.916667 | AC154: 1
A155: 81-a | B155: 07 Peterbuilt #10 - REFUSE | D155: 2007 | E155: 7 | F155: 0 | G155: SL | H155: 7 | I155: 2014 | L155: 2014.583333 | M155: =230858-46172 -> 184686 | O155: 184686 | P155: 2198.642857 | Q155: 0 | R155: 0 | S155: 0 | T155: 1 | U155: 0 | V155: 184686 | W155: 184686 | X155: 1 | Y155: 184686 | Z155: 184686 | AA155: 0 | AB155: 2007.5 | AC155: 1
A156: 81-SV | B156: 07 Peterbuilt #10 - REFUSE-Salvage Value | D156: 2017 | E156: 12 | F156: 0 | G156: SL | H156: 7 | I156: 2024 | L156: 2025 | M156: 46172 | O156: 46172 | P156: 549.6666667 | Q156: 6596 | R156: 0 | S156: 6596 | T156: 1 | U156: 6596 | V156: 29132.33333 | W156: 29132.33333 | X156: 1 | Y156: 29132.33333 | Z156: 35728.33333 | AA156: 5221.833333 | AB156: 2017.916667 | AC156: 1
A157: 91-a | B157: Roto Cart | D157: 2009 | E157: 10 | G157: SL | H157: 10 | I157: 2019 | L157: 2019.833333 | M157: 13994 | O157: 13994 | P157: 116.6166667 | Q157: 0 | R157: 0 | S157: 0 | T157: 1 | U157: 0 | V157: 13994 | W157: 13994 | X157: 1 | Y157: 13994 | Z157: 13994 | AA157: 0 | AB157: 2009.75 | AC157: 1
A158: 117-a | B158: 11 Chev Express | D158: 2017 | E158: 3 | F158: 0 | G158: SL | H158: 5 | I158: 2022 | L158: 2022.25 | M158: 26300 | O158: 26300 | P158: 438.3333333 | Q158: 0 | R158: 0 | S158: 0 | T158: 1 | U158: 0 | V158: 26300 | W158: 26300 | X158: 1 | Y158: 26300 | Z158: 26300 | AA158: 0 | AB158: 2017.166667 | AC158: 1
A159: 23 | B159: 2 Drop boxes/lids | D159: 1987 | E159: 9 | G159: SL | H159: 10 | I159: 1997 | L159: 1997.75 | M159: 1220 | O159: 1220 | P159: 10.16666667 | Q159: 0 | R159: 0 | S159: 0 | T159: 1 | U159: 0 | V159: 1220 | W159: 1220 | X159: 1 | Y159: 1220 | Z159: 1220 | AA159: 0 | AB159: 1987.666667 | AC159: =($O$5+1)-($O$2/12) -> 1
A160: 24 | B160: Dewald Drop Boxes | D160: 1990 | E160: 9 | G160: SL | H160: 10 | I160: 2000 | L160: 2000.75 | M160: 6451 | O160: 6451 | P160: 53.75833333 | Q160: 0 | R160: 0 | S160: 0 | T160: 1 | U160: 0 | V160: 6451 | W160: 6451 | X160: 1 | Y160: 6451 | Z160: 6451 | AA160: 0 | AB160: 1990.666667 | AC160: 1
A161: 29 | B161: 100 Gal totes (25) | D161: 1996 | E161: 2 | G161: SL | H161: 10 | I161: 2006 | L161: 2006.166667 | M161: 1478 | O161: 1478 | P161: 12.31666667 | Q161: 0 | R161: 0 | S161: 0 | T161: 1 | U161: 0 | V161: 1478 | W161: 1478 | X161: 1 | Y161: 1478 | Z161: 1478 | AA161: 0 | AB161: 1996.083333 | AC161: 1
A162: 35 | B162: 30 100 F/A Containers | D162: 1994 | E162: 5 | G162: SL | H162: 10 | I162: 2004 | L162: 2004.416667 | M162: 1790 | O162: 1790 | P162: 14.91666667 | Q162: 0 | R162: 0 | S162: 0 | T162: 1 | U162: 0 | V162: 1790 | W162: 1790 | X162: 1 | Y162: 1790 | Z162: 1790 | AA162: 0 | AB162: 1994.333333 | AC162: 1
A163: 44 | B163: #15 Stretch & lift | D163: 1993 | E163: 3 | G163: SL | H163: 10 | I163: 2003 | L163: 2003.25 | M163: 8399 | O163: 8399 | P163: 69.99166667 | Q163: 0 | R163: 0 | S163: 0 | T163: 1 | U163: 0 | V163: 8399 | W163: 8399 | X163: 1 | Y163: 8399 | Z163: 8399 | AA163: 0 | AB163: 1993.166667 | AC163: 1
A164: 57 | B164: Drop box kit | D164: 1996 | E164: 11 | G164: SL | H164: 10 | I164: 2006 | L164: 2006.916667 | M164: 1130 | O164: 1130 | P164: 9.416666667 | Q164: 0 | R164: 0 | S164: 0 | T164: 1 | U164: 0 | V164: 1130 | W164: 1130 | X164: 1 | Y164: 1130 | Z164: 1130 | AA164: 0 | AB164: 1996.833333 | AC164: 1
A165: 72 | B165: Box 1130/1230/1330 | D165: 1999 | E165: 5 | G165: SL | H165: 10 | I165: 2009 | L165: 2009.416667 | M165: 11326 | O165: 11326 | P165: 94.38333333 | Q165: 0 | R165: 0 | S165: 0 | T165: 1 | U165: 0 | V165: 11326 | W165: 11326 | X165: 1 | Y165: 11326 | Z165: 11326 | AA165: 0 | AB165: 1999.333333 | AC165: 1
A166: 73 | B166: 2 Drop Boxes | D166: 1999 | E166: 7 | G166: SL | H166: 10 | I166: 2009 | L166: 2009.583333 | M166: 6200 | O166: 6200 | P166: 51.66666667 | Q166: 0 | R166: 0 | S166: 0 | T166: 1 | U166: 0 | V166: 6200 | W166: 6200 | X166: 1 | Y166: 6200 | Z166: 6200 | AA166: 0 | AB166: 1999.5 | AC166: 1
A167: 80 | B167: Box #'s L5 L6 L9 | D167: 2001 | E167: 1 | G167: SL | H167: 10 | I167: 2011 | L167: 2011.083333 | M167: 11208 | O167: 11208 | P167: 93.4 | Q167: 0 | R167: 0 | S167: 0 | T167: 1 | U167: 0 | V167: 11208 | W167: 11208 | X167: 1 | Y167: 11208 | Z167: 11208 | AA167: 0 | AB167: 2001 | AC167: 1
A168: 86 | B168: Box's #L10 #L11 #L13 | D168: 2002 | E168: 8 | G168: SL | H168: 10 | I168: 2012 | L168: 2012.666667 | M168: 10628 | O168: 10628 | P168: 88.56666667 | Q168: 0 | R168: 0 | S168: 0 | T168: 1 | U168: 0 | V168: 10628 | W168: 10628 | X168: 1 | Y168: 10628 | Z168: 10628 | AA168: 0 | AB168: 2002.583333 | AC168: 1
A169: 108 | B169: Drop Box #2530 2630 2730 | D169: 2006 | E169: 6 | G169: SL | H169: 10 | I169: 2016 | L169: 2016.5 | M169: 16177 | O169: 16177 | P169: 134.8083333 | Q169: 0 | R169: 0 | S169: 0 | T169: 1 | U169: 0 | V169: 16177 | W169: 16177 | X169: 1 | Y169: 16177 | Z169: 16177 | AA169: 0 | AB169: 2006.416667 | AC169: 1
A170: 101 | B170: Recycle Box #2330 | D170: 2005 | E170: 6 | G170: SL | H170: 10 | I170: 2015 | L170: 2015.5 | M170: 6079 | O170: 6079 | P170: 50.65833333 | Q170: 0 | R170: 0 | S170: 0 | T170: 1 | U170: 0 | V170: 6079 | W170: 6079 | X170: 1 | Y170: 6079 | Z170: 6079 | AA170: 0 | AB170: 2005.416667 | AC170: 1
A171: 104 | B171: 2 Drop Boxes #19 & 20 | D171: 2005 | E171: 10 | G171: SL | H171: 10 | I171: 2015 | L171: 2015.833333 | M171: 8867 | O171: 8867 | P171: 73.89166667 | Q171: 0 | R171: 0 | S171: 0 | T171: 1 | U171: 0 | V171: 8867 | W171: 8867 | X171: 1 | Y171: 8867 | Z171: 8867 | AA171: 0 | AB171: 2005.75 | AC171: 1
A172: 105 | B172: Box #21 | D172: 2006 | E172: 1 | G172: SL | H172: 10 | I172: 2016 | L172: 2016.083333 | M172: 4494 | O172: 4494 | P172: 37.45 | Q172: 0 | R172: 0 | S172: 0 | T172: 1 | U172: 0 | V172: 4494 | W172: 4494 | X172: 1 | Y172: 4494 | Z172: 4494 | AA172: 0 | AB172: 2006 | AC172: 1
A173: 106 | B173: Box #2430 4L40 5L40 | D173: 2006 | E173: 1 | G173: SL | H173: 10 | I173: 2016 | L173: 2016.083333 | M173: 18621 | O173: 18621 | P173: 155.175 | Q173: 0 | R173: 0 | S173: 0 | T173: 1 | U173: 0 | V173: 18621 | W173: 18621 | X173: 1 | Y173: 18621 | Z173: 18621 | AA173: 0 | AB173: 2006 | AC173: 1
A174: 110 | B174: Box #22 23 L1 | D174: 2006 | E174: 7 | G174: SL | H174: 10 | I174: 2016 | L174: 2016.583333 | M174: 14213 | O174: 14213 | P174: 118.4416667 | Q174: 0 | R174: 0 | S174: 0 | T174: 1 | U174: 0 | V174: 14213 | W174: 14213 | X174: 1 | Y174: 14213 | Z174: 14213 | AA174: 0 | AB174: 2006.5 | AC174: 1
A175: 113 | B175: Box#2830 2930 24 L2 3 4 | D175: 2007 | E175: 8 | G175: SL | H175: 10 | I175: 2017 | L175: 2017.666667 | M175: 32460 | O175: 32460 | P175: 270.5 | Q175: 0 | R175: 0 | S175: 0 | T175: 1 | U175: 0 | V175: 32460 | W175: 32460 | X175: 1 | Y175: 32460 | Z175: 32460 | AA175: 0 | AB175: 2007.583333 | AC175: 1
A176: 115 | B176: 10 Drop Boxes | D176: 2008 | E176: 4 | G176: SL | H176: 10 | I176: 2018 | L176: 2018.333333 | M176: 66121 | O176: 66121 | P176: 551.0083333 | Q176: 0 | R176: 0 | S176: 0 | T176: 1 | U176: 0 | V176: 66121 | W176: 66121 | X176: 1 | Y176: 66121 | Z176: 66121 | AA176: 0 | AB176: 2008.25 | AC176: 1
A177: 119 | B177: Box #1630 CB9 CB 10 | D177: 2008 | E177: 12 | G177: SL | H177: 10 | I177: 2018 | L177: 2019 | M177: 25411 | O177: 25411 | P177: 211.7583333 | Q177: 0 | R177: 0 | S177: 0 | T177: 1 | U177: 0 | V177: 25411 | W177: 25411 | X177: 1 | Y177: 25411 | Z177: 25411 | AA177: 0 | AB177: 2008.916667 | AC177: 1
A178: 120 | B178: Box #C5 C6 C7 | D178: 2008 | E178: 11 | G178: SL | H178: 10 | I178: 2018 | L178: 2018.916667 | M178: 24619 | O178: 24619 | P178: 205.1583333 | Q178: 0 | R178: 0 | S178: 0 | T178: 1 | U178: 0 | V178: 24619 | W178: 24619 | X178: 1 | Y178: 24619 | Z178: 24619 | AA178: 0 | AB178: 2008.833333 | AC178: 1
A179: 97 | B179: Box #3L30 | D179: 2012 | E179: 1 | G179: SL | H179: 10 | I179: 2022 | L179: 2022.083333 | M179: 9810 | O179: 9810 | P179: 81.75 | Q179: 0 | R179: 0 | S179: 0 | T179: 1 | U179: 0 | V179: 9810 | W179: 9810 | X179: 1 | Y179: 9810 | Z179: 9810 | AA179: 0 | AB179: 2012 | AC179: 1
A180: 98 | B180: Box #4730 #3730 | D180: 2012 | E180: 1 | G180: SL | H180: 10 | I180: 2022 | L180: 2022.083333 | M180: 19621 | O180: 19621 | P180: 163.5083333 | Q180: 0 | R180: 0 | S180: 0 | T180: 1 | U180: 0 | V180: 19621 | W180: 19621 | X180: 1 | Y180: 19621 | Z180: 19621 | AA180: 0 | AB180: 2012 | AC180: 1
A181: 126 | B181: Drop Boxes C8,9,10,11 | D181: 2018 | E181: 11 | G181: SL | H181: 10 | I181: 2028 | L181: 2028.916667 | M181: 40622 | O181: 40622 | P181: 338.5166667 | Q181: =+IF(L181<=$P$5,0,P181*12) -> 4062.2 | R181: 0 | S181: 4062.2 | T181: 1 | U181: 4062.2 | V181: 14217.7 | W181: 14217.7 | X181: 1 | Y181: 14217.7 | Z181: 18279.9 | AA181: 11171.05 | AB181: 2018.833333 | AC181: 1
A182: STAFF CAPITALIZED ITEMS - LAST RATE CASE | Q182: 0 | V182: 0
B183: Repair 11 Drop Boxes | D183: 2013 | E183: 6 | G183: SL | H183: 3 | I183: =+D183+H183 -> 2016 | L183: =+I183+E183/12 -> 2016.5 | M183: 7852 | O183: =M183-M183*F183 -> 7852 | P183: =O183/H183/12 -> 218.1111111 | Q183: =+IF(L183<=$P$5,0,P183*12) -> 0 | R183: =IF(N183=0,0,IF((AND((AF183>=AE183),(AF183<=AD183))),((AF183-AE183)*12)*P183,0)) -> 0 | S183: =IF(R183>0,R183,Q183) -> 0 | T183: 1 | U183: =T183*SUM(Q183:R183) -> 0 | V183: 7852 | W183: =V183*T183 -> 7852 | X183: 1 | Y183: =W183*X183 -> 7852 | Z183: =+IF(U183=0,M183,V183+U183) -> 7852 | AA183: =IF(N183>0,(M183-Y183)/2,IF(AB183>=AE183,(((M183*T183)*X183)-Z183)/2,((((M183*T183)*X183)-Y183)+(((M183*T183)*X183)-Z183))/2)) -> 0 | AB183: =$D183+(($E183-1)/12) -> 2013.416667 | AC183: 1
B184: Repair 7 Drop Boxes | D184: 2013 | E184: 6 | G184: SL | H184: 3 | I184: =+D184+H184 -> 2016 | L184: 2016.5 | M184: 5065 | O184: =M184-M184*F184 -> 5065 | P184: =O184/H184/12 -> 140.6944444 | Q184: 0 | R184: =IF(N184=0,0,IF((AND((AF184>=AE184),(AF184<=AD184))),((AF184-AE184)*12)*P184,0)) -> 0 | S184: =IF(R184>0,R184,Q184) -> 0 | T184: 1 | U184: =T184*SUM(Q184:R184) -> 0 | V184: 5065 | W184: =V184*T184 -> 5065 | X184: 1 | Y184: =W184*X184 -> 5065 | Z184: =+IF(U184=0,M184,V184+U184) -> 5065 | AA184: =IF(N184>0,(M184-Y184)/2,IF(AB184>=AE184,(((M184*T184)*X184)-Z184)/2,((((M184*T184)*X184)-Y184)+(((M184*T184)*X184)-Z184))/2)) -> 0 | AB184: =$D184+(($E184-1)/12) -> 2013.416667 | AC184: =($O$5+1)-($O$2/12) -> 1
B186: Truck #10-Radiotor Replacment | D186: 2013 | E186: 7 | F186: 0 | G186: SL | H186: 5 | I186: =+D186+H186 -> 2018 | L186: =+I186+E186/12 -> 2018.583333 | M186: 4051 | O186: =M186-M186*F186 -> 4051 | P186: =O186/H186/12 -> 67.51666667 | Q186: =+IF(L186<=$P$5,0,P186*12) -> 0 | R186: =IF(N186=0,0,IF((AND((AF186>=AE186),(AF186<=AD186))),((AF186-AE186)*12)*P186,0)) -> 0 | S186: =IF(R186>0,R186,Q186) -> 0 | T186: 1 | U186: =T186*SUM(Q186:R186) -> 0 | V186: =+IF(L186<=$P$6,M186,IF((D186+(E186/12))>=$P$6,0,((M186-((L186-$P$6)*12)*P186)))) -> 4051 | W186: =V186*T186 -> 4051 | X186: 1 | Y186: =W186*X186 -> 4051 | Z186: =+IF(U186=0,M186,V186+U186) -> 4051 | AA186: =IF(N186>0,(M186-Y186)/2,IF(AB186>=AE186,(((M186*T186)*X186)-Z186)/2,((((M186*T186)*X186)-Y186)+(((M186*T186)*X186)-Z186))/2)) -> 0 | AB186: =$D186+(($E186-1)/12) -> 2013.5 | AC186: 1
A187: 109-a | B187: 2005 Peterbuilts #9 - REFUSE | D187: 2004 | E187: 7 | F187: 0 | G187: SL | H187: 7 | I187: =+D187+H187 -> 2011 | L187: =+I187+E187/12 -> 2011.583333 | M187: =108373-21675 -> 86698 | O187: =M187-M187*F187 -> 86698 | P187: =O187/H187/12 -> 1032.119048 | Q187: =+IF(L187<=$P$5,0,P187*12) -> 0 | R187: =IF(N187=0,0,IF((AND((AF187>=AE187),(AF187<=AD187))),((AF187-AE187)*12)*P187,0)) -> 0 | S187: =IF(R187>0,R187,Q187) -> 0 | T187: 1 | U187: =T187*SUM(Q187:R187) -> 0 | V187: =+IF(L187<=$P$6,M187,IF((D187+(E187/12))>=$P$6,0,((M187-((L187-$P$6)*12)*P187)))) -> 86698 | W187: =V187*T187 -> 86698 | X187: 1 | Y187: =W187*X187 -> 86698 | Z187: =+IF(U187=0,M187,V187+U187) -> 86698 | AA187: =IF(N187>0,(M187-Y187)/2,IF(AB187>=AE187,(((M187*T187)*X187)-Z187)/2,((((M187*T187)*X187)-Y187)+(((M187*T187)*X187)-Z187))/2)) -> 0 | AB187: =$D187+(($E187-1)/12) -> 2004.5 | AC187: 1
A188: 109-SV | B188: 2005 Peterbuilts #9 - REFUSE - Salvage Value | D188: 2017 | E188: 12 | F188: 0 | G188: SL | H188: 7 | I188: =+D188+H188 -> 2024 | L188: =+I188+E188/12 -> 2025 | M188: 21675 | O188: =M188-M188*F188 -> 21675 | P188: =O188/H188/12 -> 258.0357143 | Q188: =+IF(L188<=$P$5,0,P188*12) -> 3096.428571 | R188: =IF(N188=0,0,IF((AND((AF188>=AE188),(AF188<=AD188))),((AF188-AE188)*12)*P188,0)) -> 0 | S188: =IF(R188>0,R188,Q188) -> 3096.428571 | T188: 1 | U188: =T188*SUM(Q188:R188) -> 3096.428571 | V188: =+IF(L188<=$P$6,M188,IF((D188+(E188/12))>=$P$6,0,((M188-((L188-$P$6)*12)*P188)))) -> 13675.89286 | W188: =V188*T188 -> 13675.89286 | X188: 1 | Y188: =W188*X188 -> 13675.89286 | Z188: =+IF(U188=0,M188,V188+U188) -> 16772.32143 | AA188: =IF(N188>0,(M188-Y188)/2,IF(AB188>=AE188,(((M188*T188)*X188)-Z188)/2,((((M188*T188)*X188)-Y188)+(((M188*T188)*X188)-Z188))/2)) -> 2451.339286 | AB188: =$D188+(($E188-1)/12) -> 2017.916667 | AC188: 1
A189: 71-a | B189: Truck - REFUSE BODY FOR #9 | D189: 2005 | E189: 4 | F189: 0 | G189: SL | H189: 7 | I189: =+D189+H189 -> 2012 | L189: =+I189+E189/12 -> 2012.333333 | M189: =75906-15181 -> 60725 | O189: =M189-M189*F189 -> 60725 | P189: =O189/H189/12 -> 722.9166667 | Q189: =+IF(L189<=$P$5,0,P189*12) -> 0 | R189: =IF(N189=0,0,IF((AND((AF189>=AE189),(AF189<=AD189))),((AF189-AE189)*12)*P189,0)) -> 0 | S189: =IF(R189>0,R189,Q189) -> 0 | T189: 1 | U189: =T189*SUM(Q189:R189) -> 0 | V189: =+IF(L189<=$P$6,M189,IF((D189+(E189/12))>=$P$6,0,((M189-((L189-$P$6)*12)*P189)))) -> 60725 | W189: =V189*T189 -> 60725 | X189: 1 | Y189: =W189*X189 -> 60725 | Z189: =+IF(U189=0,M189,V189+U189) -> 60725 | AA189: =IF(N189>0,(M189-Y189)/2,IF(AB189>=AE189,(((M189*T189)*X189)-Z189)/2,((((M189*T189)*X189)-Y189)+(((M189*T189)*X189)-Z189))/2)) -> 0 | AB189: =$D189+(($E189-1)/12) -> 2005.25 | AC189: 1
A190: 71-SV | B190: Truck - REFUSE BODY FOR #9-Salvage Val | D190: 2017 | E190: 12 | F190: 0 | G190: SL | H190: 7 | I190: =+D190+H190 -> 2024 | L190: =+I190+E190/12 -> 2025 | M190: 15181 | O190: =M190-M190*F190 -> 15181 | P190: =O190/H190/12 -> 180.7261905 | Q190: =+IF(L190<=$P$5,0,P190*12) -> 2168.714286 | R190: =IF(N190=0,0,IF((AND((AF190>=AE190),(AF190<=AD190))),((AF190-AE190)*12)*P190,0)) -> 0 | S190: =IF(R190>0,R190,Q190) -> 2168.714286 | T190: 1 | U190: =T190*SUM(Q190:R190) -> 2168.714286 | V190: =+IF(L190<=$P$6,M190,IF((D190+(E190/12))>=$P$6,0,((M190-((L190-$P$6)*12)*P190)))) -> 9578.488095 | W190: =V190*T190 -> 9578.488095 | X190: 1 | Y190: =W190*X190 -> 9578.488095 | Z190: =+IF(U190=0,M190,V190+U190) -> 11747.20238 | AA190: =IF(N190>0,(M190-Y190)/2,IF(AB190>=AE190,(((M190*T190)*X190)-Z190)/2,((((M190*T190)*X190)-Y190)+(((M190*T190)*X190)-Z190))/2)) -> 1716.89881 | AB190: =$D190+(($E190-1)/12) -> 2017.916667 | AC190: 1
Q191: =SUM(Q151:Q190) -> 16630.05714 | AA191: =SUM(AA151:AA184) -> 16952.36548
